Department Family,Entity,Date of Payment,Expense Type,Expense Area,Supplier,Voluntary & Community Sector,SME Class,Sole Trader,D-U-N-S Number,Transaction number,PSPES Level 2,Narrative,Postal Code,Amount in Sterling,Grant?
"Housing, Communities & Local Government",MHCLG,01/12/2020,Cap Grants to Local Authorities (DEL),Stronger Places,BLACKPOOL BC,,Public Bodies,,228593497,2100308075,,Coastal Communities Fund,FY1 1LZ,"373,476.00",Yes
"Housing, Communities & Local Government",MHCLG,01/12/2020,Current (non AEF) Grants to Local Authorities,Stronger Places,LONDON BOROUGH OF BEXLEY,,,,,2100307991,,Grant payment to London Borough of Bexley,DA8 1TL,"1,300,000.00",Yes
"Housing, Communities & Local Government",MHCLG,01/12/2020,Current Grants to Non Profit Bodies,Local Government Strategy and Analysis,BIG IDEAS COMM INTEREST COMP,,Micro,,,2100308074,,UKHMF - Holocaust Memorial Community Engagement,N19 4DR,"22,480.62",Yes
"Housing, Communities & Local Government",MHCLG,01/12/2020,Current Grants to Non Profit Bodies,Local Government Strategy and Analysis,HOLOCAUST EDUCATIONAL TRUST,,Small,,,2100308080,,Developing the Holocaust Memorial content,WC1N 3XX,"31,593.42",Yes
"Housing, Communities & Local Government",MHCLG,01/12/2020,ERDF Work in Progress � Capital,Stronger Places,"DEPT FOR BUS,ENERGY&IND STRATEGY",,Large,,,7700007771,,ERDF grant payment,SW1H 0ET,"35,089,797.02",Yes
"Housing, Communities & Local Government",MHCLG,01/12/2020,ERDF Work in Progress � Capital,Stronger Places,EDEN GEOTHERMAL LTD,,,,,7700007778,,ERDF grant payment,PI24 2SG,"14,217.00",Yes
"Housing, Communities & Local Government",MHCLG,01/12/2020,ERDF Work in Progress � Capital,Stronger Places,GLOUCESTERSHIRE WILDLIFE TRUST,,,,,7700007764,,ERDF grant payment,GL4 6SX,"35,537.41",Yes
"Housing, Communities & Local Government",MHCLG,01/12/2020,ERDF Work in Progress � Capital,Stronger Places,LOUGHBOROUGH UNIVERSITY,,,,,7700007766,,ERDF grant payment,LE11 3TU,"53,448.33",Yes
"Housing, Communities & Local Government",MHCLG,01/12/2020,ERDF Work in Progress � Capital,Stronger Places,WORCESTERSHIRE COUNTY COUNCIL,,,,,7700007767,,ERDF grant payment,WR5 2NP,"116,875.82",Yes
"Housing, Communities & Local Government",MHCLG,01/12/2020,ERDF Work in Progress � Resource,Stronger Places,ASTON UNIVERSITY,,Large,,227749751,7700007777,,ERDF grant payment,B4 7ET,"43,264.42",Yes
"Housing, Communities & Local Government",MHCLG,01/12/2020,ERDF Work in Progress � Resource,Stronger Places,CITY OF BRADFORD MC,,,,,7700007776,,ERDF grant payment,BD1 1NN,"16,830.50",Yes
"Housing, Communities & Local Government",MHCLG,01/12/2020,ERDF Work in Progress � Resource,Stronger Places,COVENTRY CITY COUNCIL,,Large,,,7700007760,,ERDF grant payment,CV1 2GN,"15,996.46",Yes
"Housing, Communities & Local Government",MHCLG,01/12/2020,ERDF Work in Progress � Resource,Stronger Places,EDEN GEOTHERMAL LTD,,,,,7700007778,,ERDF grant payment,PI24 2SG,"115,398.90",Yes
"Housing, Communities & Local Government",MHCLG,01/12/2020,ERDF Work in Progress � Resource,Stronger Places,FERA SCIENCE LIMITED,,Large,,,7700007779,,ERDF grant payment,YO41 1LZ,"25,262.90",Yes
"Housing, Communities & Local Government",MHCLG,01/12/2020,ERDF Work in Progress � Resource,Stronger Places,GLOUCESTERSHIRE WILDLIFE TRUST,,,,,7700007764,,ERDF grant payment,GL4 6SX,"32,254.09",Yes
"Housing, Communities & Local Government",MHCLG,01/12/2020,ERDF Work in Progress � Resource,Stronger Places,GM BUSINESS SUPPORT LTD,,,,,7700007512,,Grant recovery,M1 5JW,"-223,701.63",Yes
"Housing, Communities & Local Government",MHCLG,01/12/2020,ERDF Work in Progress � Resource,Stronger Places,LINCOLN UNIVERSITY,,Large,,,7700007769,,ERDF grant payment,LN6 7TS,"173,924.02",Yes
"Housing, Communities & Local Government",MHCLG,01/12/2020,ERDF Work in Progress � Resource,Stronger Places,LOUGHBOROUGH UNIVERSITY,,,,,7700007766,,ERDF grant payment,LE11 3TU,"34,070.72",Yes
"Housing, Communities & Local Government",MHCLG,01/12/2020,ERDF Work in Progress � Resource,Stronger Places,NORTHUMBERLAND BUSINESS SERVICE LTD,,Small,,,7700007772,,ERDF grant payment,NE63 8AP,"120,680.88",Yes
"Housing, Communities & Local Government",MHCLG,01/12/2020,ERDF Work in Progress � Resource,Stronger Places,NOTTINGHAM CITY COUNCIL,,Large,,,7700007773,,ERDF grant payment,NG2 3NG,"4,525.43",Yes
"Housing, Communities & Local Government",MHCLG,01/12/2020,ERDF Work in Progress � Resource,Stronger Places,NOTTINGHAM CITY COUNCIL,,Large,,,7700007774,,ERDF grant payment,NG2 3NG,"41,053.49",Yes
"Housing, Communities & Local Government",MHCLG,01/12/2020,ERDF Work in Progress � Resource,Stronger Places,NTH EAST BUSINESS INNOVATION CENTRE,,Medium,,,7700007762,,ERDF grant payment,SR5 2TA,"53,194.65",Yes
"Housing, Communities & Local Government",MHCLG,01/12/2020,ERDF Work in Progress � Resource,Stronger Places,NTH EAST BUSINESS INNOVATION CENTRE,,Medium,,,7700007763,,ERDF grant payment,SR5 2TA,"3,231.72",Yes
"Housing, Communities & Local Government",MHCLG,01/12/2020,ERDF Work in Progress � Resource,Stronger Places,NTH EAST BUSINESS INNOVATION CENTRE,,Medium,,,7700007770,,ERDF grant payment,SR5 2TA,"115,489.08",Yes
"Housing, Communities & Local Government",MHCLG,01/12/2020,ERDF Work in Progress � Resource,Stronger Places,OXFORD INNOVATION SERVICES LTD,,Medium,,,7700007765,,ERDF grant payment,OX1 1BY,"119,452.99",Yes
"Housing, Communities & Local Government",MHCLG,01/12/2020,ERDF Work in Progress � Resource,Stronger Places,OXFORDSHIRE LOCAL ENTERPRISE PARTNE,,,,,7700007768,,ERDF grant payment,OX1 1SA,"2,986.81",Yes
"Housing, Communities & Local Government",MHCLG,01/12/2020,ERDF Work in Progress � Resource,Stronger Places,TEES VALLEY COMBINED AUTHORITY,,,,,7700007761,,ERDF grant payment,TS17 6QY,"57,106.72",Yes
"Housing, Communities & Local Government",MHCLG,01/12/2020,ERDF Work in Progress � Resource,Stronger Places,WORCESTERSHIRE COUNTY COUNCIL,,,,,7700007767,,ERDF grant payment,WR5 2NP,"159,327.10",Yes
"Housing, Communities & Local Government",MHCLG,01/12/2020,EXP � PURCHASE OF GOODS /SERVICES R & D,Housing Planning and Building Safety,M&C SAATCHI (UK) LTD,,Large,,,5106266035,Research,Social Housing Complaints Awareness,W1F 9EE,"30,805.00",
"Housing, Communities & Local Government",MHCLG,01/12/2020,"Furniture, Fittings and carpets",CFO and Corporate,21st CENTURY OFFICE CONCEPTS LTD,,Small,,,5106266046,"Furniture, Fixtures and Fittings",CV-19 Home Working Requirements,SG12 0SS,"4,100.76",
"Housing, Communities & Local Government",MHCLG,01/12/2020,"IT - PC, Network & Hardware",CFO and Corporate,X M A LTD,,Large,,298484148,5106266044,ICT Hardware,Meeting Owls Pro,NG11 7EP,"11,538.38",
"Housing, Communities & Local Government",MHCLG,01/12/2020,IT - Service Contracts,CFO and Corporate,X M A LTD,,Large,,298484148,5106266045,IT Managed / Outsourced Services,Hardware Supp Services 2019/20,NG11 7EP,"8,228.27",
"Housing, Communities & Local Government",MHCLG,01/12/2020,Legal Fees,Local Government Strategy and Analysis,PINSENT MASONS LLP,,Large,,215580626,5106266043,Legal,Legal Advice,EC2A 4ES,900.00,
"Housing, Communities & Local Government",MHCLG,01/12/2020,Property/Estates Consultancy,Housing Planning and Building Safety,MINISTRY OF JUSTICE,,,,211860841,5106266019,Consultancy,Estates Professional Services,NP20 9BB,"3,218.75",
"Housing, Communities & Local Government",MHCLG,01/12/2020,Publishing,Housing Planning and Building Safety,APS GROUP,,Micro,,212228001,5106266024,Printing Services,White Paper Consultation,SK3 02P,"15,531.36",
"Housing, Communities & Local Government",MHCLG,01/12/2020,Recruitment,Local Government Strategy and Analysis,OFFICE FOR NATIONAL STATISTICS,,Public Bodies,,232101196,5106266006,Business Process Outsourcing Services,Recruitment Charges,NP10 8XG,"2,400.00",
"Housing, Communities & Local Government",MHCLG,01/12/2020,Steady State Service Provision,CFO and Corporate,CABINET OFFICE,,Public Bodies,,232159186,5106266029,Business Process Outsourcing Services,Contingent Labour,FY5 3TA,"25,200.00",
"Housing, Communities & Local Government",MHCLG,01/12/2020,Steady State Service Provision,CFO and Corporate,CGI IT UK LIMITED,,Large,,239881618,5106266022,Business Process Outsourcing Services,Payroll Services and Licences 2020-21,EC3M 3BY,"14,157.82",
"Housing, Communities & Local Government",MHCLG,01/12/2020,Steady State Service Provision,CFO and Corporate,CGI IT UK LIMITED,,Large,,239881618,5106266030,Business Process Outsourcing Services,Payroll Services and Licences 2020-21,EC3M 3BY,303.49,
"Housing, Communities & Local Government",MHCLG,02/12/2020,Advertising,Stronger Places,MSQ PARTNERS GROUP LIMITED,,Large,,220140637,5106266049,Advertising,Home Ownership Campaign,W1T 4TJ,"16,174.00",
"Housing, Communities & Local Government",MHCLG,02/12/2020,ERDF Work in Progress � Capital,Stronger Places,LEEDS CITY COUNCIL,,Large,,,7700007794,,ERDF grant payment,LS2 8HD,"108,426.01",Yes
"Housing, Communities & Local Government",MHCLG,02/12/2020,ERDF Work in Progress � Capital,Stronger Places,STOKE-ON-TRENT CITY COUNCIL,,,,,7700007787,,ERDF grant payment,ST4 1HH,"211,022.54",Yes
"Housing, Communities & Local Government",MHCLG,02/12/2020,ERDF Work in Progress � Capital,Stronger Places,STOKE-ON-TRENT CITY COUNCIL,,,,,7700007798,,ERDF grant payment,ST4 1HH,"155,782.09",Yes
"Housing, Communities & Local Government",MHCLG,02/12/2020,ERDF Work in Progress � Capital,Stronger Places,TOGETHER HOUSING ASSOCIATION,,Large,,,7700007796,,ERDF grant payment,BB1 1JD,"910,463.85",Yes
"Housing, Communities & Local Government",MHCLG,02/12/2020,ERDF Work in Progress � Capital,Stronger Places,UNIVERSITY OF HULL,,Large,,,7700007788,,ERDF grant payment,HU6 7RX,"2,210.99",Yes
"Housing, Communities & Local Government",MHCLG,02/12/2020,ERDF Work in Progress � Capital,Stronger Places,UNIVERSITY OF SALFORD,,,,,7700007786,,ERDF grant payment,M5 4WT,"194,045.98",Yes
"Housing, Communities & Local Government",MHCLG,02/12/2020,ERDF Work in Progress � Capital,Stronger Places,UNIVERSITY SHEFFIELD,,Large,,,7700007784,,ERDF grant payment,S10 2TN,"1,396,452.70",Yes
"Housing, Communities & Local Government",MHCLG,02/12/2020,ERDF Work in Progress � Resource,Stronger Places,DURHAM COUNTY COUNCIL,,,,,7700007797,,ERDF grant payment,DH1 5UF,"378,758.39",Yes
"Housing, Communities & Local Government",MHCLG,02/12/2020,ERDF Work in Progress � Resource,Stronger Places,GM BUSINESS SUPPORT LTD,,,,,7700007781,,ERDF grant payment,M1 5JW,"188,464.74",Yes
"Housing, Communities & Local Government",MHCLG,02/12/2020,ERDF Work in Progress � Resource,Stronger Places,GM BUSINESS SUPPORT LTD,,,,,7700007799,,ERDF grant payment,M1 5JW,"510,583.39",Yes
"Housing, Communities & Local Government",MHCLG,02/12/2020,ERDF Work in Progress � Resource,Stronger Places,LEEDS CITY COUNCIL,,Large,,,7700007794,,ERDF grant payment,LS2 8HD,"4,123.31",Yes
"Housing, Communities & Local Government",MHCLG,02/12/2020,ERDF Work in Progress � Resource,Stronger Places,LIVERPOOL CITY REGION COMB AUTH,,,,,7700007785,,ERDF grant payment,L3 1FZ,"226,722.02",Yes
"Housing, Communities & Local Government",MHCLG,02/12/2020,ERDF Work in Progress � Resource,Stronger Places,LIVERPOOL JOHN MOORES UNIVERSITY,,Large,,,7700007789,,ERDF grant payment,L1 2UA,"101,443.82",Yes
"Housing, Communities & Local Government",MHCLG,02/12/2020,ERDF Work in Progress � Resource,Stronger Places,LIVERPOOL JOHN MOORES UNIVERSITY,,Large,,,7700007791,,ERDF grant payment,L1 2UA,"208,463.38",Yes
"Housing, Communities & Local Government",MHCLG,02/12/2020,ERDF Work in Progress � Resource,Stronger Places,LIVERPOOL JOHN MOORES UNIVERSITY,,Large,,,7700007792,,ERDF grant offset,L1 2UA,-779.44,Yes
"Housing, Communities & Local Government",MHCLG,02/12/2020,ERDF Work in Progress � Resource,Stronger Places,LONDON TRAINING&EMPLOYMENT NETWORK,,,,,7700007782,,ERDF grant payment,N7 8QJ,"51,862.26",Yes
"Housing, Communities & Local Government",MHCLG,02/12/2020,ERDF Work in Progress � Resource,Stronger Places,MANCHESTER METROPOLITAN UNIVERSITY,,,,,7700007780,,ERDF grant payment,M15 6BH,"198,377.96",Yes
"Housing, Communities & Local Government",MHCLG,02/12/2020,ERDF Work in Progress � Resource,Stronger Places,NORTH WEST UNI EUROP UNIT LTD,,Micro,,,7700007790,,ERDF grant payment,M1 3HZ,"153,358.97",Yes
"Housing, Communities & Local Government",MHCLG,02/12/2020,ERDF Work in Progress � Resource,Stronger Places,NORTHUMBERLAND BUSINESS SERVICE LTD,,Small,,,7700007793,,ERDF grant payment,NE63 8AP,"41,159.64",Yes
"Housing, Communities & Local Government",MHCLG,02/12/2020,ERDF Work in Progress � Resource,Stronger Places,NTH EAST BUSINESS INNOVATION CENTRE,,Medium,,,7700007800,,ERDF grant payment,SR5 2TA,"7,200.00",Yes
"Housing, Communities & Local Government",MHCLG,02/12/2020,ERDF Work in Progress � Resource,Stronger Places,STOKE-ON-TRENT CITY COUNCIL,,,,,7700007787,,ERDF grant payment,ST4 1HH,"27,203.88",Yes
"Housing, Communities & Local Government",MHCLG,02/12/2020,ERDF Work in Progress � Resource,Stronger Places,STOKE-ON-TRENT CITY COUNCIL,,,,,7700007798,,ERDF grant payment,ST4 1HH,"12,552.06",Yes
"Housing, Communities & Local Government",MHCLG,02/12/2020,ERDF Work in Progress � Resource,Stronger Places,TEES VALLEY COMBINED AUTHORITY,,,,,7700007783,,ERDF grant payment,TS17 6QY,"309,044.81",Yes
"Housing, Communities & Local Government",MHCLG,02/12/2020,ERDF Work in Progress � Resource,Stronger Places,TOGETHER HOUSING ASSOCIATION,,Large,,,7700007796,,ERDF grant payment,BB1 1JD,"17,262.63",Yes
"Housing, Communities & Local Government",MHCLG,02/12/2020,ERDF Work in Progress � Resource,Stronger Places,UNIVERSITY OF HULL,,Large,,,7700007788,,ERDF grant payment,HU6 7RX,"80,039.55",Yes
"Housing, Communities & Local Government",MHCLG,02/12/2020,ERDF Work in Progress � Resource,Stronger Places,UNIVERSITY OF SALFORD,,,,,7700007786,,ERDF grant payment,M5 4WT,"21,650.19",Yes
"Housing, Communities & Local Government",MHCLG,02/12/2020,ERDF Work in Progress � Resource,Stronger Places,UNIVERSITY SHEFFIELD,,Large,,,7700007784,,ERDF grant payment,S10 2TN,"24,030.88",Yes
"Housing, Communities & Local Government",MHCLG,02/12/2020,EXP � PURCHASE OF GOODS /SERVICES R & D,Housing Planning and Building Safety,BUILDING RESEARCH ESTABLISHMENT,,Large,,896495033,5106265914,Research,Termite Monitoring and Eradication,WD25 9XX,"8,706.00",
"Housing, Communities & Local Government",MHCLG,02/12/2020,"IT - PC, Network & Hardware",CFO and Corporate,X M A LTD,,Large,,298484148,5106266061,ICT Hardware,Macbook x 2,NG11 7EP,"2,421.17",
"Housing, Communities & Local Government",MHCLG,02/12/2020,IT - Service Contracts,CFO and Corporate,CENTURYLINK COMMUNICATIONS UK LTD,,Large,,,5106266069,IT Managed / Outsourced Services,PSN Assured Cloud Connect AWS Yr1FY20/21,EC4M 7RB,"1,367.00",
"Housing, Communities & Local Government",MHCLG,02/12/2020,IT - Service Contracts,CFO and Corporate,GOVERNMENT LEGAL DEPARTMENT,,Public Bodies,,215580680,5106266062,IT Managed / Outsourced Services,20/21 Variable Fees,SW1H 9GL,"112,510.12",
"Housing, Communities & Local Government",MHCLG,02/12/2020,IT - Service Contracts,CFO and Corporate,IAME LTD,,Small,,,5106266052,IT Managed / Outsourced Services,Identity Management Integration,N14 6LD,687.50,
"Housing, Communities & Local Government",MHCLG,02/12/2020,IT - Service Contracts,CFO and Corporate,X M A LTD,,Large,,298484148,5106266070,IT Managed / Outsourced Services,Hardware Supp Services 2019/20,NG11 7EP,"13,584.52",
"Housing, Communities & Local Government",MHCLG,02/12/2020,IT - Service Contracts,Housing Planning and Building Safety,MADE TECH LTD,,Medium,,,5106266125,IT Managed / Outsourced Services,Energy Performance Certificates,EC2A 4NE,"-12,215.55",
"Housing, Communities & Local Government",MHCLG,02/12/2020,IT - Service Contracts,Housing Planning and Building Safety,MADE TECH LTD,,Medium,,,5106266126,IT Managed / Outsourced Services,Energy Performance Certificates,EC2A 4NE,"12,211.55",
"Housing, Communities & Local Government",MHCLG,02/12/2020,IT - Service Contracts,Local Government Strategy and Analysis,RISUAL LIMITED,,Medium,,,5106266000,Software,Cloud Platforming Services,ST18 0WP,"29,950.00",
"Housing, Communities & Local Government",MHCLG,02/12/2020,Management Consultancy,CFO and Corporate,Claremont Marketing Communications,,Medium,,211421449,5106265734,Consultancy,Grenfell Community Engagement Milestone costs,N4 2JH,"49,781.24",
"Housing, Communities & Local Government",MHCLG,02/12/2020,Management Consultancy,Housing Planning and Building Safety,FAITHFUL&GOULD LTD,,Large,,,5106266078,Consultancy,PMO Support uplift,KT18 5BW,"539,721.42",
"Housing, Communities & Local Government",MHCLG,02/12/2020,Management Consultancy,Housing Planning and Building Safety,FAITHFUL&GOULD LTD,,Large,,,5106266083,Consultancy,PMO Support,KT18 5BW,"57,210.52",
"Housing, Communities & Local Government",MHCLG,02/12/2020,Management Consultancy,Housing Planning and Building Safety,FAITHFUL&GOULD LTD,,Large,,,5106266083,Consultancy,PMO Support uplift,KT18 5BW,"111,749.96",
"Housing, Communities & Local Government",MHCLG,02/12/2020,Management Consultancy,Housing Planning and Building Safety,FAITHFUL&GOULD LTD,,Large,,,5106266084,Consultancy,PMO Support uplift,KT18 5BW,"61,520.26",
"Housing, Communities & Local Government",MHCLG,02/12/2020,Management Consultancy,Housing Planning and Building Safety,FAITHFUL&GOULD LTD,,Large,,,5106266085,Consultancy,PMO Support uplift,KT18 5BW,"539,721.41",
"Housing, Communities & Local Government",MHCLG,02/12/2020,Management Consultancy,Stronger Places,PA CONSULTING SERVICES LIMITED,,Large,,211000617,5106265777,Consultancy,Consultancy Support to RED,SW1W 9SR,"439,890.00",
"Housing, Communities & Local Government",MHCLG,02/12/2020,Management Consultancy,Stronger Places,PA CONSULTING SERVICES LIMITED,,Large,,211000617,5106265778,Consultancy,Consultancy Support to RED,SW1W 9SR,"398,900.86",
"Housing, Communities & Local Government",MHCLG,02/12/2020,Recruitment,Local Government Strategy and Analysis,CABINET OFFICE,,Public Bodies,,232159186,5106266057,Business Process Outsourcing Services,Recruitment Charges,FY5 3TA,"12,998.00",
"Housing, Communities & Local Government",MHCLG,02/12/2020,Software Licences,CFO and Corporate,CABINET OFFICE,,Public Bodies,,232159186,5106266086,Software,ROSA - Security 20/21 Actual,FY5 3TA,"75,559.50",
"Housing, Communities & Local Government",MHCLG,02/12/2020,Steady State Service Provision,CFO and Corporate,CIPFA BUSINESS LTD,,Large,,,5106266087,Business Process Outsourcing Services,CIPFA Support,E1W 9LN,"27,720.00",
"Housing, Communities & Local Government",MHCLG,02/12/2020,Training,Local Government Strategy and Analysis,LSR TRAINING AND DEVELOPMENT LTD,,Micro,,,5106266088,Development and Training,Civil Service Training,YO42 4RE,690.00,
"Housing, Communities & Local Government",MHCLG,02/12/2020,Web Services,CFO and Corporate,BIG BLUE DOOR,,Micro,,,5106265690,IT Managed / Outsourced Services,Website or Grenfell Tower Memori,SE1 2PZ,"1,800.00",
"Housing, Communities & Local Government",MHCLG,03/12/2020,Accommodation Service Charges,CFO and Corporate,GOVERNMENT PROPERTY AGENCY,,Medium,,,5106266154,Business Support,Warrington Estates Project (non vat),B2 5LS,"4,905.82",
"Housing, Communities & Local Government",MHCLG,03/12/2020,Current (non AEF) Grants to Local Authorities,Local Government Strategy and Analysis,TELFORD & WREKIN DC,,,,230235801,2600062262,,Telford & Wrekin Council Bellwin scheme Feb 20 fl,TF3 4NT,"53,324.00",Yes
"Housing, Communities & Local Government",MHCLG,03/12/2020,Current (non AEF) Grants to Local Authorities,Stronger Places,ASHFORD BC,,Public Bodies,,229467071,2100308017,,Ports Funding - Transition,TN23 1PL,"1,000,000.00",Yes
"Housing, Communities & Local Government",MHCLG,03/12/2020,Current (non AEF) Grants to Local Authorities,Stronger Places,BOURNEMOUTH BC&CHRISTCHURCH BC&POOL,,,,,2100308038,,Ports Funding - Transition,BH2 6DY,"86,000.00",Yes
"Housing, Communities & Local Government",MHCLG,03/12/2020,Current (non AEF) Grants to Local Authorities,Stronger Places,BRISTOL CITY COUNCIL,,,,213039763,2100308043,,Ports Funding - Transition,BSW7 0QB,"86,000.00",Yes
"Housing, Communities & Local Government",MHCLG,03/12/2020,Current (non AEF) Grants to Local Authorities,Stronger Places,CHESHIRE WEST & CHESTER COUNCIL,,Public Bodies,,,2100308042,,Ports Funding - Transition,CH1 2NP,"86,000.00",Yes
"Housing, Communities & Local Government",MHCLG,03/12/2020,Current (non AEF) Grants to Local Authorities,Stronger Places,DARTFORD BC,,Public Bodies,,225694942,2100308018,,Ports Funding - Transition,DA1 1DR,"500,000.00",Yes
"Housing, Communities & Local Government",MHCLG,03/12/2020,Current (non AEF) Grants to Local Authorities,Stronger Places,DONCASTER MBC,,Public Bodies,,368170627,2100308048,,Ports Funding - Transition,DN1 1ER,"86,000.00",Yes
"Housing, Communities & Local Government",MHCLG,03/12/2020,Current (non AEF) Grants to Local Authorities,Stronger Places,DOVER DC,,,,211389341,2100308050,,Ports Funding - Transition,CT16 3PF,"500,000.00",Yes
"Housing, Communities & Local Government",MHCLG,03/12/2020,Current (non AEF) Grants to Local Authorities,Stronger Places,EAST RIDING OF YORKSHIRE COUNCIL,,,,,2100308040,,Ports Funding - Transition,HU17 5BE,"86,000.00",Yes
"Housing, Communities & Local Government",MHCLG,03/12/2020,Current (non AEF) Grants to Local Authorities,Stronger Places,EAST SUSSEX CC,,,,,2100308041,,Ports Funding - Transition,BN7 1UE,"86,000.00",Yes
"Housing, Communities & Local Government",MHCLG,03/12/2020,Current (non AEF) Grants to Local Authorities,Stronger Places,EPPING FOREST DC,,,,734165884,2100308019,,Ports Funding - Transition,CM16 4BZ,"500,000.00",Yes
"Housing, Communities & Local Government",MHCLG,03/12/2020,Current (non AEF) Grants to Local Authorities,Stronger Places,ESSEX COUNTY COUNCIL,,,,226353050,2100308023,,Ports Funding - Transition,CM1 1LX,"150,000.00",Yes
"Housing, Communities & Local Government",MHCLG,03/12/2020,Current (non AEF) Grants to Local Authorities,Stronger Places,FOLKESTONE & HYTHE DISTRICT COUNCIL,,,,,2100308025,,Ports Funding - Transition,CT20 2QY,"150,000.00",Yes
"Housing, Communities & Local Government",MHCLG,03/12/2020,Current (non AEF) Grants to Local Authorities,Stronger Places,GREAT YARMOUTH BC,,,,292697372,2100308044,,Ports Funding - Transition,NR30 2QG,"86,000.00",Yes
"Housing, Communities & Local Government",MHCLG,03/12/2020,Current (non AEF) Grants to Local Authorities,Stronger Places,HAMPSHIRE COUNTY COUNCIL,,,,506774652,2100308024,,Ports Funding - Transition,SO23 8UD,"150,000.00",Yes
"Housing, Communities & Local Government",MHCLG,03/12/2020,Current (non AEF) Grants to Local Authorities,Stronger Places,HULL CITY COUNCIL,,Large,,217460984,2100308027,,Ports Funding - Transition,HU1 2AA,"150,000.00",Yes
"Housing, Communities & Local Government",MHCLG,03/12/2020,Current (non AEF) Grants to Local Authorities,Stronger Places,IPSWICH BC,,,,236431615,2100308047,,Ports Funding - Transition,IP1 2DE,"86,000.00",Yes
"Housing, Communities & Local Government",MHCLG,03/12/2020,Current (non AEF) Grants to Local Authorities,Stronger Places,KENT COUNTY COUNCIL,,Public Bodies,,210298405,2100308016,,Ports Funding - Transition,ME14 1XX,"1,700,000.00",Yes
"Housing, Communities & Local Government",MHCLG,03/12/2020,Current (non AEF) Grants to Local Authorities,Stronger Places,LANCASHIRE COUNTY COUNCIL,,Large,,233047435,2100308026,,Ports Funding - Transition,PR1 8XJ,"150,000.00",Yes
"Housing, Communities & Local Government",MHCLG,03/12/2020,Current (non AEF) Grants to Local Authorities,Stronger Places,LANCASTER CITY  COUNCIL,,,,228669990,2100308028,,Ports Funding - Transition,LA1 1PJ,"150,000.00",Yes
"Housing, Communities & Local Government",MHCLG,03/12/2020,Current (non AEF) Grants to Local Authorities,Stronger Places,MEDWAY COUNCIL,,,,,2100308037,,Ports Funding - Transition,ME4 4RT,"150,000.00",Yes
"Housing, Communities & Local Government",MHCLG,03/12/2020,Current (non AEF) Grants to Local Authorities,Stronger Places,NORTH EAST LINCOLNSHIRE COUNCIL,,Public Bodies,,,2100308030,,Ports Funding - Transition,DN35 8LN,"150,000.00",Yes
"Housing, Communities & Local Government",MHCLG,03/12/2020,Current (non AEF) Grants to Local Authorities,Stronger Places,NORTH LINCOLNSHIRE DC,,Public Bodies,,424005502,2100308031,,Ports Funding - Transition,DN16 1AB,"150,000.00",Yes
"Housing, Communities & Local Government",MHCLG,03/12/2020,Current (non AEF) Grants to Local Authorities,Stronger Places,NORTH TYNESIDE COUNCIL,,,,,2100308046,,Ports Funding - Transition,NA27 0BY,"86,000.00",Yes
"Housing, Communities & Local Government",MHCLG,03/12/2020,Current (non AEF) Grants to Local Authorities,Stronger Places,PLYMOUTH CITY COUNCIL,,,,236416095,2100308039,,Ports Funding - Transition,PL1 2AA,"86,000.00",Yes
"Housing, Communities & Local Government",MHCLG,03/12/2020,Current (non AEF) Grants to Local Authorities,Stronger Places,PORTSMOUTH CITY COUNCIL,,Public Bodies,,211183082,2100308032,,Ports Funding - Transition,PO1 2AR,"150,000.00",Yes
"Housing, Communities & Local Government",MHCLG,03/12/2020,Current (non AEF) Grants to Local Authorities,Stronger Places,REDCAR & CLEVELAND BC,,,,215175196,2100308036,,Ports Funding - Transition,TS6 9AR,"150,000.00",Yes
"Housing, Communities & Local Government",MHCLG,03/12/2020,Current (non AEF) Grants to Local Authorities,Stronger Places,SEFTON MBC,,,,232936125,2100308029,,Ports Funding - Transition,L20 3NQ,"150,000.00",Yes
"Housing, Communities & Local Government",MHCLG,03/12/2020,Current (non AEF) Grants to Local Authorities,Stronger Places,SOLIHULL MBC,,,,,2100308021,,Ports Funding - Transition,B91 3QR,"800,000.00",Yes
"Housing, Communities & Local Government",MHCLG,03/12/2020,Current (non AEF) Grants to Local Authorities,Stronger Places,SOUTH HOLLAND DC,,Large,,236445383,2100308045,,Ports Funding - Transition,PE11 2XE,"86,000.00",Yes
"Housing, Communities & Local Government",MHCLG,03/12/2020,Current (non AEF) Grants to Local Authorities,Stronger Places,SOUTHAMPTON CITY COUNCIL,,Public Bodies,,216927475,2100308035,,Ports Funding - Transition,SO14 7LY,"150,000.00",Yes
"Housing, Communities & Local Government",MHCLG,03/12/2020,Current (non AEF) Grants to Local Authorities,Stronger Places,SUFFOLK COASTAL& WAVENEY DC,,,,,2100308033,,Ports Funding - Transition,IP12 1RT,"150,000.00",Yes
"Housing, Communities & Local Government",MHCLG,03/12/2020,Current (non AEF) Grants to Local Authorities,Stronger Places,TENDRING DISTRICT COUNCIL,,Large,,231811857,2100308034,,Ports Funding - Transition,CO15 1SE,"150,000.00",Yes
"Housing, Communities & Local Government",MHCLG,03/12/2020,Current (non AEF) Grants to Local Authorities,Stronger Places,THANET DC,,Public Bodies,,,2100308020,,Ports Funding - Transition,CT8 1XZ,"500,000.00",Yes
"Housing, Communities & Local Government",MHCLG,03/12/2020,Current (non AEF) Grants to Local Authorities,Stronger Places,THURROCK DC,,,,,2100308049,,Ports Funding - Transition,RM17 6LT,"500,000.00",Yes
"Housing, Communities & Local Government",MHCLG,03/12/2020,Current (non AEF) Grants to Local Authorities,Stronger Places,WARRINGTON BC,,,,,2100308022,,Ports Funding - Transition,WA1 1BN,"800,000.00",Yes
"Housing, Communities & Local Government",MHCLG,03/12/2020,ERDF Work in Progress � Capital,Stronger Places,CORNWALL COLLEGE,,,,,7700007809,,ERDF grant payment,PL25 4DJ,"264,544.49",Yes
"Housing, Communities & Local Government",MHCLG,03/12/2020,ERDF Work in Progress � Capital,Stronger Places,CORNWALL COLLEGE,,,,,7700007814,,ERDF grant offset,PL25 4DJ,"-17,168.01",Yes
"Housing, Communities & Local Government",MHCLG,03/12/2020,ERDF Work in Progress � Capital,Stronger Places,PROCURE PLUS LTD,,Medium,,,7700007801,,ERDF grant payment,M32 0FP,"724,417.62",Yes
"Housing, Communities & Local Government",MHCLG,03/12/2020,ERDF Work in Progress � Resource,Stronger Places,BRITISH LIBRARY,,,,,7700007806,,ERDF grant payment,NW1 2DB,"277,076.78",Yes
"Housing, Communities & Local Government",MHCLG,03/12/2020,ERDF Work in Progress � Resource,Stronger Places,CORNWALL COLLEGE,,,,,7700007809,,ERDF grant payment,PL25 4DJ,"414,820.97",Yes
"Housing, Communities & Local Government",MHCLG,03/12/2020,ERDF Work in Progress � Resource,Stronger Places,DURHAM COUNTY COUNCIL,,,,,7700007808,,ERDF grant payment,DH1 5UF,"61,217.44",Yes
"Housing, Communities & Local Government",MHCLG,03/12/2020,ERDF Work in Progress � Resource,Stronger Places,DURHAM COUNTY COUNCIL,,,,,7700007811,,ERDF grant offset,DH1 5UF,"-6,070.91",Yes
"Housing, Communities & Local Government",MHCLG,03/12/2020,ERDF Work in Progress � Resource,Stronger Places,DURHAM COUNTY COUNCIL,,,,,7700007812,,ERDF grant payment,DH1 5UF,"7,971.03",Yes
"Housing, Communities & Local Government",MHCLG,03/12/2020,ERDF Work in Progress � Resource,Stronger Places,EXEMPLAS LIMITED,,Medium,,,7700007803,,ERDF grant payment,AL10 9NE,"96,396.99",Yes
"Housing, Communities & Local Government",MHCLG,03/12/2020,ERDF Work in Progress � Resource,Stronger Places,EXEMPLAS LIMITED,,Medium,,,7700007813,,ERDF grant offset,AL10 9NE,"-2,331.81",Yes
"Housing, Communities & Local Government",MHCLG,03/12/2020,ERDF Work in Progress � Resource,Stronger Places,GAPCAP LTD,,,,,7700007802,,ERDF grant payment,EC1N 7R,"24,410.58",Yes
"Housing, Communities & Local Government",MHCLG,03/12/2020,ERDF Work in Progress � Resource,Stronger Places,GREATER LONDON AUTHORITY,,Large,,,7700007804,,ERDF grant payment,SE1 2AA,"115,993.66",Yes
"Housing, Communities & Local Government",MHCLG,03/12/2020,ERDF Work in Progress � Resource,Stronger Places,LEEDS CITY COUNCIL,,Large,,,7700007807,,ERDF grant payment,LS2 8HD,"23,170.98",Yes
"Housing, Communities & Local Government",MHCLG,03/12/2020,ERDF Work in Progress � Resource,Stronger Places,LONDON SOUTH BANK UNIVERSITY,,,,,7700007805,,ERDF grant payment,SE1 0AA,"41,599.50",Yes
"Housing, Communities & Local Government",MHCLG,03/12/2020,ERDF Work in Progress � Resource,Stronger Places,PROCURE PLUS LTD,,Medium,,,7700007801,,ERDF grant payment,M32 0FP,"28,116.44",Yes
"Housing, Communities & Local Government",MHCLG,03/12/2020,ERDF Work in Progress � Resource,Stronger Places,UNIVERSITY OF THE WEST OF ENGLAND,,Large,,,7700007810,,ERDF grant payment,BS16 1QY,"60,146.07",Yes
"Housing, Communities & Local Government",MHCLG,03/12/2020,IT - Service Contracts,CFO and Corporate,LITTLE FISH(UK)T/A LITTLE FISH,,Medium,,,5106266133,IT Managed / Outsourced Services,Servicedesk / Tier2 provision,NG1 1LS,"69,234.55",
"Housing, Communities & Local Government",MHCLG,03/12/2020,IT - Service Contracts,CFO and Corporate,VELOCITII DIGITAL SOLUTIONS LTD,,Micro,,,5106266114,IT Managed / Outsourced Services,Digital Land Team Support,SE1 9LB,"71,175.00",
"Housing, Communities & Local Government",MHCLG,03/12/2020,IT - Service Contracts,CFO and Corporate,VELOCITII DIGITAL SOLUTIONS LTD,,Micro,,,5106266117,IT Managed / Outsourced Services,Provision of Delivery Manager (LDCU),SE1 9LB,"15,750.00",
"Housing, Communities & Local Government",MHCLG,03/12/2020,IT - Service Contracts,CFO and Corporate,VELOCITII DIGITAL SOLUTIONS LTD,,Micro,,,5106266136,IT Managed / Outsourced Services,Digital Design Support,SE1 9LB,"50,150.00",
"Housing, Communities & Local Government",MHCLG,03/12/2020,IT - Service Contracts,CFO and Corporate,VELOCITII DIGITAL SOLUTIONS LTD,,Micro,,,5106266137,IT Managed / Outsourced Services,Provision of Content Designer (LDCU),SE1 9LB,"6,600.00",
"Housing, Communities & Local Government",MHCLG,03/12/2020,Professional services,CFO and Corporate,GOVERNMENT PROPERTY AGENCY,,Medium,,,5106266153,Business Support,Manchester Office non vat,B2 5LS,"17,606.88",
"Housing, Communities & Local Government",MHCLG,03/12/2020,Professional services,Housing Planning and Building Safety,LOCALITY,,Medium,,347998312,5106266144,Technical Services,Discounted Market Homes Programme-2020-21 Technical Support,N1 6DR,"98,039.46",
"Housing, Communities & Local Government",MHCLG,03/12/2020,Professional services,Housing Planning and Building Safety,LOCALITY,,Medium,,347998312,5106266145,Technical Services,Discounted Market Homes Programme-2020-21 Fixed Costs ,N1 6DR,"8,514.17",
"Housing, Communities & Local Government",MHCLG,03/12/2020,Professional services,Housing Planning and Building Safety,On-Pole Limited,,Micro,,,5106266051,Technical Services,BSP Technical Guidance Author,BS40 6LB,"4,920.00",
"Housing, Communities & Local Government",MHCLG,03/12/2020,Professional services,Local Government Strategy and Analysis,ATKINS LTD,,Large,,293650339,5106266104,Financial,Support to Holocaust Memorial,KT18 5BW,"13,114.32",
"Housing, Communities & Local Government",MHCLG,03/12/2020,Publishing,Housing Planning and Building Safety,M&C SAATCHI (UK) LTD,,Large,,,5106266056,Printing Services,Planning for the Future Consultation,W1F 9EE,"27,330.60",
"Housing, Communities & Local Government",MHCLG,03/12/2020,Purchase of Consultancy Services,CFO and Corporate,GOVERNMENT PROPERTY AGENCY,,Medium,,,5106266155,Business Support,Non Build specific  other running costs,B2 5LS,"103,204.28",
"Housing, Communities & Local Government",MHCLG,03/12/2020,Purchase of Consultancy Services,CFO and Corporate,GOVERNMENT PROPERTY AGENCY,,Medium,,,5106266157,Business Support,Non Build specific  other running costs,B2 5LS,"5,171.74",
"Housing, Communities & Local Government",MHCLG,03/12/2020,Software Licences,CFO and Corporate,BYTES SOFTWARE SERVICES LTD,,Medium,,225273754,5106266112,Software,Orbeon Licences&Support ECLAIMS,KT22 7TW,"13,117.86",
"Housing, Communities & Local Government",MHCLG,03/12/2020,Steady State Service Provision,CFO and Corporate,CABINET OFFICE,,Public Bodies,,232159186,5106266122,Business Process Outsourcing Services,Employment Costs 20/21,FY5 3TA,"21,960.00",
"Housing, Communities & Local Government",MHCLG,03/12/2020,Steady State Service Provision,CFO and Corporate,GOVERNMENT PROPERTY AGENCY,,Medium,,,5106266156,Business Support,Temple Quay Hse Bristol Rent&rates,B2 5LS,"47,244.00",
"Housing, Communities & Local Government",MHCLG,03/12/2020,Steady State Service Provision,CFO and Corporate,GOVERNMENT PROPERTY AGENCY,,Medium,,,5106266158,Business Support,Temple Quay Hse Bristol Rent&rates,B2 5LS,"9,009.00",
"Housing, Communities & Local Government",MHCLG,03/12/2020,Steady State Service Provision,CFO and Corporate,GOVERNMENT PROPERTY AGENCY,,Medium,,,5106266159,Business Support,Temple Quay Hse Bristol Rent&rates,B2 5LS,"112,457.50",
"Housing, Communities & Local Government",MHCLG,03/12/2020,Steady State Service Provision,Housing Planning and Building Safety,LOCALITY,,Medium,,347998312,5106266143,Business Process Outsourcing Services,Neighbourhood Planning Contract 2020/21-Fixed Costs ,N1 6DR,"34,722.23",
"Housing, Communities & Local Government",MHCLG,03/12/2020,Training,CFO and Corporate,CABINET OFFICE,,Public Bodies,,232159186,5106265959,Development and Training,Civil Service Training,FY5 3TA,"4,000.00",
"Housing, Communities & Local Government",MHCLG,03/12/2020,Training,CFO and Corporate,KORN FERRY (UK) LTD,,Large,,,5106266054,Development and Training,Civil Service Training,SW1Y 6QB,"1,400.00",
"Housing, Communities & Local Government",MHCLG,03/12/2020,Training,CFO and Corporate,KPMG LLP (CSL),,Large,,,5106266011,Development and Training,Civil Service Training,E14 5GL,"2,526.00",
"Housing, Communities & Local Government",MHCLG,03/12/2020,Training,CFO and Corporate,KPMG LLP (CSL),,Large,,,5106266015,Development and Training,Civil Service Training,E14 5GL,"2,150.00",
"Housing, Communities & Local Government",MHCLG,03/12/2020,Training,CFO and Corporate,KPMG LLP (CSL),,Large,,,5106266108,Development and Training,Civil Service Training,E14 5GL,"1,634.00",
"Housing, Communities & Local Government",MHCLG,03/12/2020,Training,CFO and Corporate,KPMG LLP (CSL),,Large,,,5106266119,Development and Training,Civil Service Training,E14 5GL,"2,257.00",
"Housing, Communities & Local Government",MHCLG,03/12/2020,Training,CFO and Corporate,Optima-life Ltd,,Micro,,,5106266115,Development and Training,Resilience Training,AL3 5PA,"2,775.00",
"Housing, Communities & Local Government",MHCLG,03/12/2020,Training,CFO and Corporate,WHITEHALL & INDUSTRY GROUP,,Small,,385853957,5106266120,Development and Training,Civil Service Training,SW1H 9EX,"5,060.00",
"Housing, Communities & Local Government",MHCLG,03/12/2020,Training,CFO and Corporate,WHITEHALL & INDUSTRY GROUP,,Small,,385853957,5106266121,Development and Training,Civil Service Training,SW1H 9EX,"5,060.00",
"Housing, Communities & Local Government",MHCLG,04/12/2020,Accommodation Service Charges,CFO and Corporate,GOVERNMENT PROPERTY AGENCY,,Medium,,,5106266178,Business Support,Hastings Project Costs no vat,B2 5LS,"130,777.43",
"Housing, Communities & Local Government",MHCLG,04/12/2020,Accommodation Service Charges,CFO and Corporate,GOVERNMENT PROPERTY AGENCY,,Medium,,,5106266178,Business Support,Hastings Project Costs vat,B2 5LS,"3,269.44",
"Housing, Communities & Local Government",MHCLG,04/12/2020,Advertising,CFO and Corporate,News UK,,Large,,,5106266184,Advertising,RSH Chair campaign paid advertising,SE1 9GF,"1,300.00",
"Housing, Communities & Local Government",MHCLG,04/12/2020,Advertising,CFO and Corporate,PDT GLOBAL LTD,,Small,,,5106266183,Advertising,Customising  Allyship  Video with MHCLG,SG12 9DH,"4,000.00",
"Housing, Communities & Local Government",MHCLG,04/12/2020,Agency Staff,Local Government Strategy and Analysis,GREEN PARK INTERIM & EXECUTIVE,,Small,,348738829,5106266176,Business Process Outsourcing Services,UKHMF Curator Salary,W1K 4EG,"19,348.99",
"Housing, Communities & Local Government",MHCLG,04/12/2020,Current (non AEF) Grants to Local Authorities,Housing Planning and Building Safety,BIRMINGHAM CITY COUNCIL,,Large,,228459434,2100307992,,Supported Housing Oversight Pilots,B1 1BB,"1,048,244.00",Yes
"Housing, Communities & Local Government",MHCLG,04/12/2020,Current (non AEF) Grants to Local Authorities,Housing Planning and Building Safety,BLACKBURN WITH DARWEN BC,,Large,,212925606,2100307993,,Supported Housing Oversight Pilots,BB1 7DY,"356,616.00",Yes
"Housing, Communities & Local Government",MHCLG,04/12/2020,Current (non AEF) Grants to Local Authorities,Housing Planning and Building Safety,BLACKPOOL BC,,Public Bodies,,228593497,2100307994,,Supported Housing Oversight Pilots,FY1 1LZ,"686,648.00",Yes
"Housing, Communities & Local Government",MHCLG,04/12/2020,Current (non AEF) Grants to Local Authorities,Housing Planning and Building Safety,BRISTOL CITY COUNCIL,,,,213039763,2100307995,,Supported Housing Oversight Pilots,BSW7 0QB,"249,099.00",Yes
"Housing, Communities & Local Government",MHCLG,04/12/2020,Current (non AEF) Grants to Local Authorities,Housing Planning and Building Safety,HULL CITY COUNCIL,,Large,,217460984,2100307996,,Supported Housing Oversight Pilots,HU1 2AA,"798,485.00",Yes
"Housing, Communities & Local Government",MHCLG,04/12/2020,Domestic Services,CFO and Corporate,21st CENTURY OFFICE CONCEPTS LTD,,Small,,,5106266177,Building Operation,Hand Sanitiser and Wipes,SG12 0SS,"4,501.56",
"Housing, Communities & Local Government",MHCLG,04/12/2020,ERDF Work in Progress � Capital,Stronger Places,COUNCIL OF THE ISLES OF SCILLY,,Large,,,7700007816,,ERDF grant payment,TR21 0LW,"6,917.73",Yes
"Housing, Communities & Local Government",MHCLG,04/12/2020,ERDF Work in Progress � Capital,Stronger Places,HEREFORDSHIRE COUNCIL,,,,,7700007822,,ERDF grant payment,HR1 0LE,"445,084.22",Yes
"Housing, Communities & Local Government",MHCLG,04/12/2020,ERDF Work in Progress � Capital,Stronger Places,NORTH TYNESIDE COUNCIL,,Large,,,7700007820,,ERDF grant payment,NE27 0BY,"339,000.41",Yes
"Housing, Communities & Local Government",MHCLG,04/12/2020,ERDF Work in Progress � Resource,Stronger Places,ASTON UNIVERSITY,,Large,,227749751,7700007819,,ERDF grant payment,B4 7ET,"58,651.09",Yes
"Housing, Communities & Local Government",MHCLG,04/12/2020,ERDF Work in Progress � Resource,Stronger Places,COUNCIL OF THE ISLES OF SCILLY,,Large,,,7700007816,,ERDF grant payment,TR21 0LW,"41,549.66",Yes
"Housing, Communities & Local Government",MHCLG,04/12/2020,ERDF Work in Progress � Resource,Stronger Places,COVENTRY UNIVERSITY ENTERPRISES LTD,,,,,7700007824,,ERDF grant payment,CV1 2TT,"59,459.34",Yes
"Housing, Communities & Local Government",MHCLG,04/12/2020,ERDF Work in Progress � Resource,Stronger Places,DEVON COUNTY COUNCIL,,Large,,,7700007825,,ERDF grant payment,EX2 4QD,"45,536.83",Yes
"Housing, Communities & Local Government",MHCLG,04/12/2020,ERDF Work in Progress � Resource,Stronger Places,FALMOUTH UNIVERSITY,,Large,,,7700007815,,ERDF grant payment,TR10 9FE,"41,611.61",Yes
"Housing, Communities & Local Government",MHCLG,04/12/2020,ERDF Work in Progress � Resource,Stronger Places,LEEDS CITY COUNCIL,,Large,,,7700007817,,ERDF grant payment,LS2 8HD,"526,315.20",Yes
"Housing, Communities & Local Government",MHCLG,04/12/2020,ERDF Work in Progress � Resource,Stronger Places,NEWCASTLE UNIVERSITY,,,,,7700007823,,ERDF grant payment,NE1 7RU,"21,824.78",Yes
"Housing, Communities & Local Government",MHCLG,04/12/2020,ERDF Work in Progress � Resource,Stronger Places,NORTH TYNESIDE COUNCIL,,Large,,,7700007820,,ERDF grant payment,NE27 0BY,"10,191.04",Yes
"Housing, Communities & Local Government",MHCLG,04/12/2020,ERDF Work in Progress � Resource,Stronger Places,TEESSIDE UNIVERSITY,,Large,,,7700007818,,ERDF grant payment,TS1 3BA,"70,884.76",Yes
"Housing, Communities & Local Government",MHCLG,04/12/2020,ERDF Work in Progress � Resource,Stronger Places,UNIVERSITY OF EXETER,,,,,7700007821,,ERDF grant payment,EX4 4QJ,"275,832.08",Yes
"Housing, Communities & Local Government",MHCLG,04/12/2020,ERDF Work in Progress � Resource,Stronger Places,UNIVERSITY OF EXETER,,,,,7700007826,,ERDF grant payment,EX4 4QJ,"257,874.33",Yes
"Housing, Communities & Local Government",MHCLG,04/12/2020,EXP � PURCHASE OF GOODS /SERVICES R & D,Local Government Strategy and Analysis,Simetrica-Jacobs Ltd,,Small,,,5106266209,Research,Holocaust Memorial Research,W14 0EE,"14,566.65",
"Housing, Communities & Local Government",MHCLG,04/12/2020,EXP � PURCHASE OF GOODS /SERVICES R & D,Local Government Strategy and Analysis,Yonder Consulting Ltd,,Medium,,,5106266110,Research,Research - Tracker Survey,EC1V 0AT,"5,003.00",
"Housing, Communities & Local Government",MHCLG,04/12/2020,EXP � PURCHASE OF GOODS /SERVICES R & D,Local Government Strategy and Analysis,Yonder Consulting Ltd,,Medium,,,5106266215,Research,Research - Tracker Survey,EC1V 0AT,275.00,
"Housing, Communities & Local Government",MHCLG,04/12/2020,IT - Service Contracts,Housing Planning and Building Safety,EXELA TECHNOLOGIES LIMITED,,Large,,,5106266233,IT Managed / Outsourced Services,EPB Register Helpdesk Service charges,TW20 9AB,"1,142.40",
"Housing, Communities & Local Government",MHCLG,04/12/2020,IT - Service Contracts,Local Government Strategy and Analysis,RISUAL LIMITED,,Medium,,,5106266219,IT Managed / Outsourced Services,Open Data Communities Development work,ST18 0WP,"37,450.00",
"Housing, Communities & Local Government",MHCLG,04/12/2020,IT - Service Contracts,Stronger Places,STORM ID LTD,,Medium,,,5106266234,IT Managed / Outsourced Services,High Streets Task Force Website,EH7 6BG,"3,510.00",
"Housing, Communities & Local Government",MHCLG,04/12/2020,IT Consultancy,Housing Planning and Building Safety,DIGITAL ACCESSIBILITY CENTRE LTD,,Small,,,5106266203,Consultancy,Accessibility testing on new Energy Perf,SA10 6FG,"5,670.00",
"Housing, Communities & Local Government",MHCLG,04/12/2020,Legal Fees,Housing Planning and Building Safety,PINSENT MASONS LLP,,Large,,215580626,5106266192,Legal,Legal Advice,EC2A 4ES,"12,825.36",
"Housing, Communities & Local Government",MHCLG,04/12/2020,Management Consultancy,Housing Planning and Building Safety,FAITHFUL&GOULD LTD,,Large,,,5106266181,Consultancy,PMO Support uplift,KT18 5BW,"168,960.48",
"Housing, Communities & Local Government",MHCLG,04/12/2020,Physical Storage,CFO and Corporate,IRON MOUNTAIN (UK) LIMITED,,Large,,501338354,5106266211,Warehousing and Storage,off-site tapes 2018-2019,EH54 7DF,719.34,
"Housing, Communities & Local Government",MHCLG,04/12/2020,Professional services,CFO and Corporate,GOVERNMENT PROPERTY AGENCY,,Medium,,,5106266229,Business Support,Manchester Office vat charges,B2 5LS,"5,220.00",
"Housing, Communities & Local Government",MHCLG,04/12/2020,Professional services,Housing Planning and Building Safety,NATIONAL CUSTOM & SELF BUILD ASSOCI,,Micro,,,2100308101,Environmental Services,Expertise/Guidance on Custom Build to Local Authorities,GL50 3HW,"40,000.00",
"Housing, Communities & Local Government",MHCLG,04/12/2020,Professional services,Local Government Strategy and Analysis,TURNER&TOWNSEND PROJECT MAN LTD,,Large,,,5106265975,Financial,Employment Instructions,LS18 4GH,"17,280.00",
"Housing, Communities & Local Government",MHCLG,04/12/2020,Purchase of Consultancy Services,CFO and Corporate,GOVERNMENT PROPERTY AGENCY,,Medium,,,5106266221,Business Support,Non Build specific Utilities for Estates,B2 5LS,376.72,
"Housing, Communities & Local Government",MHCLG,04/12/2020,Purchase of Consultancy Services,CFO and Corporate,GOVERNMENT PROPERTY AGENCY,,Medium,,,5106266222,Business Support,Non Build specific Utilities for Estates,B2 5LS,"15,695.93",
"Housing, Communities & Local Government",MHCLG,04/12/2020,Purchase of Consultancy Services,CFO and Corporate,GOVERNMENT PROPERTY AGENCY,,Medium,,,5106266222,Business Support,Temple Quay Hse Bristol FM Charges,B2 5LS,"32,853.30",
"Housing, Communities & Local Government",MHCLG,04/12/2020,Purchase of Consultancy Services,CFO and Corporate,GOVERNMENT PROPERTY AGENCY,,Medium,,,5106266223,Business Support,Non Build specific Utilities for Estates,B2 5LS,"1,910.84",
"Housing, Communities & Local Government",MHCLG,04/12/2020,Purchase of Consultancy Services,CFO and Corporate,GOVERNMENT PROPERTY AGENCY,,Medium,,,5106266224,Business Support,Non Build specific Utilities for Estates,B2 5LS,"3,299.57",
"Housing, Communities & Local Government",MHCLG,04/12/2020,Recruitment,Housing Planning and Building Safety,CABINET OFFICE,,Public Bodies,,232159186,5106266216,Business Process Outsourcing Services,Recruitment Costs,FY5 3TA,"5,280.00",
"Housing, Communities & Local Government",MHCLG,04/12/2020,Recruitment,Stronger Places,REDACTIVE PUBLISHING LTD,,Medium,,494940539,5106266193,Business Process Outsourcing Services,Housing vacancies advert,E1 8BL,"1,500.00",
"Housing, Communities & Local Government",MHCLG,04/12/2020,Software Licences,CFO and Corporate,BYTES SOFTWARE SERVICES LTD,,Medium,,225273754,5106266208,Software,Dragon Software,KT22 7TW,346.80,
"Housing, Communities & Local Government",MHCLG,04/12/2020,Steady State Service Provision,CFO and Corporate,GOVERNMENT PROPERTY AGENCY,,Medium,,,5106266221,Business Support,Newcastle - Citygate FM Charges,B2 5LS,"2,583.87",
"Housing, Communities & Local Government",MHCLG,04/12/2020,Steady State Service Provision,CFO and Corporate,GOVERNMENT PROPERTY AGENCY,,Medium,,,5106266223,Business Support,High Trees F M Charges,B2 5LS,"9,583.30",
"Housing, Communities & Local Government",MHCLG,04/12/2020,Steady State Service Provision,CFO and Corporate,GOVERNMENT PROPERTY AGENCY,,Medium,,,5106266224,Business Support,St Philips Place BHam FM Charges,B2 5LS,"9,651.32",
"Housing, Communities & Local Government",MHCLG,04/12/2020,Training,CFO and Corporate,KORN FERRY (UK) LTD,,Large,,,5106266175,Development and Training,Civil Service Training,SW1Y 6QB,"8,220.00",
"Housing, Communities & Local Government",MHCLG,04/12/2020,Training,CFO and Corporate,KPMG LLP (CSL),,Large,,,5106266009,Development and Training,Civil Service Training,E14 5GL,"1,153.00",
"Housing, Communities & Local Government",MHCLG,04/12/2020,Training,CFO and Corporate,KPMG LLP (CSL),,Large,,,5106266016,Development and Training,Civil Service Training,E14 5GL,"1,153.00",
"Housing, Communities & Local Government",MHCLG,07/12/2020,Agency Staff,CFO and Corporate,ALEXANDER MANN SOLUTIONS LTD,,Large,,,5106266239,Contingent Labour,Interim Staff,EC2N 3AQ,813.66,
"Housing, Communities & Local Government",MHCLG,07/12/2020,Agency Staff,CFO and Corporate,ALEXANDER MANN SOLUTIONS LTD,,Large,,,5106266241,Contingent Labour,Contingent Labour,EC2N 3AQ,"2,520.24",
"Housing, Communities & Local Government",MHCLG,07/12/2020,Agency Staff,CFO and Corporate,ALEXANDER MANN SOLUTIONS LTD,,Large,,,5106266242,Contingent Labour,Contingent Labour,EC2N 3AQ,"3,323.52",
"Housing, Communities & Local Government",MHCLG,07/12/2020,Agency Staff,CFO and Corporate,ALEXANDER MANN SOLUTIONS LTD,,Large,,,5106266243,Contingent Labour,Contingent Labour,EC2N 3AQ,"2,463.72",
"Housing, Communities & Local Government",MHCLG,07/12/2020,Agency Staff,CFO and Corporate,ALEXANDER MANN SOLUTIONS LTD,,Large,,,5106266244,Contingent Labour,Contingent Labour,EC2N 3AQ,"3,067.86",
"Housing, Communities & Local Government",MHCLG,07/12/2020,Agency Staff,CFO and Corporate,ALEXANDER MANN SOLUTIONS LTD,,Large,,,5106266246,Contingent Labour,Contingent Labour,EC2N 3AQ,"6,330.48",
"Housing, Communities & Local Government",MHCLG,07/12/2020,Agency Staff,CFO and Corporate,ALEXANDER MANN SOLUTIONS LTD,,Large,,,5106266251,Contingent Labour,Interim Staff,EC2N 3AQ,"11,971.20",
"Housing, Communities & Local Government",MHCLG,07/12/2020,Agency Staff,CFO and Corporate,ALEXANDER MANN SOLUTIONS LTD,,Large,,,5106266252,Contingent Labour,Contingent Labour,EC2N 3AQ,"5,355.48",
"Housing, Communities & Local Government",MHCLG,07/12/2020,Agency Staff,CFO and Corporate,ALEXANDER MANN SOLUTIONS LTD,,Large,,,5106266253,Contingent Labour,Contingent Labour,EC2N 3AQ,"2,677.73",
"Housing, Communities & Local Government",MHCLG,07/12/2020,Agency Staff,CFO and Corporate,ALEXANDER MANN SOLUTIONS LTD,,Large,,,5106266255,Contingent Labour,Contingent Labour,EC2N 3AQ,"4,644.36",
"Housing, Communities & Local Government",MHCLG,07/12/2020,Agency Staff,CFO and Corporate,ALEXANDER MANN SOLUTIONS LTD,,Large,,,5106266260,Contingent Labour,Contingent Labour,EC2N 3AQ,"5,389.38",
"Housing, Communities & Local Government",MHCLG,07/12/2020,Agency Staff,CFO and Corporate,ALEXANDER MANN SOLUTIONS LTD,,Large,,,5106266261,Contingent Labour,Contingent Labour,EC2N 3AQ,"2,771.66",
"Housing, Communities & Local Government",MHCLG,07/12/2020,Agency Staff,CFO and Corporate,ALEXANDER MANN SOLUTIONS LTD,,Large,,,5106266263,Contingent Labour,Contingent Labour,EC2N 3AQ,"4,681.10",
"Housing, Communities & Local Government",MHCLG,07/12/2020,Agency Staff,CFO and Corporate,ALEXANDER MANN SOLUTIONS LTD,,Large,,,5106266265,Contingent Labour,Contingent Labour,EC2N 3AQ,787.58,
"Housing, Communities & Local Government",MHCLG,07/12/2020,Agency Staff,Housing Planning and Building Safety,ALEXANDER MANN SOLUTIONS LTD,,Large,,,5106266240,Contingent Labour,Short Term Contractor,EC2N 3AQ,"1,323.12",
"Housing, Communities & Local Government",MHCLG,07/12/2020,Agency Staff,Housing Planning and Building Safety,ALEXANDER MANN SOLUTIONS LTD,,Large,,,5106266247,Contingent Labour,Planning Consultant Fees,EC2N 3AQ,"2,410.24",
"Housing, Communities & Local Government",MHCLG,07/12/2020,Agency Staff,Housing Planning and Building Safety,ALEXANDER MANN SOLUTIONS LTD,,Large,,,5106266248,Contingent Labour,Short Term Contractor,EC2N 3AQ,"2,835.24",
"Housing, Communities & Local Government",MHCLG,07/12/2020,Agency Staff,Housing Planning and Building Safety,ALEXANDER MANN SOLUTIONS LTD,,Large,,,5106266249,Contingent Labour,Short Term Contractor,EC2N 3AQ,"24,783.86",
"Housing, Communities & Local Government",MHCLG,07/12/2020,Agency Staff,Housing Planning and Building Safety,ALEXANDER MANN SOLUTIONS LTD,,Large,,,5106266256,Contingent Labour,Short Term Contractor,EC2N 3AQ,"4,003.56",
"Housing, Communities & Local Government",MHCLG,07/12/2020,Agency Staff,Local Government Strategy and Analysis,ALEXANDER MANN SOLUTIONS LTD,,Large,,,5106266245,Contingent Labour,Contingent Labour,EC2N 3AQ,"1,855.86",
"Housing, Communities & Local Government",MHCLG,07/12/2020,Agency Staff,Local Government Strategy and Analysis,ALEXANDER MANN SOLUTIONS LTD,,Large,,,5106266258,Contingent Labour,Contingent Labour,EC2N 3AQ,"2,373.94",
"Housing, Communities & Local Government",MHCLG,07/12/2020,Agency Staff,Local Government Strategy and Analysis,ALEXANDER MANN SOLUTIONS LTD,,Large,,,5106266262,Contingent Labour,Contingent Labour,EC2N 3AQ,"2,001.76",
"Housing, Communities & Local Government",MHCLG,07/12/2020,Agency Staff,Stronger Places,ALEXANDER MANN SOLUTIONS LTD,,Large,,,5106266238,Contingent Labour,Interim Vacancy Cover,EC2N 3AQ,"1,016.28",
"Housing, Communities & Local Government",MHCLG,07/12/2020,Agency Staff,Stronger Places,ALEXANDER MANN SOLUTIONS LTD,,Large,,,5106266250,Contingent Labour,contingent labour,EC2N 3AQ,"1,709.22",
"Housing, Communities & Local Government",MHCLG,07/12/2020,Agency Staff,Stronger Places,ALEXANDER MANN SOLUTIONS LTD,,Large,,,5106266254,Contingent Labour,Interim Vacancy Cover,EC2N 3AQ,"2,189.52",
"Housing, Communities & Local Government",MHCLG,07/12/2020,ERDF Work in Progress � Capital,Stronger Places,EAST RIDING OF YORKSHIRE COUNCIL,,,,,7700007834,,ERDF grant payment,HU17 9BA,"9,508.18",Yes
"Housing, Communities & Local Government",MHCLG,07/12/2020,ERDF Work in Progress � Capital,Stronger Places,SOUTH HOLLAND DISTRICT COUNCIL,,,,,7700007836,,ERDF grant payment,PE11 2XE,"206,513.85",Yes
"Housing, Communities & Local Government",MHCLG,07/12/2020,ERDF Work in Progress � Capital,Stronger Places,STAFFORDSHIRE UNIVERSITY,,Large,,,7700007841,,ERDF grant payment,ST4 2DE,"191,905.20",Yes
"Housing, Communities & Local Government",MHCLG,07/12/2020,ERDF Work in Progress � Capital,Stronger Places,WAKEFIELD COUNCIL,,,,,7700007832,,ERDF grant payment,WF1 2EB,"12,000.00",Yes
"Housing, Communities & Local Government",MHCLG,07/12/2020,ERDF Work in Progress � Resource,Stronger Places,ARTS UNIVERSITY BOURNEMOUTH,,Large,,,7700007837,,ERDF grant payment,BH12 5HH,"39,841.52",Yes
"Housing, Communities & Local Government",MHCLG,07/12/2020,ERDF Work in Progress � Resource,Stronger Places,ASTON UNIVERSITY,,Large,,227749751,7700007831,,ERDF grant payment,B4 7ET,"58,985.93",Yes
"Housing, Communities & Local Government",MHCLG,07/12/2020,ERDF Work in Progress � Resource,Stronger Places,CORNWALL COUNCIL,,Large,,,7700007833,,ERDF grant payment,TR1 3AY,"9,850.90",Yes
"Housing, Communities & Local Government",MHCLG,07/12/2020,ERDF Work in Progress � Resource,Stronger Places,CORNWALL COUNCIL,,Large,,,7700007840,,ERDF grant payment,TR1 3AY,"11,938.06",Yes
"Housing, Communities & Local Government",MHCLG,07/12/2020,ERDF Work in Progress � Resource,Stronger Places,DURHAM COUNTY COUNCIL,,,,,7700007835,,ERDF grant payment,DH1 5UF,"52,622.42",Yes
"Housing, Communities & Local Government",MHCLG,07/12/2020,ERDF Work in Progress � Resource,Stronger Places,EAST LONDON UNIVERSITY,,,,,7700007843,,ERDF grant payment,E16 2RD,"135,534.53",Yes
"Housing, Communities & Local Government",MHCLG,07/12/2020,ERDF Work in Progress � Resource,Stronger Places,EAST MIDLANDS CHAMBER(DNL),,,,,7700007827,,ERDF grant payment,S41 8ND,"40,329.34",Yes
"Housing, Communities & Local Government",MHCLG,07/12/2020,ERDF Work in Progress � Resource,Stronger Places,GREATER LONDON AUTHORITY,,Large,,,7700007845,,ERDF grant payment,SE1 2AA,"18,368.00",Yes
"Housing, Communities & Local Government",MHCLG,07/12/2020,ERDF Work in Progress � Resource,Stronger Places,LANCASTER UNIVERISTY,,,,,7700007830,,ERDF grant payment,LA1 4YW,"14,010.45",Yes
"Housing, Communities & Local Government",MHCLG,07/12/2020,ERDF Work in Progress � Resource,Stronger Places,LINCOLN UNIVERSITY,,Large,,,7700007829,,ERDF grant payment,LN6 7TS,"176,497.44",Yes
"Housing, Communities & Local Government",MHCLG,07/12/2020,ERDF Work in Progress � Resource,Stronger Places,LINCOLN UNIVERSITY,,Large,,,7700007842,,ERDF grant offset,LN6 7TS,-560.25,Yes
"Housing, Communities & Local Government",MHCLG,07/12/2020,ERDF Work in Progress � Resource,Stronger Places,NORTH EAST WORLDWIDE LTD,,Small,,,7700007844,,ERDF grant payment,DH1 5TS,"74,243.73",Yes
"Housing, Communities & Local Government",MHCLG,07/12/2020,ERDF Work in Progress � Resource,Stronger Places,SOUTH HOLLAND DISTRICT COUNCIL,,,,,7700007836,,ERDF grant payment,PE11 2XE,"27,732.85",Yes
"Housing, Communities & Local Government",MHCLG,07/12/2020,ERDF Work in Progress � Resource,Stronger Places,STAFFORDSHIRE UNIVERSITY,,Large,,,7700007841,,ERDF grant payment,ST4 2DE,"25,289.23",Yes
"Housing, Communities & Local Government",MHCLG,07/12/2020,ERDF Work in Progress � Resource,Stronger Places,SUNDERLAND CITY COUNCIL,,,,,7700007839,,ERDF grant payment,SR2 7DN,"16,567.36",Yes
"Housing, Communities & Local Government",MHCLG,07/12/2020,ERDF Work in Progress � Resource,Stronger Places,WAKEFIELD COUNCIL,,,,,7700007832,,ERDF grant payment,WF1 2EB,"34,445.96",Yes
"Housing, Communities & Local Government",MHCLG,07/12/2020,ERDF Work in Progress � Resource,Stronger Places,WALSALL MBC,,Large,,,7700007838,,ERDF grant payment,WS1 1TP,"10,164.99",Yes
"Housing, Communities & Local Government",MHCLG,07/12/2020,ERDF Work in Progress � Resource,Stronger Places,WOMEN'S ORGANISATION,,Small,,,7700007828,,ERDF grant payment,L1 0AB,"237,271.98",Yes
"Housing, Communities & Local Government",MHCLG,07/12/2020,Grant in Aid to NDPBs (non budget),Local Government Strategy and Analysis,COMMISSION LOCAL ADMINISTRATION,,,,215271508,2100308092,,DCLG DEL 20/21 budget contribution for the CLAE,CV1 3BH,"1,060,000.00",Yes
"Housing, Communities & Local Government",MHCLG,07/12/2020,Grant in Aid to NDPBs (non budget),Local Government Strategy and Analysis,VALUATION TRIBUNAL SERVICE,,,,211218366,2100308118,,GIA to VTS,E1 8EU,"400,000.00",Yes
"Housing, Communities & Local Government",MHCLG,07/12/2020,IT - Service Contracts,CFO and Corporate,X M A LTD,,Large,,298484148,5106266303,IT Managed / Outsourced Services,Hardware Supp Services 2019/20,NG11 7EP,854.40,
"Housing, Communities & Local Government",MHCLG,07/12/2020,IT - Service Contracts,CFO and Corporate,X M A LTD,,Large,,298484148,5106266305,IT Managed / Outsourced Services,Hardware Supp Services 2019/20,NG11 7EP,427.20,
"Housing, Communities & Local Government",MHCLG,07/12/2020,IT - Service Contracts,CFO and Corporate,X M A LTD,,Large,,298484148,5106266308,IT Managed / Outsourced Services,Hardware Supp Services 2019/20,NG11 7EP,"2,421.87",
"Housing, Communities & Local Government",MHCLG,07/12/2020,IT - Software Maintenance,Housing Planning and Building Safety,AECOM INFRASTRUCTURE & ENVIROMENT U,,Large,,225157072,5106266282,IT Managed / Outsourced Services,Lot 7 - energy assessment models,RG21 7PP,"1,162.20",
"Housing, Communities & Local Government",MHCLG,07/12/2020,IT - Software Maintenance,Local Government Strategy and Analysis,BYTES SOFTWARE SERVICES LTD,,Medium,,225273754,5106266279,IT Managed / Outsourced Services,Subscription Renewal,KT22 7TW,"7,482.43",
"Housing, Communities & Local Government",MHCLG,07/12/2020,Professional services,CFO and Corporate,K INTERNATIONAL LTD,,,,,5106266277,Interpretation and Translation,K International translation services,MK5 8PL,562.50,
"Housing, Communities & Local Government",MHCLG,07/12/2020,Publicity,Local Government Strategy and Analysis,DELTAPOLL LTD,,Micro,,,5106265998,Advertising,Planning system polling,SE1 9PD,"3,000.00",
"Housing, Communities & Local Government",MHCLG,07/12/2020,Repayments of LA Grant (Cap),Stronger Places,PORTSMOUTH CITY COUNCIL,,Public Bodies,,211183082,2300003172,,Grant recovery,PO1 2AR,"-375,645.82",
"Housing, Communities & Local Government",MHCLG,07/12/2020,Software Licences,CFO and Corporate,CORE STREAM LTD,,Small,,,5106266287,Software,RADAR Risk Management System,W1K 7AX,"18,900.00",
"Housing, Communities & Local Government",MHCLG,07/12/2020,Steady State Service Provision,CFO and Corporate,EDENRED (UK GROUP) LTD,,Large,,210186342,5106266288,Business Process Outsourcing Services,EPS Voucher 20/21,SW1V 2RS,"13,425.00",
"Housing, Communities & Local Government",MHCLG,07/12/2020,Training,CFO and Corporate,KPMG LLP (CSL),,Large,,,5106266273,Development and Training,Civil Service Training,E14 5GL,"1,251.00",
"Housing, Communities & Local Government",MHCLG,07/12/2020,Training,CFO and Corporate,KPMG LLP (CSL),,Large,,,5106266283,Development and Training,Civil Service Training,E14 5GL,"1,251.00",
"Housing, Communities & Local Government",MHCLG,07/12/2020,Training,Local Government Strategy and Analysis,OXFORD BROOKES UNIVERSITY,,Large,,,5106266307,Development and Training,Civil Service Training,OX3 0BP,"4,250.00",
"Housing, Communities & Local Government",MHCLG,08/12/2020,Cap Grants to Private Sector Companies,CFO and Corporate,CANTILLON LIMITED,,Medium,,,5106266343,Business Process Outsourcing Services,Cantillon LTD,WD25 8HH,"21,606.00",Yes
"Housing, Communities & Local Government",MHCLG,08/12/2020,Current Grants to Non Profit Bodies,Local Government Strategy and Analysis,UMMA HELP,,,,,2100308135,,Project about genocide and intolerance,B16 9NX,"100,000.00",Yes
"Housing, Communities & Local Government",MHCLG,08/12/2020,ERDF Work in Progress � Capital,Stronger Places,DERBYSHIRE COUNTY COUNCIL,,,,,7700007860,,ERDF grant payment,DE4 3AG,"21,283.80",Yes
"Housing, Communities & Local Government",MHCLG,08/12/2020,ERDF Work in Progress � Capital,Stronger Places,LEICESTER CITY COUNCIL,,,,,7700007858,,ERDF grant payment,LE1 1FZ,"29,055.58",Yes
"Housing, Communities & Local Government",MHCLG,08/12/2020,ERDF Work in Progress � Capital,Stronger Places,UNIVERSITY OF YORK,,,,,7700007846,,ERDF grant payment,YO10 5DD,"57,797.41",Yes
"Housing, Communities & Local Government",MHCLG,08/12/2020,ERDF Work in Progress � Capital,Stronger Places,WESTCOUNTRY RIVERS TRUST,,,,,7700007856,,ERDF grant payment,PL17 8PH,"12,865.98",Yes
"Housing, Communities & Local Government",MHCLG,08/12/2020,ERDF Work in Progress � Capital,Stronger Places,WORCESTERSHIRE COUNTY COUNCIL,,,,,7700007852,,ERDF grant payment,WR5 2NP,"200,369.37",Yes
"Housing, Communities & Local Government",MHCLG,08/12/2020,ERDF Work in Progress � Resource,Stronger Places,ACCESS TO BUSINESS,Yes,Small,,,7700007849,,ERDF grant payment,WV2 1AA,"57,545.20",Yes
"Housing, Communities & Local Government",MHCLG,08/12/2020,ERDF Work in Progress � Resource,Stronger Places,CORNWALL COUNCIL,,Large,,,7700007848,,ERDF grant payment,TR1 3AY,"5,913.53",Yes
"Housing, Communities & Local Government",MHCLG,08/12/2020,ERDF Work in Progress � Resource,Stronger Places,EAST RIDING OF YORKSHIRE COUNCIL,,,,,7700007857,,ERDF grant payment,HU17 9BA,"51,415.18",Yes
"Housing, Communities & Local Government",MHCLG,08/12/2020,ERDF Work in Progress � Resource,Stronger Places,GREATER LONDON AUTHORITY,,Large,,,7700007861,,ERDF grant payment,SE1 2AA,"615,814.55",Yes
"Housing, Communities & Local Government",MHCLG,08/12/2020,ERDF Work in Progress � Resource,Stronger Places,LEICESTER CITY COUNCIL,,,,,7700007858,,ERDF grant payment,LE1 1FZ,"11,627.54",Yes
"Housing, Communities & Local Government",MHCLG,08/12/2020,ERDF Work in Progress � Resource,Stronger Places,LONDON SOUTH BANK UNIVERSITY,,,,,7700007851,,ERDF grant payment,SE1 0AA,"30,206.44",Yes
"Housing, Communities & Local Government",MHCLG,08/12/2020,ERDF Work in Progress � Resource,Stronger Places,NORTH EAST ENTERPRISE AGENCY LTD,,,,,7700007859,,ERDF grant payment,SR5 2TA,"55,429.97",Yes
"Housing, Communities & Local Government",MHCLG,08/12/2020,ERDF Work in Progress � Resource,Stronger Places,SOMERSET COUNTY COUNCIL,,Micro,,,7700007854,,ERDF grant payment,TA1 4DY,"7,075.49",Yes
"Housing, Communities & Local Government",MHCLG,08/12/2020,ERDF Work in Progress � Resource,Stronger Places,SUNDERLAND CITY COUNCIL,,,,,7700007855,,ERDF grant payment,SR2 7DN,"137,326.53",Yes
"Housing, Communities & Local Government",MHCLG,08/12/2020,ERDF Work in Progress � Resource,Stronger Places,TEESSIDE UNIVERSITY,,Large,,,7700007850,,ERDF grant payment,TS1 3BA,"30,886.07",Yes
"Housing, Communities & Local Government",MHCLG,08/12/2020,ERDF Work in Progress � Resource,Stronger Places,UNIVERSITY OF YORK,,,,,7700007846,,ERDF grant payment,YO10 5DD,"62,162.32",Yes
"Housing, Communities & Local Government",MHCLG,08/12/2020,ERDF Work in Progress � Resource,Stronger Places,WENTA,,Small,,,7700007847,,ERDF grant payment,WD24 7ND,"84,694.02",Yes
"Housing, Communities & Local Government",MHCLG,08/12/2020,ERDF Work in Progress � Resource,Stronger Places,WESTCOUNTRY RIVERS TRUST,,,,,7700007856,,ERDF grant payment,PL17 8PH,"62,540.58",Yes
"Housing, Communities & Local Government",MHCLG,08/12/2020,ERDF Work in Progress � Resource,Stronger Places,WORCESTERSHIRE COUNTY COUNCIL,,,,,7700007852,,ERDF grant payment,WR5 2NP,"57,929.85",Yes
"Housing, Communities & Local Government",MHCLG,08/12/2020,ERDF Work in Progress � Resource,Stronger Places,WORCESTERSHIRE COUNTY COUNCIL,,,,,7700007853,,ERDF grant offset,WR5 2NP,"-2,636.71",Yes
"Housing, Communities & Local Government",MHCLG,08/12/2020,EXP � PURCHASE OF GOODS /SERVICES R & D,Local Government Strategy and Analysis,COMMERCIAL EVALUATIONS LTD,,Micro,,,5106266328,Research,Licence Renewal,CM1 3JB,"4,750.00",
"Housing, Communities & Local Government",MHCLG,08/12/2020,Grant in Aid to NDPBs (non budget),Housing Planning and Building Safety,HOMES ENGLAND,,Public Bodies,,215576860,2100308125,,Homes England September 2020 Grant in Aid payment,NE11 0NA,"81,845,556.00",Yes
"Housing, Communities & Local Government",MHCLG,08/12/2020,IT - Service Contracts,CFO and Corporate,EXELA TECHNOLOGIES LIMITED,,Large,,,5106266313,IT Managed / Outsourced Services,Datamart 1st Line Support-set up fees,TW20 9AB,"3,077.00",
"Housing, Communities & Local Government",MHCLG,08/12/2020,IT - Service Contracts,CFO and Corporate,EXELA TECHNOLOGIES LIMITED,,Large,,,5106266347,IT Managed / Outsourced Services,Datamart 1st Line Support-Service charge,TW20 9AB,"4,463.78",
"Housing, Communities & Local Government",MHCLG,08/12/2020,IT - Software Maintenance,CFO and Corporate,DATAVID LIMITED,,Micro,,223819458,5106266339,IT Managed / Outsourced Services,E-Claims Technical Support & Development,RG4 6NZ,"23,200.00",
"Housing, Communities & Local Government",MHCLG,08/12/2020,IT - Software Maintenance,CFO and Corporate,DATAVID LIMITED,,Micro,,223819458,5106266340,IT Managed / Outsourced Services,E-Claims Technical Support & Development,RG4 6NZ,"25,235.00",
"Housing, Communities & Local Government",MHCLG,08/12/2020,Legal Fees,Local Government Strategy and Analysis,PINSENT MASONS LLP,,Large,,215580626,5106266361,Legal,Legal Advice,EC2A 4ES,309.60,
"Housing, Communities & Local Government",MHCLG,08/12/2020,Legal Fees,Stronger Places,GOVERNMENT LEGAL DEPARTMENT,,Public Bodies,,215580680,5106266352,Legal,Legal Advice,SW1H 9GL,"29,741.09",
"Housing, Communities & Local Government",MHCLG,08/12/2020,Professional services,CFO and Corporate,DCLG GOVERNMENT PROCUREMENT CARD,,,,,1000004874,Environmental Services,Google GSuite accounts,TN37 7GA,368.89,
"Housing, Communities & Local Government",MHCLG,08/12/2020,Professional services,Housing Planning and Building Safety,URBED(URBANISM ENVIROMENT & DESIGN),,Micro,,,5106265970,Technical Services,Development of the National Model Design,M1 1HR,"32,098.50",
"Housing, Communities & Local Government",MHCLG,08/12/2020,Publications,Local Government Strategy and Analysis,JONES YARRELL LEADENHALL LTD,,Large,,505670265,5106266342,Learning and Development Materials,Newspaper & Magazine Subscription 20/21,E3 3JH,282.92,
"Housing, Communities & Local Government",MHCLG,08/12/2020,Steady State Service Provision,CFO and Corporate,ALLPAY LIMITED,,Medium,,738359918,5106266053,Business Process Outsourcing Services,BACS Bureau Service 12 months,HR1 3SE,"1,134.00",
"Housing, Communities & Local Government",MHCLG,08/12/2020,Steady State Service Provision,Housing Planning and Building Safety,GROUNDWORK UK,Yes,,,739193758,5106266275,Business Process Outsourcing Services,Grant admin costs,B1 2RR,"6,522.00",
"Housing, Communities & Local Government",MHCLG,08/12/2020,Steady State Service Provision,Housing Planning and Building Safety,GROUNDWORK UK,Yes,,,739193758,5106266280,Business Process Outsourcing Services,Grant admin costs,B1 2RR,"3,000.00",
"Housing, Communities & Local Government",MHCLG,08/12/2020,Steady State Service Provision,Housing Planning and Building Safety,SERCO LTD,,Large,,216308056,5106266206,Business Process Outsourcing Services,Right to buy agent,RG27 9UY,"30,768.00",
"Housing, Communities & Local Government",MHCLG,08/12/2020,Telephone call costs,CFO and Corporate,DCLG GOVERNMENT PROCUREMENT CARD,,,,,1000004874,,Zoom software for VC,TN37 7GA,278.28,
"Housing, Communities & Local Government",MHCLG,08/12/2020,Training,CFO and Corporate,CMP RESOLUTIONS,,Small,,,5106266188,Development and Training,Civil Service Training,SG8 5NT,800.00,
"Housing, Communities & Local Government",MHCLG,08/12/2020,Training,CFO and Corporate,KORN FERRY (UK) LTD,,Large,,,5106266312,Development and Training,Civil Service Training,SW1Y 6QB,"1,400.00",
"Housing, Communities & Local Government",MHCLG,08/12/2020,Training,CFO and Corporate,Lumiere Consulting Ltd,,Micro,,,5106266315,Development and Training,Civil Service Training,W5 5NT,"1,600.00",
"Housing, Communities & Local Government",MHCLG,08/12/2020,Training,CFO and Corporate,TCC LTD,,Micro,,,5106266325,Development and Training,Civil Service Training,CW11 1FY,695.00,
"Housing, Communities & Local Government",MHCLG,09/12/2020,Cap Grants to Local Authorities (DEL),CFO and Corporate,WATES PROPERTY SERVICES LTD,,Large,,,5106266278,Business Process Outsourcing Services,Specialist Contractors for Grenfell,EN1 3XA,"344,008.31",Yes
"Housing, Communities & Local Government",MHCLG,09/12/2020,Cap Grants to Local Authorities (DEL),CFO and Corporate,WATES PROPERTY SERVICES LTD,,Large,,,5106266281,Business Process Outsourcing Services,Specialist Contractors for Grenfell,EN1 3XA,"468,563.92",Yes
"Housing, Communities & Local Government",MHCLG,09/12/2020,Cap Grants to Local Authorities (DEL),Housing Planning and Building Safety,BARKING & DAGENHAM LB (HSG),,,,217142293,3700080241,,Grant payable by the Exchequer,RM10 7BY,"220,365.00",Yes
"Housing, Communities & Local Government",MHCLG,09/12/2020,Cap Grants to Local Authorities (DEL),Housing Planning and Building Safety,BARNSLEY MBC,,,,211178595,3700080247,,Grant payable by the Exchequer,S70 2AQ,"400,766.00",Yes
"Housing, Communities & Local Government",MHCLG,09/12/2020,Cap Grants to Local Authorities (DEL),Housing Planning and Building Safety,BATH & NE SOMERSET DC (HSG),,,,214502499,3700080312,,Grant payable by the Exchequer,BA1 5AW,"171,116.00",Yes
"Housing, Communities & Local Government",MHCLG,09/12/2020,Cap Grants to Local Authorities (DEL),Housing Planning and Building Safety,BEDFORD UNITARY AUTHORITY,,,,225682160,3700080281,,Grant payable by the Exchequer,MK40 1SJ,"167,417.00",Yes
"Housing, Communities & Local Government",MHCLG,09/12/2020,Cap Grants to Local Authorities (DEL),Housing Planning and Building Safety,BEXLEY LB (HSG),,,,,3700080234,,Grant payable by the Exchequer,DA8 1TL,"351,865.00",Yes
"Housing, Communities & Local Government",MHCLG,09/12/2020,Cap Grants to Local Authorities (DEL),Housing Planning and Building Safety,BIRMINGHAM CITY CNCL,,,,213780559,3700080204,,Grant payable by the Exchequer,B2 2AJ,"1,536,004.00",Yes
"Housing, Communities & Local Government",MHCLG,09/12/2020,Cap Grants to Local Authorities (DEL),Housing Planning and Building Safety,BLACKBURN WITH DARWEN BC,,,,,3700080324,,Grant payable by the Exchequer,BB1 7DY,"252,744.00",Yes
"Housing, Communities & Local Government",MHCLG,09/12/2020,Cap Grants to Local Authorities (DEL),Housing Planning and Building Safety,BLACKPOOL BC,,,,,3700080189,,Grant payable by the Exchequer,FY1 1NA,"310,325.00",Yes
"Housing, Communities & Local Government",MHCLG,09/12/2020,Cap Grants to Local Authorities (DEL),Housing Planning and Building Safety,BOLTON MBC,,,,,3700080202,,Grant payable by the Exchequer,BL1 1RU,"424,601.00",Yes
"Housing, Communities & Local Government",MHCLG,09/12/2020,Cap Grants to Local Authorities (DEL),Housing Planning and Building Safety,"Bournemouth, Christchurch and Poole",,,,,3700080180,,Grant payable by the Exchequer,BH2 6DY,"417,531.00",Yes
"Housing, Communities & Local Government",MHCLG,09/12/2020,Cap Grants to Local Authorities (DEL),Housing Planning and Building Safety,BRACKNELL FOREST DC,,,,236184867,3700080315,,Grant payable by the Exchequer,RG12 1AQ,"114,923.00",Yes
"Housing, Communities & Local Government",MHCLG,09/12/2020,Cap Grants to Local Authorities (DEL),Housing Planning and Building Safety,BRADFORD MBC,,,,,3700080213,,Grant payable by the Exchequer,BD1 1HX,"609,642.00",Yes
"Housing, Communities & Local Government",MHCLG,09/12/2020,Cap Grants to Local Authorities (DEL),Housing Planning and Building Safety,BRENT LB (HSG),,,,,3700080207,,Grant payable by the Exchequer,HA9 0FJ,"630,976.00",Yes
"Housing, Communities & Local Government",MHCLG,09/12/2020,Cap Grants to Local Authorities (DEL),Housing Planning and Building Safety,BRIGHTON & HOVE CITY COUNCIL,,Large,,228455218,3700080179,,Grant payable by the Exchequer,BN1 3JE,"274,484.00",Yes
"Housing, Communities & Local Government",MHCLG,09/12/2020,Cap Grants to Local Authorities (DEL),Housing Planning and Building Safety,BRISTOL CITY COUNCIL (HSG),,,,211103882,3700080198,,Grant payable by the Exchequer,BS3 9FS,"418,722.00",Yes
"Housing, Communities & Local Government",MHCLG,09/12/2020,Cap Grants to Local Authorities (DEL),Housing Planning and Building Safety,BROMLEY LB,,,,211331954,3700080323,,Grant payable by the Exchequer,BR1 3UH,"289,868.00",Yes
"Housing, Communities & Local Government",MHCLG,09/12/2020,Cap Grants to Local Authorities (DEL),Housing Planning and Building Safety,BUCKINGHAMSHIRE UA,,,,,3700080283,,Grant payable by the Exchequer,HP19 8FF,"482,522.00",Yes
"Housing, Communities & Local Government",MHCLG,09/12/2020,Cap Grants to Local Authorities (DEL),Housing Planning and Building Safety,BURY MBC,,,,,3700080317,,Grant payable by the Exchequer,BL9 0SW,"246,439.00",Yes
"Housing, Communities & Local Government",MHCLG,09/12/2020,Cap Grants to Local Authorities (DEL),Housing Planning and Building Safety,CALDERDALE MBC,,,,,3700080183,,Grant payable by the Exchequer,HX1 1YP,"359,939.00",Yes
"Housing, Communities & Local Government",MHCLG,09/12/2020,Cap Grants to Local Authorities (DEL),Housing Planning and Building Safety,CAMBRIDGESHIRE COUNTY CNCL,,,,219047347,3700080284,,Grant payable by the Exchequer,CB3 0AP,"601,622.00",Yes
"Housing, Communities & Local Government",MHCLG,09/12/2020,Cap Grants to Local Authorities (DEL),Housing Planning and Building Safety,CAMDEN LB,,,,211651836,3700080250,,Grant payable by the Exchequer,N1C 4AG,"124,220.00",Yes
"Housing, Communities & Local Government",MHCLG,09/12/2020,Cap Grants to Local Authorities (DEL),Housing Planning and Building Safety,CENTRAL BEDFORDSHIRE COUNCIL,,,,232624882,3700080272,,Grant payable by the Exchequer,SG17 5TQ,"228,652.00",Yes
"Housing, Communities & Local Government",MHCLG,09/12/2020,Cap Grants to Local Authorities (DEL),Housing Planning and Building Safety,CHESHIRE EAST COUNCIL,,Large,,,3700080264,,Grant payable by the Exchequer,CW11 1HZ,"277,962.00",Yes
"Housing, Communities & Local Government",MHCLG,09/12/2020,Cap Grants to Local Authorities (DEL),Housing Planning and Building Safety,CHESHIRE WEST & CHESTER UA,,Large,,215584383,3700080237,,Grant payable by the Exchequer,CH1 2NP,"437,704.00",Yes
"Housing, Communities & Local Government",MHCLG,09/12/2020,Cap Grants to Local Authorities (DEL),Housing Planning and Building Safety,CITY OF LONDON (HSG),,,,217471460,3700080320,,Grant payable by the Exchequer,EC2P 2EJ,"4,402.00",Yes
"Housing, Communities & Local Government",MHCLG,09/12/2020,Cap Grants to Local Authorities (DEL),Housing Planning and Building Safety,CITY OF SUNDERLAND (HSG),,,,215599312,3700080302,,Grant payable by the Exchequer,SR2 7DN,"481,269.00",Yes
"Housing, Communities & Local Government",MHCLG,09/12/2020,Cap Grants to Local Authorities (DEL),Housing Planning and Building Safety,CITY OF WAKEFIELD MDC,,,,,3700080262,,Grant payable by the Exchequer,WF1 2QW,"515,128.00",Yes
"Housing, Communities & Local Government",MHCLG,09/12/2020,Cap Grants to Local Authorities (DEL),Housing Planning and Building Safety,CORNWALL UNITARY AUTHORITY,,,,211334404,3700080305,,Grant payable by the Exchequer,TR1 3AY,"895,810.00",Yes
"Housing, Communities & Local Government",MHCLG,09/12/2020,Cap Grants to Local Authorities (DEL),Housing Planning and Building Safety,COVENTRY CITY CNCL,,,,210384802,3700080276,,Grant payable by the Exchequer,CV1 2QL,"496,256.00",Yes
"Housing, Communities & Local Government",MHCLG,09/12/2020,Cap Grants to Local Authorities (DEL),Housing Planning and Building Safety,CROYDON LB,,,,212419973,3700080270,,Grant payable by the Exchequer,CR0 1EA,"355,152.00",Yes
"Housing, Communities & Local Government",MHCLG,09/12/2020,Cap Grants to Local Authorities (DEL),Housing Planning and Building Safety,CUMBRIA COUNTY CNCL,,,,211316542,3700080215,,Grant payable by the Exchequer,CA3 8NA,"846,205.00",Yes
"Housing, Communities & Local Government",MHCLG,09/12/2020,Cap Grants to Local Authorities (DEL),Housing Planning and Building Safety,DARLINGTON BC,,,,,3700080203,,Grant payable by the Exchequer,TS19 1JA,"126,191.00",Yes
"Housing, Communities & Local Government",MHCLG,09/12/2020,Cap Grants to Local Authorities (DEL),Housing Planning and Building Safety,DERBY CITY CNCL,,,,229641378,3700080319,,Grant payable by the Exchequer,DE1 2FS,"275,715.00",Yes
"Housing, Communities & Local Government",MHCLG,09/12/2020,Cap Grants to Local Authorities (DEL),Housing Planning and Building Safety,DERBYSHIRE COUNTYCOUNCIL,,,,232152967,3700080296,,Grant payable by the Exchequer,DE4 3AG,"937,285.00",Yes
"Housing, Communities & Local Government",MHCLG,09/12/2020,Cap Grants to Local Authorities (DEL),Housing Planning and Building Safety,DEVON COUNTY CNCL,,,,213754018,3700080251,,Grant payable by the Exchequer,EX2 4QJ,"978,508.00",Yes
"Housing, Communities & Local Government",MHCLG,09/12/2020,Cap Grants to Local Authorities (DEL),Housing Planning and Building Safety,DONCASTER MBC,,,,,3700080277,,Grant payable by the Exchequer,DN1 3QA,"330,166.00",Yes
"Housing, Communities & Local Government",MHCLG,09/12/2020,Cap Grants to Local Authorities (DEL),Housing Planning and Building Safety,DORSET COUNCIL,,,,,3700080205,,Grant payable by the Exchequer,DT1 1XJ,"492,786.00",Yes
"Housing, Communities & Local Government",MHCLG,09/12/2020,Cap Grants to Local Authorities (DEL),Housing Planning and Building Safety,DUDLEY MBC,,,,,3700080226,,Grant payable by the Exchequer,DY1 1HF,"764,758.00",Yes
"Housing, Communities & Local Government",MHCLG,09/12/2020,Cap Grants to Local Authorities (DEL),Housing Planning and Building Safety,DURHAM COUNTY COUNCIL,,,,224004882,3700080222,,Grant payable by the Exchequer,DH1 5UE,"829,308.00",Yes
"Housing, Communities & Local Government",MHCLG,09/12/2020,Cap Grants to Local Authorities (DEL),Housing Planning and Building Safety,EALING LB,,,,,3700080301,,Grant payable by the Exchequer,W5 2HL,"441,996.00",Yes
"Housing, Communities & Local Government",MHCLG,09/12/2020,Cap Grants to Local Authorities (DEL),Housing Planning and Building Safety,EAST RIDING OF YORKS (HSG),,,,423159987,3700080201,,Grant payable by the Exchequer,HU17 9BA,"366,252.00",Yes
"Housing, Communities & Local Government",MHCLG,09/12/2020,Cap Grants to Local Authorities (DEL),Housing Planning and Building Safety,EAST SUSSEX COUNTY CNCL,,,,,3700080310,,Grant payable by the Exchequer,BN7 1SF,"964,059.00",Yes
"Housing, Communities & Local Government",MHCLG,09/12/2020,Cap Grants to Local Authorities (DEL),Housing Planning and Building Safety,ENFIELD LB,,,,,3700080322,,Grant payable by the Exchequer,EN1 3XF,"443,356.00",Yes
"Housing, Communities & Local Government",MHCLG,09/12/2020,Cap Grants to Local Authorities (DEL),Housing Planning and Building Safety,ESSEX COUNTY CNCL,,,,233572986,3700080242,,Grant payable by the Exchequer,CM1 1JZ,"1,410,489.00",Yes
"Housing, Communities & Local Government",MHCLG,09/12/2020,Cap Grants to Local Authorities (DEL),Housing Planning and Building Safety,GATESHEAD COUNCIL,,,,216116041,3700080232,,Grant payable by the Exchequer,NE8 1HH,"250,538.00",Yes
"Housing, Communities & Local Government",MHCLG,09/12/2020,Cap Grants to Local Authorities (DEL),Housing Planning and Building Safety,GLOUCESTERSHIRE COUNTY CNCL,,,,211272067,3700080298,,Grant payable by the Exchequer,GL1 2TG,"812,007.00",Yes
"Housing, Communities & Local Government",MHCLG,09/12/2020,Cap Grants to Local Authorities (DEL),Housing Planning and Building Safety,GREENWICH LB,,,,,3700080304,,Grant payable by the Exchequer,SE18 6HQ,"339,032.00",Yes
"Housing, Communities & Local Government",MHCLG,09/12/2020,Cap Grants to Local Authorities (DEL),Housing Planning and Building Safety,HALTON BC (HSG),,,,,3700080303,,Grant payable by the Exchequer,WA8 7QF,"236,719.00",Yes
"Housing, Communities & Local Government",MHCLG,09/12/2020,Cap Grants to Local Authorities (DEL),Housing Planning and Building Safety,HAMMERSMITH & FULHAM LB,,,,216929489,3700080291,,Grant payable by the Exchequer,W6 9JU,"177,488.00",Yes
"Housing, Communities & Local Government",MHCLG,09/12/2020,Cap Grants to Local Authorities (DEL),Housing Planning and Building Safety,HAMPSHIRE COUNTY COUNCIL,,,,211325832,3700080248,,Grant payable by the Exchequer,SO23 8UB,"1,691,388.00",Yes
"Housing, Communities & Local Government",MHCLG,09/12/2020,Cap Grants to Local Authorities (DEL),Housing Planning and Building Safety,HARINGEY LB,,,,217471767,3700080193,,Grant payable by the Exchequer,N22 4TR,"317,909.00",Yes
"Housing, Communities & Local Government",MHCLG,09/12/2020,Cap Grants to Local Authorities (DEL),Housing Planning and Building Safety,HARROW LB,,,,,3700080256,,Grant payable by the Exchequer,HA1 2UZ,"204,303.00",Yes
"Housing, Communities & Local Government",MHCLG,09/12/2020,Cap Grants to Local Authorities (DEL),Housing Planning and Building Safety,HARTLEPOOL BOROUGH COUNCIL,,,,424291797,3700080223,,Grant payable by the Exchequer,TS24 8AY,"145,004.00",Yes
"Housing, Communities & Local Government",MHCLG,09/12/2020,Cap Grants to Local Authorities (DEL),Housing Planning and Building Safety,HAVERING LB,,,,211209770,3700080261,,Grant payable by the Exchequer,RM1 3BB,"244,088.00",Yes
"Housing, Communities & Local Government",MHCLG,09/12/2020,Cap Grants to Local Authorities (DEL),Housing Planning and Building Safety,HEREFORDSHIRE COUNCIL,,,,,3700080218,,Grant payable by the Exchequer,HR4 0XH,"269,229.00",Yes
"Housing, Communities & Local Government",MHCLG,09/12/2020,Cap Grants to Local Authorities (DEL),Housing Planning and Building Safety,HERTFORDSHIRE COUNTY CNCL,,,,210659897,3700080197,,Grant payable by the Exchequer,SG13 8DQ,"980,706.00",Yes
"Housing, Communities & Local Government",MHCLG,09/12/2020,Cap Grants to Local Authorities (DEL),Housing Planning and Building Safety,HILLINGDON LB,,,,211198585,3700080279,,Grant payable by the Exchequer,UB8 1UW,"606,548.00",Yes
"Housing, Communities & Local Government",MHCLG,09/12/2020,Cap Grants to Local Authorities (DEL),Housing Planning and Building Safety,HOUNSLOW LB,,Public Bodies,,210388999,3700080308,,Grant payable by the Exchequer,TW3 4DN,"355,971.00",Yes
"Housing, Communities & Local Government",MHCLG,09/12/2020,Cap Grants to Local Authorities (DEL),Housing Planning and Building Safety,HULL CITY COUNCIL,,,,217460984,3700080314,,Grant payable by the Exchequer,HU1 2AA,"341,100.00",Yes
"Housing, Communities & Local Government",MHCLG,09/12/2020,Cap Grants to Local Authorities (DEL),Housing Planning and Building Safety,ISLE OF WIGHT CNCL,,,,236431730,3700080274,,Grant payable by the Exchequer,PO30 1UD,"269,631.00",Yes
"Housing, Communities & Local Government",MHCLG,09/12/2020,Cap Grants to Local Authorities (DEL),Housing Planning and Building Safety,ISLES OF SCILLY COUNCIL,,,,214146040,3700080246,,Grant payable by the Exchequer,TR21 0LW,"3,482.00",Yes
"Housing, Communities & Local Government",MHCLG,09/12/2020,Cap Grants to Local Authorities (DEL),Housing Planning and Building Safety,ISLINGTON LB,,,,225716729,3700080208,,Grant payable by the Exchequer,N1 1XR,"230,200.00",Yes
"Housing, Communities & Local Government",MHCLG,09/12/2020,Cap Grants to Local Authorities (DEL),Housing Planning and Building Safety,KENT COUNTY CNCL,,,,211334420,3700080195,,Grant payable by the Exchequer,ME14 1RF,"2,273,299.00",Yes
"Housing, Communities & Local Government",MHCLG,09/12/2020,Cap Grants to Local Authorities (DEL),Housing Planning and Building Safety,KINGSTON UPON THAMES  (HSG),,,,211379941,3700080271,,Grant payable by the Exchequer,KT1 1EU,"180,397.00",Yes
"Housing, Communities & Local Government",MHCLG,09/12/2020,Cap Grants to Local Authorities (DEL),Housing Planning and Building Safety,KIRKLEES COUNCIL (HSG),,Large,,,3700080199,,Grant payable by the Exchequer,HD1 2YU,"430,073.00",Yes
"Housing, Communities & Local Government",MHCLG,09/12/2020,Cap Grants to Local Authorities (DEL),Housing Planning and Building Safety,KNOWSLEY MBC,,,,,3700080307,,Grant payable by the Exchequer,L36 9YZ,"325,955.00",Yes
"Housing, Communities & Local Government",MHCLG,09/12/2020,Cap Grants to Local Authorities (DEL),Housing Planning and Building Safety,LANCASHIRE COUNTY CNCL,,,,233136584,3700080181,,Grant payable by the Exchequer,PR1 8RD,"1,983,616.00",Yes
"Housing, Communities & Local Government",MHCLG,09/12/2020,Cap Grants to Local Authorities (DEL),Housing Planning and Building Safety,LEEDS CITY CNCL,,Micro,,,3700080311,,Grant payable by the Exchequer,LS1 1JF,"983,337.00",Yes
"Housing, Communities & Local Government",MHCLG,09/12/2020,Cap Grants to Local Authorities (DEL),Housing Planning and Building Safety,LEICESTER CITY CNCL,,,,228219960,3700080230,,Grant payable by the Exchequer,LE1 1FZ,"322,081.00",Yes
"Housing, Communities & Local Government",MHCLG,09/12/2020,Cap Grants to Local Authorities (DEL),Housing Planning and Building Safety,LEICESTERSHIRE COUNTY CNCL,,,,423679836,3700080200,,Grant payable by the Exchequer,LE3 8RB,"527,769.00",Yes
"Housing, Communities & Local Government",MHCLG,09/12/2020,Cap Grants to Local Authorities (DEL),Housing Planning and Building Safety,LEWISHAM LB (HSG),,Large,,235653300,3700080229,,Grant payable by the Exchequer,SE6 4RU,"180,262.00",Yes
"Housing, Communities & Local Government",MHCLG,09/12/2020,Cap Grants to Local Authorities (DEL),Housing Planning and Building Safety,LINCOLNSHIRE COUNTY COUNCIL,,,,,3700080257,,Grant payable by the Exchequer,LN2 1DY,"827,925.00",Yes
"Housing, Communities & Local Government",MHCLG,09/12/2020,Cap Grants to Local Authorities (DEL),Housing Planning and Building Safety,LIVERPOOL CITY COUNCIL,,,,,3700080244,,Grant payable by the Exchequer,L2 2DH,"1,010,425.00",Yes
"Housing, Communities & Local Government",MHCLG,09/12/2020,Cap Grants to Local Authorities (DEL),Housing Planning and Building Safety,LONDON BOROUGH OF BARNET,,,,211049507,3700080280,,Grant payable by the Exchequer,NN1 1NP,"342,317.00",Yes
"Housing, Communities & Local Government",MHCLG,09/12/2020,Cap Grants to Local Authorities (DEL),Housing Planning and Building Safety,LONDON BOROUGH OF HACKNEY,,,,225221597,3700080259,,Grant payable by the Exchequer,E8 4RU,"205,387.00",Yes
"Housing, Communities & Local Government",MHCLG,09/12/2020,Cap Grants to Local Authorities (DEL),Housing Planning and Building Safety,LONDON BOROUGH OF LAMBETH,,,,228216479,3700080243,,Grant payable by the Exchequer,SW2 1RL,"199,183.00",Yes
"Housing, Communities & Local Government",MHCLG,09/12/2020,Cap Grants to Local Authorities (DEL),Housing Planning and Building Safety,LONDON BOROUGH OF NEWHAM,,,,211381004,3700080216,,Grant payable by the Exchequer,E16 2QU,"337,991.00",Yes
"Housing, Communities & Local Government",MHCLG,09/12/2020,Cap Grants to Local Authorities (DEL),Housing Planning and Building Safety,LONDON BOROUGH OF REDBRIDGE,,,,211341417,3700080235,,Grant payable by the Exchequer,IG1 1NN,"288,281.00",Yes
"Housing, Communities & Local Government",MHCLG,09/12/2020,Cap Grants to Local Authorities (DEL),Housing Planning and Building Safety,LUTON BC,,,,365112155,3700080238,,Grant payable by the Exchequer,LU1 2BQ,"190,879.00",Yes
"Housing, Communities & Local Government",MHCLG,09/12/2020,Cap Grants to Local Authorities (DEL),Housing Planning and Building Safety,MANCHESTER CITY CNCL (HSG),,,,211241393,3700080285,,Grant payable by the Exchequer,M60 2JR,"1,006,680.00",Yes
"Housing, Communities & Local Government",MHCLG,09/12/2020,Cap Grants to Local Authorities (DEL),Housing Planning and Building Safety,MEDWAY TOWNS D C (HSG),,,,,3700080196,,Grant payable by the Exchequer,ME4 4TR,"293,204.00",Yes
"Housing, Communities & Local Government",MHCLG,09/12/2020,Cap Grants to Local Authorities (DEL),Housing Planning and Building Safety,MERTON LB,,,,,3700080249,,Grant payable by the Exchequer,SM4 5DX,"172,341.00",Yes
"Housing, Communities & Local Government",MHCLG,09/12/2020,Cap Grants to Local Authorities (DEL),Housing Planning and Building Safety,MIDDLESBROUGH BC,,Large,,,3700080288,,Grant payable by the Exchequer,TS1 9GA,"269,166.00",Yes
"Housing, Communities & Local Government",MHCLG,09/12/2020,Cap Grants to Local Authorities (DEL),Housing Planning and Building Safety,MILTON KEYNES BC,,,,,3700080318,,Grant payable by the Exchequer,MK9 3WJ,"150,452.00",Yes
"Housing, Communities & Local Government",MHCLG,09/12/2020,Cap Grants to Local Authorities (DEL),Housing Planning and Building Safety,NEWCASTLE UPON TYNE DC,,,,239154040,3700080290,,Grant payable by the Exchequer,NE99 2BN,"323,086.00",Yes
"Housing, Communities & Local Government",MHCLG,09/12/2020,Cap Grants to Local Authorities (DEL),Housing Planning and Building Safety,NORFOLK COUNTY COUNCIL,,,,232602789,3700080182,,Grant payable by the Exchequer,NR1 2DW,"1,086,787.00",Yes
"Housing, Communities & Local Government",MHCLG,09/12/2020,Cap Grants to Local Authorities (DEL),Housing Planning and Building Safety,NORTH EAST LINCOLN DC (HSG),,,,211242737,3700080286,,Grant payable by the Exchequer,DN31 1HU,"382,228.00",Yes
"Housing, Communities & Local Government",MHCLG,09/12/2020,Cap Grants to Local Authorities (DEL),Housing Planning and Building Safety,NORTH LINCOLNSHIRE DC (HSG),,Public Bodies,,424005502,3700080258,,Grant payable by the Exchequer,DN16 1AB,"307,017.00",Yes
"Housing, Communities & Local Government",MHCLG,09/12/2020,Cap Grants to Local Authorities (DEL),Housing Planning and Building Safety,NORTH SOMERSET COUNCIL,,Large,,,3700080211,,Grant payable by the Exchequer,BS23 1UJ,"280,246.00",Yes
"Housing, Communities & Local Government",MHCLG,09/12/2020,Cap Grants to Local Authorities (DEL),Housing Planning and Building Safety,NORTH TYNESIDE MBC,,,,,3700080293,,Grant payable by the Exchequer,NE27 0BY,"221,804.00",Yes
"Housing, Communities & Local Government",MHCLG,09/12/2020,Cap Grants to Local Authorities (DEL),Housing Planning and Building Safety,NORTH YORKSHIRE CC (DL7 8AL),,,,,3700080325,,Grant payable by the Exchequer,DL7 8AL,"607,007.00",Yes
"Housing, Communities & Local Government",MHCLG,09/12/2020,Cap Grants to Local Authorities (DEL),Housing Planning and Building Safety,NORTHAMPTONSHIRE CC,,,,,3700080306,,Grant payable by the Exchequer,CB3 0AP,"607,692.00",Yes
"Housing, Communities & Local Government",MHCLG,09/12/2020,Cap Grants to Local Authorities (DEL),Housing Planning and Building Safety,NORTHUMBERLAND COUNTY COUNCIL,,,,210308905,3700080294,,Grant payable by the Exchequer,NE61 2EF,"395,058.00",Yes
"Housing, Communities & Local Government",MHCLG,09/12/2020,Cap Grants to Local Authorities (DEL),Housing Planning and Building Safety,NOTTINGHAM CITY COUNCIL,,,,214495447,3700080263,,Grant payable by the Exchequer,NG2 3NG,"328,542.00",Yes
"Housing, Communities & Local Government",MHCLG,09/12/2020,Cap Grants to Local Authorities (DEL),Housing Planning and Building Safety,NOTTINGHAMSHIRE COUNTY CNCL,,,,,3700080219,,Grant payable by the Exchequer,NG1 4BU,"935,935.00",Yes
"Housing, Communities & Local Government",MHCLG,09/12/2020,Cap Grants to Local Authorities (DEL),Housing Planning and Building Safety,OLDHAM MBC,,,,213015574,3700080214,,Grant payable by the Exchequer,OL1 1UH,"278,086.00",Yes
"Housing, Communities & Local Government",MHCLG,09/12/2020,Cap Grants to Local Authorities (DEL),Housing Planning and Building Safety,OXFORDSHIRE CC,,,,228216438,3700080224,,Grant payable by the Exchequer,OX1 1TH,"790,194.00",Yes
"Housing, Communities & Local Government",MHCLG,09/12/2020,Cap Grants to Local Authorities (DEL),Housing Planning and Building Safety,PETERBOROUGH CITY CNCL,,,,,3700080220,,Grant payable by the Exchequer,PE1 1HG,"265,400.00",Yes
"Housing, Communities & Local Government",MHCLG,09/12/2020,Cap Grants to Local Authorities (DEL),Housing Planning and Building Safety,PLYMOUTH CITY CNCL,,Public Bodies,,236416095,3700080329,,Grant payable by the Exchequer,PL1 2AA,"333,922.00",Yes
"Housing, Communities & Local Government",MHCLG,09/12/2020,Cap Grants to Local Authorities (DEL),Housing Planning and Building Safety,PORTSMOUTH CITY COUNCIL,,Large,,211183082,3700080287,,Grant payable by the Exchequer,PO1 2AR,"244,431.00",Yes
"Housing, Communities & Local Government",MHCLG,09/12/2020,Cap Grants to Local Authorities (DEL),Housing Planning and Building Safety,READING BC,,,,210220399,3700080186,,Grant payable by the Exchequer,RG1 7TD,"142,093.00",Yes
"Housing, Communities & Local Government",MHCLG,09/12/2020,Cap Grants to Local Authorities (DEL),Housing Planning and Building Safety,REDCAR & CLEVELAND BOROUGH COUNCIL,,,,215175196,3700080240,,Grant payable by the Exchequer,TS10 1RT,"212,454.00",Yes
"Housing, Communities & Local Government",MHCLG,09/12/2020,Cap Grants to Local Authorities (DEL),Housing Planning and Building Safety,RICHMOND UPON THAMES LB,,,,228868535,3700080273,,Grant payable by the Exchequer,TW1 3BZ,"228,534.00",Yes
"Housing, Communities & Local Government",MHCLG,09/12/2020,Cap Grants to Local Authorities (DEL),Housing Planning and Building Safety,ROCHDALE MBC,,,,,3700080255,,Grant payable by the Exchequer,OL16 1YG,"354,524.00",Yes
"Housing, Communities & Local Government",MHCLG,09/12/2020,Cap Grants to Local Authorities (DEL),Housing Planning and Building Safety,ROTHERHAM MBC,,,,211266937,3700080300,,Grant payable by the Exchequer,S60 1AE,"363,585.00",Yes
"Housing, Communities & Local Government",MHCLG,09/12/2020,Cap Grants to Local Authorities (DEL),Housing Planning and Building Safety,ROYAL BOROUGH OF KENSINGTON & CHELS,,,,211124466,3700080239,,Grant payable by the Exchequer,W8 7NX,"113,906.00",Yes
"Housing, Communities & Local Government",MHCLG,09/12/2020,Cap Grants to Local Authorities (DEL),Housing Planning and Building Safety,RUTLAND CC,,,,,3700080326,,Grant payable by the Exchequer,LE15 6HP,"32,072.00",Yes
"Housing, Communities & Local Government",MHCLG,09/12/2020,Cap Grants to Local Authorities (DEL),Housing Planning and Building Safety,SALFORD CITY CNCL,,,,213180073,3700080217,,Grant payable by the Exchequer,M27 5AW,"415,357.00",Yes
"Housing, Communities & Local Government",MHCLG,09/12/2020,Cap Grants to Local Authorities (DEL),Housing Planning and Building Safety,SANDWELL MBC,,,,,3700080227,,Grant payable by the Exchequer,B69 3BS,"561,174.00",Yes
"Housing, Communities & Local Government",MHCLG,09/12/2020,Cap Grants to Local Authorities (DEL),Housing Planning and Building Safety,SEFTON MBC,,Public Bodies,,232936125,3700080190,,Grant payable by the Exchequer,L20 3NJ,"572,407.00",Yes
"Housing, Communities & Local Government",MHCLG,09/12/2020,Cap Grants to Local Authorities (DEL),Housing Planning and Building Safety,SHEFFIELD CITY CNCL,,,,,3700080266,,Grant payable by the Exchequer,S1 1UJ,"606,223.00",Yes
"Housing, Communities & Local Government",MHCLG,09/12/2020,Cap Grants to Local Authorities (DEL),Housing Planning and Building Safety,SHROPSHIRE UNITARY AUTHORITY,,,,217036490,3700080309,,Grant payable by the Exchequer,SY2 6ND,"432,142.00",Yes
"Housing, Communities & Local Government",MHCLG,09/12/2020,Cap Grants to Local Authorities (DEL),Housing Planning and Building Safety,SLOUGH BOROUGH COUNCIL,,,,211027123,3700080212,,Grant payable by the Exchequer,SL1 3UF,"135,369.00",Yes
"Housing, Communities & Local Government",MHCLG,09/12/2020,Cap Grants to Local Authorities (DEL),Housing Planning and Building Safety,SOLIHULL MBC,,,,,3700080268,,Grant payable by the Exchequer,B91 3QR,"294,887.00",Yes
"Housing, Communities & Local Government",MHCLG,09/12/2020,Cap Grants to Local Authorities (DEL),Housing Planning and Building Safety,SOMERSET COUNTY CNCL,,,,211229406,3700080297,,Grant payable by the Exchequer,TA1 4DY,"587,772.00",Yes
"Housing, Communities & Local Government",MHCLG,09/12/2020,Cap Grants to Local Authorities (DEL),Housing Planning and Building Safety,SOUTH GLOUCESTERSHIRE DC (HSG),,,,,3700080184,,Grant payable by the Exchequer,BS15 2TR,"277,587.00",Yes
"Housing, Communities & Local Government",MHCLG,09/12/2020,Cap Grants to Local Authorities (DEL),Housing Planning and Building Safety,SOUTH TYNESIDE COUNCIL,,,,345736438,3700080231,,Grant payable by the Exchequer,NE33 2RL,"227,670.00",Yes
"Housing, Communities & Local Government",MHCLG,09/12/2020,Cap Grants to Local Authorities (DEL),Housing Planning and Building Safety,SOUTHAMPTON CITY CNCL,,,,216927475,3700080210,,Grant payable by the Exchequer,SO14 7LY,"298,264.00",Yes
"Housing, Communities & Local Government",MHCLG,09/12/2020,Cap Grants to Local Authorities (DEL),Housing Planning and Building Safety,SOUTHEND ON SEA BC,,,,217067263,3700080221,,Grant payable by the Exchequer,SS2 6EP,"204,245.00",Yes
"Housing, Communities & Local Government",MHCLG,09/12/2020,Cap Grants to Local Authorities (DEL),Housing Planning and Building Safety,SOUTHWARK LB,,,,,3700080265,,Grant payable by the Exchequer,SE1 2QH,"200,101.00",Yes
"Housing, Communities & Local Government",MHCLG,09/12/2020,Cap Grants to Local Authorities (DEL),Housing Planning and Building Safety,ST HELENS MBC,,,,,3700080188,,Grant payable by the Exchequer,WA10 1HP,"373,556.00",Yes
"Housing, Communities & Local Government",MHCLG,09/12/2020,Cap Grants to Local Authorities (DEL),Housing Planning and Building Safety,STAFFORDSHIRE COUNTY CNCL,,Public Bodies,,,3700080252,,Grant payable by the Exchequer,ST16 2DH,"1,187,373.00",Yes
"Housing, Communities & Local Government",MHCLG,09/12/2020,Cap Grants to Local Authorities (DEL),Housing Planning and Building Safety,STOCKPORT MBC,,,,228706248,3700080292,,Grant payable by the Exchequer,SK1 3XE,"342,475.00",Yes
"Housing, Communities & Local Government",MHCLG,09/12/2020,Cap Grants to Local Authorities (DEL),Housing Planning and Building Safety,STOCKTON-ON-TEES BC (HSG),,,,,3700080321,,Grant payable by the Exchequer,TS23 2YS,"214,165.00",Yes
"Housing, Communities & Local Government",MHCLG,09/12/2020,Cap Grants to Local Authorities (DEL),Housing Planning and Building Safety,STOKE ON TRENT CITY COUNCIL,,,,216037890,3700080316,,Grant payable by the Exchequer,ST4 1HH,"408,664.00",Yes
"Housing, Communities & Local Government",MHCLG,09/12/2020,Cap Grants to Local Authorities (DEL),Housing Planning and Building Safety,SUFFOLK CC (SOCIAL CARE SERV) (H,,,,385614821,3700080275,,Grant payable by the Exchequer,IP4 1LH,"830,894.00",Yes
"Housing, Communities & Local Government",MHCLG,09/12/2020,Cap Grants to Local Authorities (DEL),Housing Planning and Building Safety,SURREY COUNTY COUNCIL,,Public Bodies,,,3700080289,,Grant payable by the Exchequer,KT1 2DN,"1,205,231.00",Yes
"Housing, Communities & Local Government",MHCLG,09/12/2020,Cap Grants to Local Authorities (DEL),Housing Planning and Building Safety,SUTTON LB,,,,,3700080233,,Grant payable by the Exchequer,SM1 1EA,"214,536.00",Yes
"Housing, Communities & Local Government",MHCLG,09/12/2020,Cap Grants to Local Authorities (DEL),Housing Planning and Building Safety,SWINDON BC,,,,458639697,3700080269,,Grant payable by the Exchequer,SN1 2JH,"155,035.00",Yes
"Housing, Communities & Local Government",MHCLG,09/12/2020,Cap Grants to Local Authorities (DEL),Housing Planning and Building Safety,TAMESIDE MBC,,,,212635875,3700080267,,Grant payable by the Exchequer,OL6 0GA,"338,139.00",Yes
"Housing, Communities & Local Government",MHCLG,09/12/2020,Cap Grants to Local Authorities (DEL),Housing Planning and Building Safety,TELFORD & WREKIN COUNCIL,,,,230235801,3700080236,,Grant payable by the Exchequer,TF3 4NT,"273,751.00",Yes
"Housing, Communities & Local Government",MHCLG,09/12/2020,Cap Grants to Local Authorities (DEL),Housing Planning and Building Safety,THURROCK  BOROUGH COUNCIL,,,,,3700080228,,Grant payable by the Exchequer,RM17 6SL,"156,474.00",Yes
"Housing, Communities & Local Government",MHCLG,09/12/2020,Cap Grants to Local Authorities (DEL),Housing Planning and Building Safety,TORBAY BC,,,,,3700080328,,Grant payable by the Exchequer,TQ1 3DR,"252,619.00",Yes
"Housing, Communities & Local Government",MHCLG,09/12/2020,Cap Grants to Local Authorities (DEL),Housing Planning and Building Safety,TOWER HAMLETS LB (HSG),,,,231315144,3700080254,,Grant payable by the Exchequer,E14 2BG,"275,405.00",Yes
"Housing, Communities & Local Government",MHCLG,09/12/2020,Cap Grants to Local Authorities (DEL),Housing Planning and Building Safety,TRAFFORD MBC,,,,,3700080225,,Grant payable by the Exchequer,M32 0TH,"293,121.00",Yes
"Housing, Communities & Local Government",MHCLG,09/12/2020,Cap Grants to Local Authorities (DEL),Housing Planning and Building Safety,WALSALL MBC,,,,212515585,3700080187,,Grant payable by the Exchequer,WS1 1TW,"498,758.00",Yes
"Housing, Communities & Local Government",MHCLG,09/12/2020,Cap Grants to Local Authorities (DEL),Housing Planning and Building Safety,WALTHAM FOREST LB,,,,,3700080313,,Grant payable by the Exchequer,E17 4JA,"280,344.00",Yes
"Housing, Communities & Local Government",MHCLG,09/12/2020,Cap Grants to Local Authorities (DEL),Housing Planning and Building Safety,WANDSWORTH LB,,,,,3700080185,,Grant payable by the Exchequer,SW18 2PU,"208,867.00",Yes
"Housing, Communities & Local Government",MHCLG,09/12/2020,Cap Grants to Local Authorities (DEL),Housing Planning and Building Safety,WARRINGTON BC,,,,,3700080260,,Grant payable by the Exchequer,WA1 1BN,"263,734.00",Yes
"Housing, Communities & Local Government",MHCLG,09/12/2020,Cap Grants to Local Authorities (DEL),Housing Planning and Building Safety,WARWICKSHIRE COUNTY CNCL,,,,210396290,3700080194,,Grant payable by the Exchequer,CV34 4RH,"608,177.00",Yes
"Housing, Communities & Local Government",MHCLG,09/12/2020,Cap Grants to Local Authorities (DEL),Housing Planning and Building Safety,WEST BERKSHIRE COUNCIL,,,,364809181,3700080192,,Grant payable by the Exchequer,RG14 2AF,"245,085.00",Yes
"Housing, Communities & Local Government",MHCLG,09/12/2020,Cap Grants to Local Authorities (DEL),Housing Planning and Building Safety,WEST SUSSEX CC,,Public Bodies,,232198762,3700080206,,Grant payable by the Exchequer,PO19 1RG,"1,117,309.00",Yes
"Housing, Communities & Local Government",MHCLG,09/12/2020,Cap Grants to Local Authorities (DEL),Housing Planning and Building Safety,WESTMINSTER CITY CNCL,,,,229845706,3700080278,,Grant payable by the Exchequer,SW1E 6QP,"205,210.00",Yes
"Housing, Communities & Local Government",MHCLG,09/12/2020,Cap Grants to Local Authorities (DEL),Housing Planning and Building Safety,WIGAN MBC,,Public Bodies,,,3700080327,,Grant payable by the Exchequer,WN1 1AZ,"540,484.00",Yes
"Housing, Communities & Local Government",MHCLG,09/12/2020,Cap Grants to Local Authorities (DEL),Housing Planning and Building Safety,WILTSHIRE COUNCIL,,,,211341656,3700080245,,Grant payable by the Exchequer,BA14 4DS,"440,738.00",Yes
"Housing, Communities & Local Government",MHCLG,09/12/2020,Cap Grants to Local Authorities (DEL),Housing Planning and Building Safety,WINDSOR & MAIDENHEAD (HSG),,,,227411998,3700080295,,Grant payable by the Exchequer,SL6 1RF,"122,487.00",Yes
"Housing, Communities & Local Government",MHCLG,09/12/2020,Cap Grants to Local Authorities (DEL),Housing Planning and Building Safety,WIRRAL MBC,,,,211222602,3700080282,,Grant payable by the Exchequer,CH41 6BU,"560,570.00",Yes
"Housing, Communities & Local Government",MHCLG,09/12/2020,Cap Grants to Local Authorities (DEL),Housing Planning and Building Safety,WOKINGHAM DC,,,,,3700080253,,Grant payable by the Exchequer,RG11 1WJ,"127,652.00",Yes
"Housing, Communities & Local Government",MHCLG,09/12/2020,Cap Grants to Local Authorities (DEL),Housing Planning and Building Safety,WOLVERHAMPTON MBC,,,,229895453,3700080299,,Grant payable by the Exchequer,WV1 1RL,"423,819.00",Yes
"Housing, Communities & Local Government",MHCLG,09/12/2020,Cap Grants to Local Authorities (DEL),Housing Planning and Building Safety,WORCESTERSHIRE COUNTY COUNCIL,,,,230359643,3700080209,,Grant payable by the Exchequer,WR5 2NP,"731,454.00",Yes
"Housing, Communities & Local Government",MHCLG,09/12/2020,Cap Grants to Local Authorities (DEL),Housing Planning and Building Safety,YORK CITY CNCL,,,,,3700080191,,Grant payable by the Exchequer,YO1 0EG,"174,210.00",Yes
"Housing, Communities & Local Government",MHCLG,09/12/2020,Cap Grants to Private Sector Companies,CFO and Corporate,ACADEMY CONSULTING SOLUTIONS LTD,,Small,,423486641,5106266268,Business Process Outsourcing Services,Specialist Contractors for Grenfell,TN2 5AL,"10,080.00",Yes
"Housing, Communities & Local Government",MHCLG,09/12/2020,Cap Grants to Private Sector Companies,CFO and Corporate,ACADEMY CONSULTING SOLUTIONS LTD,,Small,,423486641,5106266270,Business Process Outsourcing Services,Specialist Contractors for Grenfell,TN2 5AL,"6,705.00",Yes
"Housing, Communities & Local Government",MHCLG,09/12/2020,Cap Grants to Private Sector Companies,CFO and Corporate,PINSENT MASONS LLP,,Large,,215580626,5106266055,Legal,Legal Support for Grenfell S&P,EC2A 4ES,"34,870.80",Yes
"Housing, Communities & Local Government",MHCLG,09/12/2020,Current Grants to Non Profit Bodies,Local Government Strategy and Analysis,BIRMINGHAM UNIVERSITY,,Large,,227842325,2100308138,,To deliver the Faith Leader Training Initiative,B15 2TT,"28,913.40",Yes
"Housing, Communities & Local Government",MHCLG,09/12/2020,Electronic Data Storage,CFO and Corporate,RESTORE PLC,,Large,,,5106266375,Warehousing and Storage,Visions digital storage,RH1 3DY,"4,695.42",
"Housing, Communities & Local Government",MHCLG,09/12/2020,ERDF Work in Progress � Capital,Stronger Places,CHESHIRE WEST AND CHESTER COUNCIL,,Large,,,7700007862,,ERDF grant payment,CH1 2NP,"91,323.19",Yes
"Housing, Communities & Local Government",MHCLG,09/12/2020,ERDF Work in Progress � Capital,Stronger Places,LEICESTER CITY COUNCIL,,,,,7700007863,,ERDF grant payment,LE1 1FZ,"48,255.01",Yes
"Housing, Communities & Local Government",MHCLG,09/12/2020,ERDF Work in Progress � Resource,Stronger Places,COVENTRY UNIVERSITY ENTERPRISES LTD,,,,,7700007865,,ERDF grant payment,CV1 2TT,"17,988.59",Yes
"Housing, Communities & Local Government",MHCLG,09/12/2020,ERDF Work in Progress � Resource,Stronger Places,CUMBRIA CHAMBER OF COMMERCE,,Small,,,7700007867,,ERDF grant payment,CA3 8DA,"189,775.84",Yes
"Housing, Communities & Local Government",MHCLG,09/12/2020,ERDF Work in Progress � Resource,Stronger Places,GREATER LONDON AUTHORITY,,Large,,,7700007864,,ERDF grant payment,SE1 2AA,"124,011.41",Yes
"Housing, Communities & Local Government",MHCLG,09/12/2020,ERDF Work in Progress � Resource,Stronger Places,LANCASTER UNIVERISTY,,,,,7700007869,,ERDF grant payment,LA1 4YW,"90,219.08",Yes
"Housing, Communities & Local Government",MHCLG,09/12/2020,ERDF Work in Progress � Resource,Stronger Places,LEICESTER CITY COUNCIL,,,,,7700007863,,ERDF grant payment,LE1 1FZ,"226,687.98",Yes
"Housing, Communities & Local Government",MHCLG,09/12/2020,ERDF Work in Progress � Resource,Stronger Places,LIVERPOOL CITY REGION COMB AUTH,,,,,7700007866,,ERDF grant payment,L3 1FZ,"12,496.87",Yes
"Housing, Communities & Local Government",MHCLG,09/12/2020,ERDF Work in Progress � Resource,Stronger Places,OXFORDSHIRE LOCAL ENTERPRISE PARTNE,,,,,7700007868,,ERDF grant payment,OX1 1SA,"118,978.11",Yes
"Housing, Communities & Local Government",MHCLG,09/12/2020,"Furniture, Fittings and carpets",CFO and Corporate,WAGSTAFF BROS LTD,,,,210307773,5106266266,"Furniture, Fixtures and Fittings",Reasonable Adjustments 20/21,EC1V 4JR,720.40,
"Housing, Communities & Local Government",MHCLG,09/12/2020,"IT - PC, Network & Hardware",CFO and Corporate,X M A LTD,,Large,,298484148,5106266205,ICT Hardware,Logitech Room Solution for Teams -large,NG11 7EP,"4,704.00",
"Housing, Communities & Local Government",MHCLG,09/12/2020,IT - Service Contracts,Stronger Places,VELOCITII DIGITAL SOLUTIONS LTD,,Micro,,,5106266392,IT Managed / Outsourced Services,RED Team Specialist Digital Delivery,SE1 9LB,"2,700.00",
"Housing, Communities & Local Government",MHCLG,09/12/2020,IT - Software Maintenance,CFO and Corporate,INTERQUEST GROUP UK LIMITED,,Large,,423935241,5106266391,IT Managed / Outsourced Services,SAP Support Services Var12,EC4R 0AN,"12,000.00",
"Housing, Communities & Local Government",MHCLG,09/12/2020,IT - Software Maintenance,CFO and Corporate,INTERQUEST GROUP UK LIMITED,,Large,,423935241,5106266393,IT Managed / Outsourced Services,SAP Support Services Var13,EC4R 0AN,"12,840.00",
"Housing, Communities & Local Government",MHCLG,09/12/2020,IT - Software Maintenance,CFO and Corporate,INTERQUEST GROUP UK LIMITED,,Large,,423935241,5106266394,IT Managed / Outsourced Services,SAP Support Services Var12,EC4R 0AN,844.80,
"Housing, Communities & Local Government",MHCLG,09/12/2020,IT - Software Maintenance,CFO and Corporate,INTERQUEST GROUP UK LIMITED,,Large,,423935241,5106266394,IT Managed / Outsourced Services,SAP Support Services Var13,EC4R 0AN,"13,195.20",
"Housing, Communities & Local Government",MHCLG,09/12/2020,Management Consultancy,CFO and Corporate,MOORHOUSE CONSULTING LTD,,Large,,737971072,5106265848,Consultancy,Grenfell Tower Project,EC4A 3AG,"-10,584.00",
"Housing, Communities & Local Government",MHCLG,09/12/2020,Management Consultancy,CFO and Corporate,MOORHOUSE CONSULTING LTD,,Large,,737971072,5106266411,Consultancy,Grenfell Tower Project Management Support,EC4A 3AG,"23,382.00",
"Housing, Communities & Local Government",MHCLG,09/12/2020,Management Consultancy,Stronger Places,London Communications Agency Ltd,,Small,,,5106266373,Consultancy,Spatial Framework Engagement Strategy,WC1V 7AA,"17,203.20",
"Housing, Communities & Local Government",MHCLG,09/12/2020,Physical Storage,CFO and Corporate,RESTORE PLC,,Large,,,5106266375,Warehousing and Storage,Storage Costs 20/21,RH1 3DY,"29,741.24",
"Housing, Communities & Local Government",MHCLG,09/12/2020,Physical Storage,CFO and Corporate,RESTORE PLC,,Large,,,5106266377,Warehousing and Storage,Storage Costs 20/21,RH1 3DY,"4,015.96",
"Housing, Communities & Local Government",MHCLG,09/12/2020,Physical Storage,CFO and Corporate,RESTORE PLC,,Large,,,5106266379,Warehousing and Storage,Storage Costs 20/21,RH1 3DY,212.48,
"Housing, Communities & Local Government",MHCLG,09/12/2020,Physical Storage,CFO and Corporate,RESTORE PLC,,Large,,,5106266382,Warehousing and Storage,Storage Costs 20/21,RH1 3DY,875.65,
"Housing, Communities & Local Government",MHCLG,09/12/2020,Physical Storage,CFO and Corporate,RESTORE PLC,,Large,,,5106266383,Warehousing and Storage,Storage Costs 20/21,RH1 3DY,"1,534.89",
"Housing, Communities & Local Government",MHCLG,09/12/2020,Professional services,Housing Planning and Building Safety,URBANTIDE LIMITED,,Medium,,,5106266324,Financial,Data science pilot (11m-18m),EH8 9BT,"13,891.50",
"Housing, Communities & Local Government",MHCLG,09/12/2020,Professional services,Housing Planning and Building Safety,VALUATION OFFICE AGENCY,,Public Bodies,,215253886,5106265967,Financial,Community Infrastructure Levy,W1D 5BU,"1,453.10",
"Housing, Communities & Local Government",MHCLG,09/12/2020,Professional services,Housing Planning and Building Safety,VALUATION OFFICE AGENCY,,Public Bodies,,215253886,5106266200,Financial,Community Infrastructure Levy,W1D 5BU,693.22,
"Housing, Communities & Local Government",MHCLG,09/12/2020,Professional services,Housing Planning and Building Safety,VALUATION OFFICE AGENCY,,Public Bodies,,215253886,5106266204,Financial,Community Infrastructure Levy,W1D 5BU,951.74,
"Housing, Communities & Local Government",MHCLG,09/12/2020,Professional services,Housing Planning and Building Safety,VALUATION OFFICE AGENCY,,Public Bodies,,215253886,5106266376,Technical Services,Right To Buy Determinations 20/21,W1D 5BU,"51,198.49",
"Housing, Communities & Local Government",MHCLG,09/12/2020,Professional services,Housing Planning and Building Safety,VALUATION OFFICE AGENCY,,Public Bodies,,215253886,5106266401,Financial,Community Infrastructure Levy,W1D 5BU,493.48,
"Housing, Communities & Local Government",MHCLG,09/12/2020,Professional services,Housing Planning and Building Safety,VALUATION OFFICE AGENCY,,Public Bodies,,215253886,5106266412,Financial,Community Infrastructure Levy,W1D 5BU,"2,097.15",
"Housing, Communities & Local Government",MHCLG,09/12/2020,Professional services,Housing Planning and Building Safety,VALUATION OFFICE AGENCY,,Public Bodies,,215253886,5106266416,Financial,Community Infrastructure Levy,W1D 5BU,"2,422.35",
"Housing, Communities & Local Government",MHCLG,09/12/2020,Professional services,Housing Planning and Building Safety,VALUATION OFFICE AGENCY,,Public Bodies,,215253886,5106266417,Financial,Community Infrastructure Levy,W1D 5BU,"1,228.19",
"Housing, Communities & Local Government",MHCLG,09/12/2020,Professional services,Housing Planning and Building Safety,VALUATION OFFICE AGENCY,,Public Bodies,,215253886,5106266418,Financial,Community Infrastructure Levy,W1D 5BU,861.47,
"Housing, Communities & Local Government",MHCLG,09/12/2020,Property/Estates Consultancy,CFO and Corporate,FAITHFUL&GOULD LTD,,Large,,,5106265634,Consultancy,Multidisciplinary Technical Advisor,KT18 5BW,"105,906.00",
"Housing, Communities & Local Government",MHCLG,09/12/2020,Publishing,Stronger Places,MINISTRY OF JUSTICE,,,,211860841,5106266395,Printing Services,Art design,NP20 9BB,819.00,
"Housing, Communities & Local Government",MHCLG,09/12/2020,Recruitment,CFO and Corporate,CABINET OFFICE,,Public Bodies,,232159186,5106265692,Business Process Outsourcing Services,Permanent Recruitment Services - Non SCS,FY5 3TA,"15,440.04",
"Housing, Communities & Local Government",MHCLG,09/12/2020,Training,CFO and Corporate,ACAS,,Large,,,5106266321,Development and Training,Civil Service Training,NW1 3JJ,535.00,
"Housing, Communities & Local Government",MHCLG,09/12/2020,Training,CFO and Corporate,ACAS,,Large,,,5106266321,Development and Training,Civil Service Training,NW1 3JJ,535.00,
"Housing, Communities & Local Government",MHCLG,09/12/2020,Training,CFO and Corporate,KPMG LLP (CSL),,Large,,,5106266316,Development and Training,Civil Service Training,E14 5GL,"1,251.00",
"Housing, Communities & Local Government",MHCLG,09/12/2020,Training,CFO and Corporate,KPMG LLP (CSL),,Large,,,5106266317,Development and Training,Civil Service Training,E14 5GL,"2,500.00",
"Housing, Communities & Local Government",MHCLG,09/12/2020,Training,CFO and Corporate,KPMG LLP (CSL),,Large,,,5106266320,Development and Training,Civil Service Training,E14 5GL,"2,150.00",
"Housing, Communities & Local Government",MHCLG,09/12/2020,Training,CFO and Corporate,KPMG LLP (CSL),,Large,,,5106266327,Development and Training,Civil Service Training,E14 5GL,"1,153.00",
"Housing, Communities & Local Government",MHCLG,09/12/2020,Training,CFO and Corporate,KPMG LLP (CSL),,Large,,,5106266332,Development and Training,Civil Service Training,E14 5GL,"2,526.00",
"Housing, Communities & Local Government",MHCLG,09/12/2020,Training,CFO and Corporate,KPMG LLP (CSL),,Large,,,5106266333,Development and Training,Civil Service Training,E14 5GL,"4,000.00",
"Housing, Communities & Local Government",MHCLG,09/12/2020,Training,CFO and Corporate,KPMG LLP (CSL),,Large,,,5106266335,Development and Training,Civil Service Training,E14 5GL,"1,251.00",
"Housing, Communities & Local Government",MHCLG,09/12/2020,Training,CFO and Corporate,KPMG LLP (CSL),,Large,,,5106266336,Development and Training,Civil Service Training,E14 5GL,"2,150.00",
"Housing, Communities & Local Government",MHCLG,09/12/2020,Training,CFO and Corporate,KPMG LLP (CSL),,Large,,,5106266337,Development and Training,Civil Service Training,E14 5GL,"2,500.00",
"Housing, Communities & Local Government",MHCLG,09/12/2020,Training,Local Government Strategy and Analysis,OPERATIONAL RESEARCH SOCIETY,,Micro,,290246610,5106266371,Development and Training,Civil Service Training,B1 2RX,625.00,
"Housing, Communities & Local Government",MHCLG,09/12/2020,Translations,Local Government Strategy and Analysis,K INTERNATIONAL LTD,,,,,5106266372,Interpretation and Translation,Places of Worship Guidance,MK5 8PL,"4,181.32",
"Housing, Communities & Local Government",MHCLG,09/12/2020,Translations,Local Government Strategy and Analysis,K INTERNATIONAL LTD,,,,,5106266390,Interpretation and Translation,Places of Worship Guidance,MK5 8PL,"6,920.87",
"Housing, Communities & Local Government",MHCLG,10/12/2020,Cap Grants to Local Authorities (DEL),Stronger Places,GREATER LONDON AUTHORITY,,Large,,225353416,2100308100,,East Bank annual payment,SE10 1AP,"55,000,000.00",Yes
"Housing, Communities & Local Government",MHCLG,10/12/2020,Cap Grants to Private Sector Companies,CFO and Corporate,MICHAEL BARCLAY PARTNERSHIP LLP,,Small,,,5106266422,Consultancy,contingent labour,EC4Y 1HY,"10,800.00",Yes
"Housing, Communities & Local Government",MHCLG,10/12/2020,Cap Grants to Private Sector Companies,CFO and Corporate,MICHAEL BARCLAY PARTNERSHIP LLP,,Small,,,5106266423,Consultancy,contingent labour,EC4Y 1HY,"2,835.00",Yes
"Housing, Communities & Local Government",MHCLG,10/12/2020,ERDF Costs to CLG,Stronger Places,UNIVERSITY OF STRATHCLYDE,,,,,2100308159,,contingent labour,G1 1XQ,"8,079.57",Yes
"Housing, Communities & Local Government",MHCLG,10/12/2020,ERDF Work in Progress � Capital,Stronger Places,NATURAL ENGLAND,,Large,,,7700007870,,ERDF grant payment,YO1 7PX,"40,608.74",Yes
"Housing, Communities & Local Government",MHCLG,10/12/2020,ERDF Work in Progress � Capital,Stronger Places,NATURAL ENGLAND,,Large,,,7700007873,,ERDF grant payment,YO1 7PX,"51,874.78",Yes
"Housing, Communities & Local Government",MHCLG,10/12/2020,ERDF Work in Progress � Resource,Stronger Places,COVENTRY UNIVERSITY ENTERPRISES LTD,,,,,7700007871,,ERDF grant payment,CV1 2TT,"43,442.86",Yes
"Housing, Communities & Local Government",MHCLG,10/12/2020,ERDF Work in Progress � Resource,Stronger Places,CUMBRIA CHAMBER OF COMMERCE,,Small,,,7700007874,,ERDF grant payment,CA3 8DA,"62,799.67",Yes
"Housing, Communities & Local Government",MHCLG,10/12/2020,ERDF Work in Progress � Resource,Stronger Places,GREATER LONDON AUTHORITY,,Large,,,7700007872,,ERDF grant payment,SE1 2AA,"155,183.75",Yes
"Housing, Communities & Local Government",MHCLG,10/12/2020,ERDF Work in Progress � Resource,Stronger Places,NATURAL ENGLAND,,Large,,,7700007870,,ERDF grant payment,YO1 7PX,"28,450.53",Yes
"Housing, Communities & Local Government",MHCLG,10/12/2020,ERDF Work in Progress � Resource,Stronger Places,NATURAL ENGLAND,,Large,,,7700007873,,ERDF grant payment,YO1 7PX,"27,405.40",Yes
"Housing, Communities & Local Government",MHCLG,10/12/2020,ERDF Work in Progress � Resource,Stronger Places,NGAGE SOLUTIONS LTD,,Small,,,7700007875,,ERDF grant payment,HP19 8TE,"110,474.54",Yes
"Housing, Communities & Local Government",MHCLG,10/12/2020,ERDF Work in Progress � Resource,Stronger Places,NGAGE SOLUTIONS LTD,,Small,,,7700007876,,ERDF grant payment,HP19 8TE,775.08,Yes
"Housing, Communities & Local Government",MHCLG,10/12/2020,EXP � PURCHASE OF GOODS /SERVICES R & D,Local Government Strategy and Analysis,HATCH ASSOCIATES(HATCH REGENERIS),,Medium,,,5106266435,Research,Research - ERDF 2014-20 National Impact Evaluation,SW1E 5BH,"95,000.00",
"Housing, Communities & Local Government",MHCLG,10/12/2020,EXP � PURCHASE OF GOODS /SERVICES R & D,Local Government Strategy and Analysis,MARKET & OPINION RESEARCH INT LTD,,Large,,227257185,5106264191,Research,Research - Controlling Migration Funds,E1W 1YW,"86,640.00",
"Housing, Communities & Local Government",MHCLG,10/12/2020,Grant in Aid to NDPBs (non budget),Housing Planning and Building Safety,HOMES ENGLAND,,Public Bodies,,215576860,2100308153,,Homes England December 2020 Grant in Aid payment,NE11 0NA,"657,245,284.00",Yes
"Housing, Communities & Local Government",MHCLG,10/12/2020,IT - Service Contracts,CFO and Corporate,ARCUS CLOUD SERVICES LTD,,Medium,,,5106266429,IT Managed / Outsourced Services,ITMP AWS Hosting,CB4 2HY,"7,938.62",
"Housing, Communities & Local Government",MHCLG,10/12/2020,IT - Service Contracts,CFO and Corporate,Layer 7 Limited,,Micro,,216813544,5106266259,IT Managed / Outsourced Services,Cyber & Technical Support,NE63 9JZ,"63,650.00",
"Housing, Communities & Local Government",MHCLG,10/12/2020,IT - Service Contracts,Housing Planning and Building Safety,MADE TECH LTD,,Medium,,,5106266457,IT Managed / Outsourced Services,Energy Performance Certificates,EC2A 4NE,"12,444.96",
"Housing, Communities & Local Government",MHCLG,10/12/2020,IT - Service Contracts,Housing Planning and Building Safety,MADE TECH LTD,,Medium,,,5106266458,IT Managed / Outsourced Services,Energy Performance Certificates,EC2A 4NE,"4,039.45",
"Housing, Communities & Local Government",MHCLG,10/12/2020,IT - Service Contracts,Housing Planning and Building Safety,MADE TECH LTD,,Medium,,,5106266458,IT Managed / Outsourced Services,Energy Performance Certificates,EC2A 4NE,"19,463.05",
"Housing, Communities & Local Government",MHCLG,10/12/2020,IT - Service Contracts,Local Government Strategy and Analysis,ARCUS CLOUD SERVICES LTD,,Medium,,,5106266431,IT Managed / Outsourced Services,Data Analytics Platform,CB4 2HY,"3,285.00",
"Housing, Communities & Local Government",MHCLG,10/12/2020,IT - Service Contracts,Local Government Strategy and Analysis,ARCUS CLOUD SERVICES LTD,,Medium,,,5106266433,IT Managed / Outsourced Services,Data Analytics Platform,CB4 2HY,"54,460.00",
"Housing, Communities & Local Government",MHCLG,10/12/2020,IT - Software Maintenance,CFO and Corporate,ARCH CONSULTING LTD,,Small,,543735104,5106266448,IT Managed / Outsourced Services,eForm Maintenance & Development 12mths,W4 1PF,"13,486.50",
"Housing, Communities & Local Government",MHCLG,10/12/2020,Legal Fees,Housing Planning and Building Safety,BRYAN CAVE LEIGHTON PAISNER LLP,,Large,,,5106266451,Legal,Legal Advice,EC4R 9HA,"13,645.08",
"Housing, Communities & Local Government",MHCLG,10/12/2020,Legal Fees,Housing Planning and Building Safety,BRYAN CAVE LEIGHTON PAISNER LLP,,Large,,,5106266452,Legal,Legal Advice,EC4R 9HA,"4,753.26",
"Housing, Communities & Local Government",MHCLG,10/12/2020,Legal Fees,Housing Planning and Building Safety,BRYAN CAVE LEIGHTON PAISNER LLP,,Large,,,5106266453,Legal,Legal Advice,EC4R 9HA,"14,111.82",
"Housing, Communities & Local Government",MHCLG,10/12/2020,Legal Fees,Housing Planning and Building Safety,BRYAN CAVE LEIGHTON PAISNER LLP,,Large,,,5106266454,Legal,Legal Advice,EC4R 9HA,"23,096.64",
"Housing, Communities & Local Government",MHCLG,10/12/2020,Steady State Service Provision,CFO and Corporate,PLOWMAN CRAVEN LIMITED,,Medium,,,5106266426,Business Process Outsourcing Services,Grenfell Tower Surveying services,AL5 5EQ,"12,259.20",
"Housing, Communities & Local Government",MHCLG,10/12/2020,Telecoms equipment (non-capitalised),CFO and Corporate,STORM TECHNOLOGIES LTD,,Medium,,519916048,5106266430,Telecoms,Jabra Headset,WD18 8YW,"9,272.88",
"Housing, Communities & Local Government",MHCLG,10/12/2020,Training,Housing Planning and Building Safety,DODS PARLIAMENTARY COMM  LTD,,Large,,290673748,5106266424,Development and Training,Civil Service Training,SE1 9SG,"2,800.00",
"Housing, Communities & Local Government",MHCLG,11/12/2020,Accommodation Service Charges,CFO and Corporate,DAISY CORPORATE SERVICES TRADING LT,,Large,,,5106266483,Business Support,Warrington Relocation Site Costs,BB9 5SR,"9,660.00",
"Housing, Communities & Local Government",MHCLG,11/12/2020,Current (non AEF) Grants to Local Authorities,Stronger Places,THURROCK DC,,,,,2100308110,,Thames Estuary Core Funding,RM17 6LT,"1,400,000.00",Yes
"Housing, Communities & Local Government",MHCLG,11/12/2020,ERDF Work in Progress � Capital,Stronger Places,LAKE DISTRICT NATIONAL PARK AUTH (N,,,,,7700007884,,ERDF grant payment,LA9 7RL,"763,417.27",Yes
"Housing, Communities & Local Government",MHCLG,11/12/2020,ERDF Work in Progress � Capital,Stronger Places,NORTH EAST COMBINED AUTHORITY,,,,,7700007885,,ERDF grant payment,NE27 0BY,"2,403.25",Yes
"Housing, Communities & Local Government",MHCLG,11/12/2020,ERDF Work in Progress � Capital,Stronger Places,University of Leicester,,,,,7700007878,,ERDF grant payment,LE1 7RH,"8,769.00",Yes
"Housing, Communities & Local Government",MHCLG,11/12/2020,ERDF Work in Progress � Resource,Stronger Places,DURHAM COUNTY COUNCIL,,,,,7700007879,,ERDF grant payment,DH1 5UF,"49,254.60",Yes
"Housing, Communities & Local Government",MHCLG,11/12/2020,ERDF Work in Progress � Resource,Stronger Places,DURHAM UNIVERSITY,,Large,,,7700007877,,ERDF grant payment,DH1 3LE,"143,316.43",Yes
"Housing, Communities & Local Government",MHCLG,11/12/2020,ERDF Work in Progress � Resource,Stronger Places,LAKE DISTRICT NATIONAL PARK AUTH (N,,,,,7700007884,,ERDF grant payment,LA9 7RL,"10,672.38",Yes
"Housing, Communities & Local Government",MHCLG,11/12/2020,ERDF Work in Progress � Resource,Stronger Places,NORTH EAST COMBINED AUTHORITY,,,,,7700007885,,ERDF grant payment,NE27 0BY,"16,536.19",Yes
"Housing, Communities & Local Government",MHCLG,11/12/2020,ERDF Work in Progress � Resource,Stronger Places,NORTH TYNESIDE COUNCIL,,Large,,,7700007882,,ERDF grant payment,NE27 0BY,"71,063.85",Yes
"Housing, Communities & Local Government",MHCLG,11/12/2020,ERDF Work in Progress � Resource,Stronger Places,NORTH TYNESIDE COUNCIL,,Large,,,7700007883,,ERDF grant payment,NE27 0BY,"55,902.98",Yes
"Housing, Communities & Local Government",MHCLG,11/12/2020,ERDF Work in Progress � Resource,Stronger Places,SHEFFIELD HALLAM UNIVERSITY,,,,,7700007881,,ERDF grant payment,S1 1WB,"104,239.15",Yes
"Housing, Communities & Local Government",MHCLG,11/12/2020,ERDF Work in Progress � Resource,Stronger Places,SOMERSET COUNTY COUNCIL,,Micro,,,7700007886,,ERDF grant payment,TA1 4DY,"8,598.59",Yes
"Housing, Communities & Local Government",MHCLG,11/12/2020,ERDF Work in Progress � Resource,Stronger Places,UNIVERSITY OF CENTRAL LANCASHIRE,,Large,,,7700007880,,ERDF grant payment,PR7 7DL,"80,001.55",Yes
"Housing, Communities & Local Government",MHCLG,11/12/2020,ERDF Work in Progress � Resource,Stronger Places,University of Leicester,,,,,7700007878,,ERDF grant payment,LE1 7RH,"26,632.85",Yes
"Housing, Communities & Local Government",MHCLG,11/12/2020,IT - Service Contracts,Stronger Places,RISUAL LIMITED,,Medium,,,5106266432,Consultancy,MHCLG Dashboard Support Services,ST18 0WP,"42,480.00",
"Housing, Communities & Local Government",MHCLG,11/12/2020,Legal Fees,Housing Planning and Building Safety,BRYAN CAVE LEIGHTON PAISNER LLP,,Large,,,5106266464,Legal,Legal Advice,EC4R 9HA,"7,826.34",
"Housing, Communities & Local Government",MHCLG,11/12/2020,Printing,Stronger Places,APS GROUP,,Micro,,212228001,5106266472,Printing Services,Corporate Publishing   Command & House,SK3 02P,455.52,
"Housing, Communities & Local Government",MHCLG,11/12/2020,Printing,Stronger Places,APS GROUP,,Micro,,212228001,5106266473,Printing Services,Corporate Publishing   Command & House,SK3 02P,457.81,
"Housing, Communities & Local Government",MHCLG,11/12/2020,Professional services,CFO and Corporate,GOVERNMENT PROPERTY AGENCY,,Medium,,,5106266487,Business Support,Manchester Office non vat,B2 5LS,"39,014.81",
"Housing, Communities & Local Government",MHCLG,11/12/2020,Professional services,CFO and Corporate,GOVERNMENT PROPERTY AGENCY,,Medium,,,5106266487,Business Support,Manchester Office vat charges,B2 5LS,975.37,
"Housing, Communities & Local Government",MHCLG,11/12/2020,Professional services,Housing Planning and Building Safety,British Geological Survey (UKRI),,Large,,,5106266484,Research,Aggregate Minerals Survey 2019,NG12 5GG,"50,433.08",
"Housing, Communities & Local Government",MHCLG,11/12/2020,Professional services,Housing Planning and Building Safety,CEL GROUP,,Medium,,394794614,5106266476,Technical Services,Home Improvement Agencies 2020-2021,WA2 0YL,"80,024.90",
"Housing, Communities & Local Government",MHCLG,11/12/2020,Professional services,Local Government Strategy and Analysis,WSP UK LTD,,Large,,,5106266485,Financial,Employment Instructions,WC2A 1AF,"6,942.00",
"Housing, Communities & Local Government",MHCLG,11/12/2020,Steady State Service Provision,CFO and Corporate,GOVERNMENT PROPERTY AGENCY,,Medium,,,5106266488,Business Process Outsourcing Services,Management Fee Q1&Q2 20/21,B2 5LS,"2,267.66",
"Housing, Communities & Local Government",MHCLG,11/12/2020,Steady State Service Provision,Housing Planning and Building Safety,GREATER LONDON AUTHORITY,,Public Bodies,,232112404,5106266326,Business Process Outsourcing Services,Rough Sleeping Accommodation Prog 20/21,SE1 2AA,"321,912.00",
"Housing, Communities & Local Government",MHCLG,11/12/2020,Training,CFO and Corporate,BYTES SOFTWARE SERVICES LTD,,Medium,,225273754,5106266402,Learning and Development Materials,Civil Service Training,KT22 7TW,450.00,
"Housing, Communities & Local Government",MHCLG,14/12/2020,Agency Staff,CFO and Corporate,ALEXANDER MANN SOLUTIONS LTD,,Large,,,5106266498,Contingent Labour,Contingent Labour,EC2N 3AQ,"25,745.81",
"Housing, Communities & Local Government",MHCLG,14/12/2020,Agency Staff,CFO and Corporate,ALEXANDER MANN SOLUTIONS LTD,,Large,,,5106266500,Contingent Labour,Contingent Labour,EC2N 3AQ,"1,732.65",
"Housing, Communities & Local Government",MHCLG,14/12/2020,Agency Staff,CFO and Corporate,ALEXANDER MANN SOLUTIONS LTD,,Large,,,5106266501,Contingent Labour,Contingent Labour,EC2N 3AQ,"2,463.72",
"Housing, Communities & Local Government",MHCLG,14/12/2020,Agency Staff,CFO and Corporate,ALEXANDER MANN SOLUTIONS LTD,,Large,,,5106266505,Contingent Labour,Contingent Labour,EC2N 3AQ,"5,558.76",
"Housing, Communities & Local Government",MHCLG,14/12/2020,Agency Staff,CFO and Corporate,ALEXANDER MANN SOLUTIONS LTD,,Large,,,5106266509,Contingent Labour,Contingent Labour,EC2N 3AQ,"2,520.24",
"Housing, Communities & Local Government",MHCLG,14/12/2020,Agency Staff,CFO and Corporate,ALEXANDER MANN SOLUTIONS LTD,,Large,,,5106266511,Contingent Labour,Interim Staff,EC2N 3AQ,"2,992.80",
"Housing, Communities & Local Government",MHCLG,14/12/2020,Agency Staff,CFO and Corporate,ALEXANDER MANN SOLUTIONS LTD,,Large,,,5106266516,Contingent Labour,Contingent Labour,EC2N 3AQ,"4,644.36",
"Housing, Communities & Local Government",MHCLG,14/12/2020,Agency Staff,CFO and Corporate,ALEXANDER MANN SOLUTIONS LTD,,Large,,,5106266517,Contingent Labour,Interim Staff,EC2N 3AQ,813.66,
"Housing, Communities & Local Government",MHCLG,14/12/2020,Agency Staff,CFO and Corporate,ALEXANDER MANN SOLUTIONS LTD,,Large,,,5106266519,Contingent Labour,Contingent Labour,EC2N 3AQ,"5,389.38",
"Housing, Communities & Local Government",MHCLG,14/12/2020,Agency Staff,CFO and Corporate,ALEXANDER MANN SOLUTIONS LTD,,Large,,,5106266521,Contingent Labour,Contingent Labour,EC2N 3AQ,"2,425.21",
"Housing, Communities & Local Government",MHCLG,14/12/2020,Agency Staff,CFO and Corporate,ALEXANDER MANN SOLUTIONS LTD,,Large,,,5106266526,Contingent Labour,Contingent Labour,EC2N 3AQ,"2,677.74",
"Housing, Communities & Local Government",MHCLG,14/12/2020,Agency Staff,CFO and Corporate,ALEXANDER MANN SOLUTIONS LTD,,Large,,,5106266528,Contingent Labour,Contingent Labour,EC2N 3AQ,"3,323.52",
"Housing, Communities & Local Government",MHCLG,14/12/2020,Agency Staff,CFO and Corporate,ALEXANDER MANN SOLUTIONS LTD,,Large,,,5106266529,Contingent Labour,Contingent Labour,EC2N 3AQ,"4,681.10",
"Housing, Communities & Local Government",MHCLG,14/12/2020,Agency Staff,CFO and Corporate,ALEXANDER MANN SOLUTIONS LTD,,Large,,,5106266530,Contingent Labour,Contingent Labour,EC2N 3AQ,"3,347.16",
"Housing, Communities & Local Government",MHCLG,14/12/2020,Agency Staff,CFO and Corporate,ALEXANDER MANN SOLUTIONS LTD,,Large,,,5106266532,Contingent Labour,Contingent Labour,EC2N 3AQ,"3,165.24",
"Housing, Communities & Local Government",MHCLG,14/12/2020,Agency Staff,CFO and Corporate,ALEXANDER MANN SOLUTIONS LTD,,Large,,,5106266534,Contingent Labour,Contingent Labour,EC2N 3AQ,"3,067.86",
"Housing, Communities & Local Government",MHCLG,14/12/2020,Agency Staff,Housing Planning and Building Safety,ALEXANDER MANN SOLUTIONS LTD,,Large,,,5106266495,Contingent Labour,Short Term Contractor,EC2N 3AQ,"2,835.24",
"Housing, Communities & Local Government",MHCLG,14/12/2020,Agency Staff,Housing Planning and Building Safety,ALEXANDER MANN SOLUTIONS LTD,,Large,,,5106266518,Contingent Labour,Short Term Contractor,EC2N 3AQ,"1,348.91",
"Housing, Communities & Local Government",MHCLG,14/12/2020,Agency Staff,Housing Planning and Building Safety,ALEXANDER MANN SOLUTIONS LTD,,Large,,,5106266520,Contingent Labour,Short Term Contractor,EC2N 3AQ,"1,058.50",
"Housing, Communities & Local Government",MHCLG,14/12/2020,Agency Staff,Housing Planning and Building Safety,ALEXANDER MANN SOLUTIONS LTD,,Large,,,5106266523,Not Addressable,Secondee CO,EC2N 3AQ,"3,233.64",
"Housing, Communities & Local Government",MHCLG,14/12/2020,Agency Staff,Local Government Strategy and Analysis,ALEXANDER MANN SOLUTIONS LTD,,Large,,,5106266500,Contingent Labour,Contingent Labour,EC2N 3AQ,"1,732.66",
"Housing, Communities & Local Government",MHCLG,14/12/2020,Agency Staff,Local Government Strategy and Analysis,ALEXANDER MANN SOLUTIONS LTD,,Large,,,5106266514,Contingent Labour,Contingent Labour,EC2N 3AQ,"1,539.82",
"Housing, Communities & Local Government",MHCLG,14/12/2020,Agency Staff,Stronger Places,ALEXANDER MANN SOLUTIONS LTD,,Large,,,5106266512,Contingent Labour,Interim Vacancy Cover,EC2N 3AQ,"9,904.20",
"Housing, Communities & Local Government",MHCLG,14/12/2020,Agency Staff,Stronger Places,ALEXANDER MANN SOLUTIONS LTD,,Large,,,5106266515,Contingent Labour,Interim Vacancy Cover,EC2N 3AQ,"9,904.20",
"Housing, Communities & Local Government",MHCLG,14/12/2020,Agency Staff,Stronger Places,ALEXANDER MANN SOLUTIONS LTD,,Large,,,5106266522,Contingent Labour,Interim Vacancy Cover,EC2N 3AQ,"2,189.52",
"Housing, Communities & Local Government",MHCLG,14/12/2020,Agency Staff,Stronger Places,ALEXANDER MANN SOLUTIONS LTD,,Large,,,5106266533,Contingent Labour,contingent labour,EC2N 3AQ,"1,709.22",
"Housing, Communities & Local Government",MHCLG,14/12/2020,Cap Grants to Private Sector Companies,CFO and Corporate,DERISK (UK) LTD,,Small,,220390649,5106266370,Consultancy,Recruitment Costs,WC2N 6DU,"7,459.99",Yes
"Housing, Communities & Local Government",MHCLG,14/12/2020,ERDF Work in Progress � Capital,Stronger Places,DERBY CITY COUNCIL,,Large,,,7700007887,,ERDF grant payment,DE1 2FS,"57,872.34",Yes
"Housing, Communities & Local Government",MHCLG,14/12/2020,ERDF Work in Progress � Capital,Stronger Places,SEFTON MBC,,,,,7700007894,,ERDF grant payment,L20 3NJ,"56,206.01",Yes
"Housing, Communities & Local Government",MHCLG,14/12/2020,ERDF Work in Progress � Capital,Stronger Places,SOMERSET COUNTY COUNCIL,,Micro,,,7700007888,,ERDF grant payment,TA1 4DY,"369,471.42",Yes
"Housing, Communities & Local Government",MHCLG,14/12/2020,ERDF Work in Progress � Capital,Stronger Places,SOUTHEND-ON-SEA BOROUGH COUNCIL,,,,,7700007898,,ERDF grant payment,SS2 6ER,"17,500.00",Yes
"Housing, Communities & Local Government",MHCLG,14/12/2020,ERDF Work in Progress � Resource,Stronger Places,BRUNEL UNIVERSITY,,,,,7700007893,,ERDF grant payment,UB8 3PH,"53,191.50",Yes
"Housing, Communities & Local Government",MHCLG,14/12/2020,ERDF Work in Progress � Resource,Stronger Places,BRUNEL UNIVERSITY,,,,,7700007896,,ERDF grant payment,UB8 3PH,"25,772.06",Yes
"Housing, Communities & Local Government",MHCLG,14/12/2020,ERDF Work in Progress � Resource,Stronger Places,CORNWALL COLLEGE,,,,,7700007890,,ERDF grant payment,PL25 4DJ,"41,486.83",Yes
"Housing, Communities & Local Government",MHCLG,14/12/2020,ERDF Work in Progress � Resource,Stronger Places,DERBY CITY COUNCIL,,Large,,,7700007887,,ERDF grant payment,DE1 2FS,"2,390.69",Yes
"Housing, Communities & Local Government",MHCLG,14/12/2020,ERDF Work in Progress � Resource,Stronger Places,GREATER B'HAM&SOLIHULL LEP LTD,,,,,7700007891,,ERDF grant payment,B1 2ND,"90,547.01",Yes
"Housing, Communities & Local Government",MHCLG,14/12/2020,ERDF Work in Progress � Resource,Stronger Places,GREATER B'HAM&SOLIHULL LEP LTD,,,,,7700007899,,ERDF grant payment,B1 2ND,"98,350.48",Yes
"Housing, Communities & Local Government",MHCLG,14/12/2020,ERDF Work in Progress � Resource,Stronger Places,NEWCASTLE CITY COUNCIL,,,,,7700007897,,ERDF grant payment,NE1 8QH,"55,646.11",Yes
"Housing, Communities & Local Government",MHCLG,14/12/2020,ERDF Work in Progress � Resource,Stronger Places,NORTH EAST ENTERPRISE AGENCY LTD,,,,,7700007892,,ERDF grant payment,SR5 2TA,"55,843.99",Yes
"Housing, Communities & Local Government",MHCLG,14/12/2020,ERDF Work in Progress � Resource,Stronger Places,SEFTON MBC,,,,,7700007894,,ERDF grant payment,L20 3NJ,"13,597.57",Yes
"Housing, Communities & Local Government",MHCLG,14/12/2020,ERDF Work in Progress � Resource,Stronger Places,SOUTHEND-ON-SEA BOROUGH COUNCIL,,,,,7700007898,,ERDF grant payment,SS2 6ER,"108,974.70",Yes
"Housing, Communities & Local Government",MHCLG,14/12/2020,ERDF Work in Progress � Resource,Stronger Places,UNIVERSITY OF CENTRAL LANCASHIRE,,Large,,,7700007889,,ERDF grant payment,PR7 7DL,"43,706.94",Yes
"Housing, Communities & Local Government",MHCLG,14/12/2020,ERDF Work in Progress � Resource,Stronger Places,WORCESTERSHIRE COUNTY COUNCIL,,,,,7700007895,,ERDF grant payment,WR5 2NP,"5,137.59",Yes
"Housing, Communities & Local Government",MHCLG,14/12/2020,ERDF Work in Progress � Resource,Stronger Places,WORCESTERSHIRE COUNTY COUNCIL,,,,,7700007900,,ERDF grant payment,WR5 2NP,"17,283.23",Yes
"Housing, Communities & Local Government",MHCLG,14/12/2020,IT - Service Contracts,CFO and Corporate,ARCUS CLOUD SERVICES LTD,,Medium,,,5106266427,IT Managed / Outsourced Services,Datamart/MCIS/TESA AWS Hosting,CB4 2HY,"11,083.52",
"Housing, Communities & Local Government",MHCLG,14/12/2020,IT - Service Contracts,CFO and Corporate,ARCUS CLOUD SERVICES LTD,,Medium,,,5106266428,IT Managed / Outsourced Services,Datamart/MCIS/TESA AWS Hosting,CB4 2HY,"78,172.95",
"Housing, Communities & Local Government",MHCLG,14/12/2020,IT - Service Contracts,CFO and Corporate,ARCUS CLOUD SERVICES LTD,,Medium,,,5106266434,IT Managed / Outsourced Services,Datamart/MCIS/TESA AWS Hosting,CB4 2HY,"17,520.00",
"Housing, Communities & Local Government",MHCLG,14/12/2020,IT - Service Contracts,Local Government Strategy and Analysis,RISUAL LIMITED,,Medium,,,5106266535,Software,Cloud Platforming Services,ST18 0WP,"4,185.03",
"Housing, Communities & Local Government",MHCLG,14/12/2020,Steady State Service Provision,Housing Planning and Building Safety,PRICEWATERHOUSECOOPERS LLP,,Large,,230101714,5106266471,Business Process Outsourcing Services,BSP Consultancy Support,SE1 2RD,"367,540.80",
"Housing, Communities & Local Government",MHCLG,14/12/2020,Steady State Service Provision,Local Government Strategy and Analysis,GREEN PARK INTERIM & EXECUTIVE,,Small,,348738829,5106266367,Business Process Outsourcing Services,Contingent Labour,W1K 4EG,"1,497.60",
"Housing, Communities & Local Government",MHCLG,14/12/2020,Training,CFO and Corporate,CABINET OFFICE,,Public Bodies,,232159186,5106266437,Development and Training,Civil Service Training,FY5 3TA,"4,000.00",
"Housing, Communities & Local Government",MHCLG,14/12/2020,Training,CFO and Corporate,INSIGHTS LEARNING & DEVELOPMENT LTD,,Large,,,5106266527,Development and Training,Civil Service Training,DD2 1EG,"2,682.00",
"Housing, Communities & Local Government",MHCLG,14/12/2020,Training,CFO and Corporate,KPMG LLP (CSL),,Large,,,5106266386,Development and Training,Civil Service Training,E14 5GL,"2,500.00",
"Housing, Communities & Local Government",MHCLG,14/12/2020,Training,CFO and Corporate,KPMG LLP (CSL),,Large,,,5106266387,Development and Training,Civil Service Training,E14 5GL,"2,500.00",
"Housing, Communities & Local Government",MHCLG,14/12/2020,Training,CFO and Corporate,KPMG LLP (CSL),,Large,,,5106266388,Development and Training,Civil Service Training,E14 5GL,"2,500.00",
"Housing, Communities & Local Government",MHCLG,14/12/2020,Training,CFO and Corporate,KPMG LLP (CSL),,Large,,,5106266545,Development and Training,Civil Service Training,E14 5GL,"4,000.00",
"Housing, Communities & Local Government",MHCLG,14/12/2020,Training,CFO and Corporate,KPMG LLP (CSL),,Large,,,5106266547,Development and Training,Civil Service Training,E14 5GL,"2,500.00",
"Housing, Communities & Local Government",MHCLG,14/12/2020,Training,CFO and Corporate,KPMG LLP (CSL),,Large,,,5106266550,Development and Training,Civil Service Training,E14 5GL,"1,251.00",
"Housing, Communities & Local Government",MHCLG,14/12/2020,Training,Local Government Strategy and Analysis,LSR TRAINING AND DEVELOPMENT LTD,,Micro,,,5106266549,Development and Training,Civil Service Training,YO42 4RE,490.00,
"Housing, Communities & Local Government",MHCLG,14/12/2020,Training,Local Government Strategy and Analysis,LSR TRAINING AND DEVELOPMENT LTD,,Micro,,,5106266551,Development and Training,Civil Service Training,YO42 4RE,490.00,
"Housing, Communities & Local Government",MHCLG,14/12/2020,Training,Local Government Strategy and Analysis,WISE OWL BUSINESS SOLUTIONS LTD,,Micro,,738553754,5106266506,Development and Training,Civil Service Training,SK13 2AA,595.00,
"Housing, Communities & Local Government",MHCLG,14/12/2020,Web Services,Stronger Places,DEXTROUS WEB LTD,,Micro,,211267270,5106266560,ICT Services,Own you home site hosting,N1 7NG,"1,746.60",
"Housing, Communities & Local Government",MHCLG,15/12/2020,Accommodation Service Charges,CFO and Corporate,DAISY CORPORATE SERVICES TRADING LT,,Large,,,5106266060,Business Support,Warrington circuit cancellation,BB9 5SR,"15,768.41",
"Housing, Communities & Local Government",MHCLG,15/12/2020,Current (non AEF) Grants to Local Authorities,Local Government Strategy and Analysis,ADUR DC,,,,227472891,3700080522,,Grant payable by the Exchequer,BN11 1HA,"1,976.00",Yes
"Housing, Communities & Local Government",MHCLG,15/12/2020,Current (non AEF) Grants to Local Authorities,Local Government Strategy and Analysis,ADUR DC,,,,227472891,3700080533,,Grant payable by the Exchequer,BN11 1HA,"296,213.00",Yes
"Housing, Communities & Local Government",MHCLG,15/12/2020,Current (non AEF) Grants to Local Authorities,Local Government Strategy and Analysis,ADUR DC,,,,227472891,3700080631,,Grant payable by the Exchequer,BN11 1HA,"444,337.00",Yes
"Housing, Communities & Local Government",MHCLG,15/12/2020,Current (non AEF) Grants to Local Authorities,Local Government Strategy and Analysis,ADUR DC,,,,227472891,3700081168,,Grant payable by the Exchequer,BN11 1HA,"2,963.00",Yes
"Housing, Communities & Local Government",MHCLG,15/12/2020,Current (non AEF) Grants to Local Authorities,Local Government Strategy and Analysis,ALLERDALE BOROUGH COUNCIL,,,,230824120,3700080506,,Grant payable by the Exchequer,CA14 3YJ,"1,409.00",Yes
"Housing, Communities & Local Government",MHCLG,15/12/2020,Current (non AEF) Grants to Local Authorities,Local Government Strategy and Analysis,ALLERDALE BOROUGH COUNCIL,,,,230824120,3700080742,,Grant payable by the Exchequer,CA14 3YJ,"563,450.00",Yes
"Housing, Communities & Local Government",MHCLG,15/12/2020,Current (non AEF) Grants to Local Authorities,Local Government Strategy and Analysis,ALLERDALE BOROUGH COUNCIL,,,,230824120,3700080779,,Grant payable by the Exchequer,CA14 3YJ,"2,114.00",Yes
"Housing, Communities & Local Government",MHCLG,15/12/2020,Current (non AEF) Grants to Local Authorities,Local Government Strategy and Analysis,ALLERDALE BOROUGH COUNCIL,,,,230824120,3700080867,,Grant payable by the Exchequer,CA14 3YJ,"845,209.00",Yes
"Housing, Communities & Local Government",MHCLG,15/12/2020,Current (non AEF) Grants to Local Authorities,Local Government Strategy and Analysis,AMBER VALLEY BC,,,,,3700080377,,Grant payable by the Exchequer,DE5 3BT,"637,089.00",Yes
"Housing, Communities & Local Government",MHCLG,15/12/2020,Current (non AEF) Grants to Local Authorities,Local Government Strategy and Analysis,AMBER VALLEY BC,,,,,3700080701,,Grant payable by the Exchequer,DE5 3BT,"7,141.00",Yes
"Housing, Communities & Local Government",MHCLG,15/12/2020,Current (non AEF) Grants to Local Authorities,Local Government Strategy and Analysis,AMBER VALLEY BC,,,,,3700081301,,Grant payable by the Exchequer,DE5 3BT,"424,709.00",Yes
"Housing, Communities & Local Government",MHCLG,15/12/2020,Current (non AEF) Grants to Local Authorities,Local Government Strategy and Analysis,AMBER VALLEY BC,,,,,3700081650,,Grant payable by the Exchequer,DE5 3BT,"4,760.00",Yes
"Housing, Communities & Local Government",MHCLG,15/12/2020,Current (non AEF) Grants to Local Authorities,Local Government Strategy and Analysis,ARUN DC,,,,211217668,3700080446,,Grant payable by the Exchequer,BN17 5LF,"5,792.00",Yes
"Housing, Communities & Local Government",MHCLG,15/12/2020,Current (non AEF) Grants to Local Authorities,Local Government Strategy and Analysis,ARUN DC,,,,211217668,3700080825,,Grant payable by the Exchequer,BN17 5LF,"1,132,253.00",Yes
"Housing, Communities & Local Government",MHCLG,15/12/2020,Current (non AEF) Grants to Local Authorities,Local Government Strategy and Analysis,ARUN DC,,,,211217668,3700081186,,Grant payable by the Exchequer,BN17 5LF,"8,688.00",Yes
"Housing, Communities & Local Government",MHCLG,15/12/2020,Current (non AEF) Grants to Local Authorities,Local Government Strategy and Analysis,ARUN DC,,,,211217668,3700081446,,Grant payable by the Exchequer,BN17 5LF,"754,805.00",Yes
"Housing, Communities & Local Government",MHCLG,15/12/2020,Current (non AEF) Grants to Local Authorities,Local Government Strategy and Analysis,ASHFIELD DC,,,,235415296,3700080517,,Grant payable by the Exchequer,NG17 8DA,"382,140.00",Yes
"Housing, Communities & Local Government",MHCLG,15/12/2020,Current (non AEF) Grants to Local Authorities,Local Government Strategy and Analysis,ASHFIELD DC,,,,235415296,3700080965,,Grant payable by the Exchequer,NG17 8DA,"8,637.00",Yes
"Housing, Communities & Local Government",MHCLG,15/12/2020,Current (non AEF) Grants to Local Authorities,Local Government Strategy and Analysis,ASHFIELD DC,,,,235415296,3700081114,,Grant payable by the Exchequer,NG17 8DA,"573,233.00",Yes
"Housing, Communities & Local Government",MHCLG,15/12/2020,Current (non AEF) Grants to Local Authorities,Local Government Strategy and Analysis,ASHFIELD DC,,,,235415296,3700081267,,Grant payable by the Exchequer,NG17 8DA,"5,758.00",Yes
"Housing, Communities & Local Government",MHCLG,15/12/2020,Current (non AEF) Grants to Local Authorities,Local Government Strategy and Analysis,ASHFORD BC,,,,229467071,3700080893,,Grant payable by the Exchequer,TN23 1PL,"1,615,127.00",Yes
"Housing, Communities & Local Government",MHCLG,15/12/2020,Current (non AEF) Grants to Local Authorities,Local Government Strategy and Analysis,ASHFORD BC,,,,229467071,3700081152,,Grant payable by the Exchequer,TN23 1PL,"3,861.00",Yes
"Housing, Communities & Local Government",MHCLG,15/12/2020,Current (non AEF) Grants to Local Authorities,Local Government Strategy and Analysis,ASHFORD BC,,,,229467071,3700081611,,Grant payable by the Exchequer,TN23 1PL,"1,076,708.00",Yes
"Housing, Communities & Local Government",MHCLG,15/12/2020,Current (non AEF) Grants to Local Authorities,Local Government Strategy and Analysis,ASHFORD BC,,,,229467071,3700081680,,Grant payable by the Exchequer,TN23 1PL,"5,791.00",Yes
"Housing, Communities & Local Government",MHCLG,15/12/2020,Current (non AEF) Grants to Local Authorities,Local Government Strategy and Analysis,BABERGH DC,,,,232618405,3700080815,,Grant payable by the Exchequer,IP7 6SJ,"9,781.00",Yes
"Housing, Communities & Local Government",MHCLG,15/12/2020,Current (non AEF) Grants to Local Authorities,Local Government Strategy and Analysis,BABERGH DC,,,,232618405,3700081167,,Grant payable by the Exchequer,IP7 6SJ,"407,637.00",Yes
"Housing, Communities & Local Government",MHCLG,15/12/2020,Current (non AEF) Grants to Local Authorities,Local Government Strategy and Analysis,BABERGH DC,,,,232618405,3700081266,,Grant payable by the Exchequer,IP7 6SJ,"6,520.00",Yes
"Housing, Communities & Local Government",MHCLG,15/12/2020,Current (non AEF) Grants to Local Authorities,Local Government Strategy and Analysis,BABERGH DC,,,,232618405,3700081606,,Grant payable by the Exchequer,IP7 6SJ,"611,481.00",Yes
"Housing, Communities & Local Government",MHCLG,15/12/2020,Current (non AEF) Grants to Local Authorities,Local Government Strategy and Analysis,BARKING & DAGENHAM LB,,Public Bodies,,227419488,3700080903,,Grant payable by the Exchequer,RM10 7BY,"698,337.00",Yes
"Housing, Communities & Local Government",MHCLG,15/12/2020,Current (non AEF) Grants to Local Authorities,Local Government Strategy and Analysis,BARKING & DAGENHAM LB,,Public Bodies,,227419488,3700080948,,Grant payable by the Exchequer,RM10 7BY,"515,956.00",Yes
"Housing, Communities & Local Government",MHCLG,15/12/2020,Current (non AEF) Grants to Local Authorities,Local Government Strategy and Analysis,BARKING & DAGENHAM LB,,Public Bodies,,227419488,3700081410,,Grant payable by the Exchequer,RM10 7BY,"18,026.00",Yes
"Housing, Communities & Local Government",MHCLG,15/12/2020,Current (non AEF) Grants to Local Authorities,Local Government Strategy and Analysis,BARKING & DAGENHAM LB,,Public Bodies,,227419488,3700081635,,Grant payable by the Exchequer,RM10 7BY,"13,318.00",Yes
"Housing, Communities & Local Government",MHCLG,15/12/2020,Current (non AEF) Grants to Local Authorities,Local Government Strategy and Analysis,BARKING & DAGENHAM LB (HSG),,,,217142293,3700081871,,Grant payable by the Exchequer,RM10 7BY,"865,981.00",Yes
"Housing, Communities & Local Government",MHCLG,15/12/2020,Current (non AEF) Grants to Local Authorities,Local Government Strategy and Analysis,BARKING & DAGENHAM LB (HSG),,,,217142293,3700081979,,Grant payable by the Exchequer,RM10 7BY,"489,207.00",Yes
"Housing, Communities & Local Government",MHCLG,15/12/2020,Current (non AEF) Grants to Local Authorities,Local Government Strategy and Analysis,BARNET LBC,,,,211049507,3700080330,,Grant payable by the Exchequer,N11 1NP,"1,690,435.00",Yes
"Housing, Communities & Local Government",MHCLG,15/12/2020,Current (non AEF) Grants to Local Authorities,Local Government Strategy and Analysis,BARNET LBC,,,,211049507,3700080349,,Grant payable by the Exchequer,N11 1NP,"43,286.00",Yes
"Housing, Communities & Local Government",MHCLG,15/12/2020,Current (non AEF) Grants to Local Authorities,Local Government Strategy and Analysis,BARNET LBC,,,,211049507,3700081372,,Grant payable by the Exchequer,N11 1NP,"3,895,388.00",Yes
"Housing, Communities & Local Government",MHCLG,15/12/2020,Current (non AEF) Grants to Local Authorities,Local Government Strategy and Analysis,BARNET LBC,,,,211049507,3700081587,,Grant payable by the Exchequer,N11 1NP,"31,981.00",Yes
"Housing, Communities & Local Government",MHCLG,15/12/2020,Current (non AEF) Grants to Local Authorities,Local Government Strategy and Analysis,BARNSLEY MBC,,,,211178595,3700081978,,Grant payable by the Exchequer,S70 2AQ,"649,430.00",Yes
"Housing, Communities & Local Government",MHCLG,15/12/2020,Current (non AEF) Grants to Local Authorities,Local Government Strategy and Analysis,BARNSLEY MBC,,,,211178595,3700081994,,Grant payable by the Exchequer,S70 2AQ,"1,087,881.00",Yes
"Housing, Communities & Local Government",MHCLG,15/12/2020,Current (non AEF) Grants to Local Authorities,Local Government Strategy and Analysis,BARNSLEY MBC,,Public Bodies,,211178595,3700080648,,Grant payable by the Exchequer,S70 2AQ,"7,849.00",Yes
"Housing, Communities & Local Government",MHCLG,15/12/2020,Current (non AEF) Grants to Local Authorities,Local Government Strategy and Analysis,BARNSLEY MBC,,Public Bodies,,211178595,3700080920,,Grant payable by the Exchequer,S70 2AQ,"732,061.00",Yes
"Housing, Communities & Local Government",MHCLG,15/12/2020,Current (non AEF) Grants to Local Authorities,Local Government Strategy and Analysis,BARNSLEY MBC,,Public Bodies,,211178595,3700081408,,Grant payable by the Exchequer,S70 2AQ,"5,233.00",Yes
"Housing, Communities & Local Government",MHCLG,15/12/2020,Current (non AEF) Grants to Local Authorities,Local Government Strategy and Analysis,BARNSLEY MBC,,Public Bodies,,211178595,3700081665,,Grant payable by the Exchequer,S70 2AQ,"1,098,136.00",Yes
"Housing, Communities & Local Government",MHCLG,15/12/2020,Current (non AEF) Grants to Local Authorities,Local Government Strategy and Analysis,BARROW BC,,,,295632913,3700080530,,Grant payable by the Exchequer,LA14 2LD,"172,235.00",Yes
"Housing, Communities & Local Government",MHCLG,15/12/2020,Current (non AEF) Grants to Local Authorities,Local Government Strategy and Analysis,BARROW BC,,,,295632913,3700081094,,Grant payable by the Exchequer,LA14 2LD,"258,363.00",Yes
"Housing, Communities & Local Government",MHCLG,15/12/2020,Current (non AEF) Grants to Local Authorities,Local Government Strategy and Analysis,BARROW BC,,,,295632913,3700081128,,Grant payable by the Exchequer,LA14 2LD,"3,458.00",Yes
"Housing, Communities & Local Government",MHCLG,15/12/2020,Current (non AEF) Grants to Local Authorities,Local Government Strategy and Analysis,BARROW BC,,,,295632913,3700081526,,Grant payable by the Exchequer,LA14 2LD,"2,305.00",Yes
"Housing, Communities & Local Government",MHCLG,15/12/2020,Current (non AEF) Grants to Local Authorities,Local Government Strategy and Analysis,BASILDON DC,,,,,3700080454,,Grant payable by the Exchequer,SS14 0DF,"9,205.00",Yes
"Housing, Communities & Local Government",MHCLG,15/12/2020,Current (non AEF) Grants to Local Authorities,Local Government Strategy and Analysis,BASILDON DC,,,,,3700081142,,Grant payable by the Exchequer,SS14 0DF,"1,232,071.00",Yes
"Housing, Communities & Local Government",MHCLG,15/12/2020,Current (non AEF) Grants to Local Authorities,Local Government Strategy and Analysis,BASILDON DC,,,,,3700081573,,Grant payable by the Exchequer,SS14 0DF,"6,136.00",Yes
"Housing, Communities & Local Government",MHCLG,15/12/2020,Current (non AEF) Grants to Local Authorities,Local Government Strategy and Analysis,BASILDON DC,,,,,3700081697,,Grant payable by the Exchequer,SS14 0DF,"1,848,182.00",Yes
"Housing, Communities & Local Government",MHCLG,15/12/2020,Current (non AEF) Grants to Local Authorities,Local Government Strategy and Analysis,BASINGSTOKE & DEANE BC,,,,228328506,3700080822,,Grant payable by the Exchequer,RG21 2AJ,"37,227.00",Yes
"Housing, Communities & Local Government",MHCLG,15/12/2020,Current (non AEF) Grants to Local Authorities,Local Government Strategy and Analysis,BASINGSTOKE & DEANE BC,,,,228328506,3700081305,,Grant payable by the Exchequer,RG21 2AJ,"24,817.00",Yes
"Housing, Communities & Local Government",MHCLG,15/12/2020,Current (non AEF) Grants to Local Authorities,Local Government Strategy and Analysis,BASINGSTOKE & DEANE BC,,,,228328506,3700081464,,Grant payable by the Exchequer,RG21 2AJ,"1,066,930.00",Yes
"Housing, Communities & Local Government",MHCLG,15/12/2020,Current (non AEF) Grants to Local Authorities,Local Government Strategy and Analysis,BASINGSTOKE & DEANE BC,,,,228328506,3700081701,,Grant payable by the Exchequer,RG21 2AJ,"1,579,907.00",Yes
"Housing, Communities & Local Government",MHCLG,15/12/2020,Current (non AEF) Grants to Local Authorities,Local Government Strategy and Analysis,BASSETLAW DC,,,,230225054,3700081122,,Grant payable by the Exchequer,S80 2AH,"9,167.00",Yes
"Housing, Communities & Local Government",MHCLG,15/12/2020,Current (non AEF) Grants to Local Authorities,Local Government Strategy and Analysis,BASSETLAW DC,,,,230225054,3700081252,,Grant payable by the Exchequer,S80 2AH,"487,860.00",Yes
"Housing, Communities & Local Government",MHCLG,15/12/2020,Current (non AEF) Grants to Local Authorities,Local Government Strategy and Analysis,BASSETLAW DC,,,,230225054,3700081537,,Grant payable by the Exchequer,S80 2AH,"731,820.00",Yes
"Housing, Communities & Local Government",MHCLG,15/12/2020,Current (non AEF) Grants to Local Authorities,Local Government Strategy and Analysis,BASSETLAW DC,,,,230225054,3700081585,,Grant payable by the Exchequer,S80 2AH,"13,750.00",Yes
"Housing, Communities & Local Government",MHCLG,15/12/2020,Current (non AEF) Grants to Local Authorities,Local Government Strategy and Analysis,BATH & NE SOMERSET DC (HSG),,,,214502499,3700081722,,Grant payable by the Exchequer,BA1 5AW,"396,556.00",Yes
"Housing, Communities & Local Government",MHCLG,15/12/2020,Current (non AEF) Grants to Local Authorities,Local Government Strategy and Analysis,BATH & NE SOMERSET DC (HSG),,,,214502499,3700081923,,Grant payable by the Exchequer,BA1 5AW,"327,514.00",Yes
"Housing, Communities & Local Government",MHCLG,15/12/2020,Current (non AEF) Grants to Local Authorities,Local Government Strategy and Analysis,BATH & NORTH EAST SOMERSET DC,,,,214502499,3700080766,,Grant payable by the Exchequer,BA1 5AW,"3,406,038.00",Yes
"Housing, Communities & Local Government",MHCLG,15/12/2020,Current (non AEF) Grants to Local Authorities,Local Government Strategy and Analysis,BATH & NORTH EAST SOMERSET DC,,,,214502499,3700081432,,Grant payable by the Exchequer,BA1 5AW,"18,520.00",Yes
"Housing, Communities & Local Government",MHCLG,15/12/2020,Current (non AEF) Grants to Local Authorities,Local Government Strategy and Analysis,BEDFORD BOROUGH COUNCIL,,,,211166889,3700080520,,Grant payable by the Exchequer,MK40 1SJ,"17,581.00",Yes
"Housing, Communities & Local Government",MHCLG,15/12/2020,Current (non AEF) Grants to Local Authorities,Local Government Strategy and Analysis,BEDFORD BOROUGH COUNCIL,,,,211166889,3700080991,,Grant payable by the Exchequer,MK40 1SJ,"1,018,304.00",Yes
"Housing, Communities & Local Government",MHCLG,15/12/2020,Current (non AEF) Grants to Local Authorities,Local Government Strategy and Analysis,BEDFORD BOROUGH COUNCIL,,,,211166889,3700081054,,Grant payable by the Exchequer,MK40 1SJ,"11,720.00",Yes
"Housing, Communities & Local Government",MHCLG,15/12/2020,Current (non AEF) Grants to Local Authorities,Local Government Strategy and Analysis,BEDFORD BOROUGH COUNCIL,,,,211166889,3700081507,,Grant payable by the Exchequer,MK40 1SJ,"1,527,517.00",Yes
"Housing, Communities & Local Government",MHCLG,15/12/2020,Current (non AEF) Grants to Local Authorities,Local Government Strategy and Analysis,BEDFORD UNITARY AUTHORITY,,,,225682160,3700081728,,Grant payable by the Exchequer,MK40 1SJ,"275,382.00",Yes
"Housing, Communities & Local Government",MHCLG,15/12/2020,Current (non AEF) Grants to Local Authorities,Local Government Strategy and Analysis,BEDFORD UNITARY AUTHORITY,,,,225682160,3700081913,,Grant payable by the Exchequer,MK40 1SJ,"271,595.00",Yes
"Housing, Communities & Local Government",MHCLG,15/12/2020,Current (non AEF) Grants to Local Authorities,Local Government Strategy and Analysis,BEXLEY LB,,,,,3700080693,,Grant payable by the Exchequer,DA8 1TL,"11,458.00",Yes
"Housing, Communities & Local Government",MHCLG,15/12/2020,Current (non AEF) Grants to Local Authorities,Local Government Strategy and Analysis,BEXLEY LB,,,,,3700081000,,Grant payable by the Exchequer,DA8 1TL,"1,140,755.00",Yes
"Housing, Communities & Local Government",MHCLG,15/12/2020,Current (non AEF) Grants to Local Authorities,Local Government Strategy and Analysis,BEXLEY LB,,,,,3700081041,,Grant payable by the Exchequer,DA8 1TL,"15,508.00",Yes
"Housing, Communities & Local Government",MHCLG,15/12/2020,Current (non AEF) Grants to Local Authorities,Local Government Strategy and Analysis,BEXLEY LB,,,,,3700081256,,Grant payable by the Exchequer,DA8 1TL,"1,543,990.00",Yes
"Housing, Communities & Local Government",MHCLG,15/12/2020,Current (non AEF) Grants to Local Authorities,Local Government Strategy and Analysis,BEXLEY LB (HSG),,,,,3700081838,,Grant payable by the Exchequer,DA8 1TL,"535,113.00",Yes
"Housing, Communities & Local Government",MHCLG,15/12/2020,Current (non AEF) Grants to Local Authorities,Local Government Strategy and Analysis,BEXLEY LB (HSG),,,,,3700081891,,Grant payable by the Exchequer,DA8 1TL,"425,532.00",Yes
"Housing, Communities & Local Government",MHCLG,15/12/2020,Current (non AEF) Grants to Local Authorities,Local Government Strategy and Analysis,BIRMINGHAM CITY CNCL,,,,213780559,3700081775,,Grant payable by the Exchequer,B2 2AJ,"5,493,222.00",Yes
"Housing, Communities & Local Government",MHCLG,15/12/2020,Current (non AEF) Grants to Local Authorities,Local Government Strategy and Analysis,BIRMINGHAM CITY CNCL,,,,213780559,3700081947,,Grant payable by the Exchequer,B2 2AJ,"3,062,071.00",Yes
"Housing, Communities & Local Government",MHCLG,15/12/2020,Current (non AEF) Grants to Local Authorities,Local Government Strategy and Analysis,BIRMINGHAM CITY CNCL,,,,213780559,3700080468,,Grant payable by the Exchequer,B3 3AB,"203,766.00",Yes
"Housing, Communities & Local Government",MHCLG,15/12/2020,Current (non AEF) Grants to Local Authorities,Local Government Strategy and Analysis,BIRMINGHAM CITY CNCL,,,,213780559,3700081671,,Grant payable by the Exchequer,B3 3AB,"13,583,975.00",Yes
"Housing, Communities & Local Government",MHCLG,15/12/2020,Current (non AEF) Grants to Local Authorities,Local Government Strategy and Analysis,BLABY DC,,,,,3700080711,,Grant payable by the Exchequer,LE9 5EP,"817,769.00",Yes
"Housing, Communities & Local Government",MHCLG,15/12/2020,Current (non AEF) Grants to Local Authorities,Local Government Strategy and Analysis,BLABY DC,,,,,3700081089,,Grant payable by the Exchequer,LE9 5EP,"8,701.00",Yes
"Housing, Communities & Local Government",MHCLG,15/12/2020,Current (non AEF) Grants to Local Authorities,Local Government Strategy and Analysis,BLABY DC,,,,,3700081330,,Grant payable by the Exchequer,LE9 5EP,"1,226,701.00",Yes
"Housing, Communities & Local Government",MHCLG,15/12/2020,Current (non AEF) Grants to Local Authorities,Local Government Strategy and Analysis,BLABY DC,,,,,3700081361,,Grant payable by the Exchequer,LE9 5EP,"13,053.00",Yes
"Housing, Communities & Local Government",MHCLG,15/12/2020,Current (non AEF) Grants to Local Authorities,Local Government Strategy and Analysis,BLACKBURN WITH DARWEN BC,,,,,3700081868,,Grant payable by the Exchequer,BB1 7DY,"675,272.00",Yes
"Housing, Communities & Local Government",MHCLG,15/12/2020,Current (non AEF) Grants to Local Authorities,Local Government Strategy and Analysis,BLACKBURN WITH DARWEN BC,,,,,3700081883,,Grant payable by the Exchequer,BB1 7DY,"410,374.00",Yes
"Housing, Communities & Local Government",MHCLG,15/12/2020,Current (non AEF) Grants to Local Authorities,Local Government Strategy and Analysis,BLACKBURN WITH DARWEN BC,,Large,,212925606,2100308128,,Integration Area Programme,BB1 7DY,"1,040,075.00",Yes
"Housing, Communities & Local Government",MHCLG,15/12/2020,Current (non AEF) Grants to Local Authorities,Local Government Strategy and Analysis,BLACKBURN WITH DARWEN BC,,,,,3700080378,,Grant payable by the Exchequer,BB1 7DY,"1,005,745.00",Yes
"Housing, Communities & Local Government",MHCLG,15/12/2020,Current (non AEF) Grants to Local Authorities,Local Government Strategy and Analysis,BLACKBURN WITH DARWEN BC,,,,,3700081011,,Grant payable by the Exchequer,BB1 7DY,"14,429.00",Yes
"Housing, Communities & Local Government",MHCLG,15/12/2020,Current (non AEF) Grants to Local Authorities,Local Government Strategy and Analysis,BLACKBURN WITH DARWEN BC,,,,,3700081596,,Grant payable by the Exchequer,BB1 7DY,"670,469.00",Yes
"Housing, Communities & Local Government",MHCLG,15/12/2020,Current (non AEF) Grants to Local Authorities,Local Government Strategy and Analysis,BLACKBURN WITH DARWEN BC,,,,,3700081645,,Grant payable by the Exchequer,BB1 7DY,"9,619.00",Yes
"Housing, Communities & Local Government",MHCLG,15/12/2020,Current (non AEF) Grants to Local Authorities,Local Government Strategy and Analysis,BLACKPOOL BC,,,,,3700081721,,Grant payable by the Exchequer,FY1 1NA,"493,465.00",Yes
"Housing, Communities & Local Government",MHCLG,15/12/2020,Current (non AEF) Grants to Local Authorities,Local Government Strategy and Analysis,BLACKPOOL BC,,,,,3700081935,,Grant payable by the Exchequer,FY1 1NA,"879,594.00",Yes
"Housing, Communities & Local Government",MHCLG,15/12/2020,Current (non AEF) Grants to Local Authorities,Local Government Strategy and Analysis,BLACKPOOL BC,,,,,3700081121,,Grant payable by the Exchequer,FY1 1NA,"5,464.00",Yes
"Housing, Communities & Local Government",MHCLG,15/12/2020,Current (non AEF) Grants to Local Authorities,Local Government Strategy and Analysis,BLACKPOOL BC,,,,,3700081262,,Grant payable by the Exchequer,FY1 1NA,"8,196.00",Yes
"Housing, Communities & Local Government",MHCLG,15/12/2020,Current (non AEF) Grants to Local Authorities,Local Government Strategy and Analysis,BLACKPOOL BC,,,,,3700081477,,Grant payable by the Exchequer,FY1 1NA,"1,189,922.00",Yes
"Housing, Communities & Local Government",MHCLG,15/12/2020,Current (non AEF) Grants to Local Authorities,Local Government Strategy and Analysis,BLACKPOOL BC,,,,,3700081509,,Grant payable by the Exchequer,FY1 1NA,"1,763,893.00",Yes
"Housing, Communities & Local Government",MHCLG,15/12/2020,Current (non AEF) Grants to Local Authorities,Local Government Strategy and Analysis,BOLSOVER DC,,Large,,235516523,3700080473,,Grant payable by the Exchequer,S43 4JY,"282,798.00",Yes
"Housing, Communities & Local Government",MHCLG,15/12/2020,Current (non AEF) Grants to Local Authorities,Local Government Strategy and Analysis,BOLSOVER DC,,Large,,235516523,3700080567,,Grant payable by the Exchequer,S43 4JY,"1,978.00",Yes
"Housing, Communities & Local Government",MHCLG,15/12/2020,Current (non AEF) Grants to Local Authorities,Local Government Strategy and Analysis,BOLSOVER DC,,Large,,235516523,3700080647,,Grant payable by the Exchequer,S43 4JY,"2,967.00",Yes
"Housing, Communities & Local Government",MHCLG,15/12/2020,Current (non AEF) Grants to Local Authorities,Local Government Strategy and Analysis,BOLSOVER DC,,Large,,235516523,3700080846,,Grant payable by the Exchequer,S43 4JY,"424,213.00",Yes
"Housing, Communities & Local Government",MHCLG,15/12/2020,Current (non AEF) Grants to Local Authorities,Local Government Strategy and Analysis,BOLTON MBC,,,,,3700081729,,Grant payable by the Exchequer,BL1 1RU,"720,049.00",Yes
"Housing, Communities & Local Government",MHCLG,15/12/2020,Current (non AEF) Grants to Local Authorities,Local Government Strategy and Analysis,BOLTON MBC,,,,,3700081872,,Grant payable by the Exchequer,BL1 1RU,"1,203,101.00",Yes
"Housing, Communities & Local Government",MHCLG,15/12/2020,Current (non AEF) Grants to Local Authorities,Local Government Strategy and Analysis,BOLTON MBC,,,,,3700080502,,Grant payable by the Exchequer,BL1 1RU,"2,978,453.00",Yes
"Housing, Communities & Local Government",MHCLG,15/12/2020,Current (non AEF) Grants to Local Authorities,Local Government Strategy and Analysis,BOLTON MBC,,,,,3700081441,,Grant payable by the Exchequer,BL1 1RU,"33,898.00",Yes
"Housing, Communities & Local Government",MHCLG,15/12/2020,Current (non AEF) Grants to Local Authorities,Local Government Strategy and Analysis,BOSTON BC,,,,236417713,3700080403,,Grant payable by the Exchequer,PE21 8QR,"4,910.00",Yes
"Housing, Communities & Local Government",MHCLG,15/12/2020,Current (non AEF) Grants to Local Authorities,Local Government Strategy and Analysis,BOSTON BC,,,,236417713,3700080501,,Grant payable by the Exchequer,PE21 8QR,"548,787.00",Yes
"Housing, Communities & Local Government",MHCLG,15/12/2020,Current (non AEF) Grants to Local Authorities,Local Government Strategy and Analysis,BOSTON BC,,,,236417713,3700080661,,Grant payable by the Exchequer,PE21 8QR,"365,843.00",Yes
"Housing, Communities & Local Government",MHCLG,15/12/2020,Current (non AEF) Grants to Local Authorities,Local Government Strategy and Analysis,BOSTON BC,,,,236417713,3700081670,,Grant payable by the Exchequer,PE21 8QR,"7,366.00",Yes
"Housing, Communities & Local Government",MHCLG,15/12/2020,Current (non AEF) Grants to Local Authorities,Local Government Strategy and Analysis,"Bournemouth, Christchurch and Poole",,,,,3700080660,,Grant payable by the Exchequer,BH2 6DY,"4,856,781.00",Yes
"Housing, Communities & Local Government",MHCLG,15/12/2020,Current (non AEF) Grants to Local Authorities,Local Government Strategy and Analysis,"Bournemouth, Christchurch and Poole",,,,,3700081002,,Grant payable by the Exchequer,BH2 6DY,"23,647.00",Yes
"Housing, Communities & Local Government",MHCLG,15/12/2020,Current (non AEF) Grants to Local Authorities,Local Government Strategy and Analysis,"Bournemouth, Christchurch and Poole",,,,,3700081269,,Grant payable by the Exchequer,BH2 6DY,"35,472.00",Yes
"Housing, Communities & Local Government",MHCLG,15/12/2020,Current (non AEF) Grants to Local Authorities,Local Government Strategy and Analysis,"Bournemouth, Christchurch and Poole",,,,,3700081559,,Grant payable by the Exchequer,BH2 6DY,"3,237,724.00",Yes
"Housing, Communities & Local Government",MHCLG,15/12/2020,Current (non AEF) Grants to Local Authorities,Local Government Strategy and Analysis,"Bournemouth, Christchurch and Poole",,,,,3700081725,,Grant payable by the Exchequer,BH2 6DY,"802,423.00",Yes
"Housing, Communities & Local Government",MHCLG,15/12/2020,Current (non AEF) Grants to Local Authorities,Local Government Strategy and Analysis,"Bournemouth, Christchurch and Poole",,,,,3700081850,,Grant payable by the Exchequer,BH2 6DY,"1,086,926.00",Yes
"Housing, Communities & Local Government",MHCLG,15/12/2020,Current (non AEF) Grants to Local Authorities,Local Government Strategy and Analysis,BRACKNELL FOREST DC,,,,236184867,3700081827,,Grant payable by the Exchequer,RG12 1AQ,"158,297.00",Yes
"Housing, Communities & Local Government",MHCLG,15/12/2020,Current (non AEF) Grants to Local Authorities,Local Government Strategy and Analysis,BRACKNELL FOREST DC,,,,236184867,3700081974,,Grant payable by the Exchequer,RG12 1AQ,"123,333.00",Yes
"Housing, Communities & Local Government",MHCLG,15/12/2020,Current (non AEF) Grants to Local Authorities,Local Government Strategy and Analysis,BRACKNELL FOREST DC,,,,236184867,3700080474,,Grant payable by the Exchequer,RG12 1JD,"1,614,960.00",Yes
"Housing, Communities & Local Government",MHCLG,15/12/2020,Current (non AEF) Grants to Local Authorities,Local Government Strategy and Analysis,BRACKNELL FOREST DC,,,,236184867,3700080529,,Grant payable by the Exchequer,RG12 1JD,"1,076,597.00",Yes
"Housing, Communities & Local Government",MHCLG,15/12/2020,Current (non AEF) Grants to Local Authorities,Local Government Strategy and Analysis,BRACKNELL FOREST DC,,,,236184867,3700080765,,Grant payable by the Exchequer,RG12 1JD,"9,951.00",Yes
"Housing, Communities & Local Government",MHCLG,15/12/2020,Current (non AEF) Grants to Local Authorities,Local Government Strategy and Analysis,BRACKNELL FOREST DC,,,,236184867,3700081013,,Grant payable by the Exchequer,RG12 1JD,"14,928.00",Yes
"Housing, Communities & Local Government",MHCLG,15/12/2020,Current (non AEF) Grants to Local Authorities,Local Government Strategy and Analysis,BRADFORD MBC,,,,,3700081711,,Grant payable by the Exchequer,BD1 1HX,"1,173,703.00",Yes
"Housing, Communities & Local Government",MHCLG,15/12/2020,Current (non AEF) Grants to Local Authorities,Local Government Strategy and Analysis,BRADFORD MBC,,,,,3700081716,,Grant payable by the Exchequer,BD1 1HX,"1,891,643.00",Yes
"Housing, Communities & Local Government",MHCLG,15/12/2020,Current (non AEF) Grants to Local Authorities,Local Government Strategy and Analysis,BRADFORD MBC,,Public Bodies,,218122162,2100308129,,Integration Area Programme,BD1 1HY,"887,000.00",Yes
"Housing, Communities & Local Government",MHCLG,15/12/2020,Current (non AEF) Grants to Local Authorities,Local Government Strategy and Analysis,BRADFORD MBC,,,,,3700080418,,Grant payable by the Exchequer,BD1 1HX,"40,831.00",Yes
"Housing, Communities & Local Government",MHCLG,15/12/2020,Current (non AEF) Grants to Local Authorities,Local Government Strategy and Analysis,BRADFORD MBC,,,,,3700080707,,Grant payable by the Exchequer,BD1 1HX,"1,848,645.00",Yes
"Housing, Communities & Local Government",MHCLG,15/12/2020,Current (non AEF) Grants to Local Authorities,Local Government Strategy and Analysis,BRADFORD MBC,,,,,3700081274,,Grant payable by the Exchequer,BD1 1HX,"2,773,078.00",Yes
"Housing, Communities & Local Government",MHCLG,15/12/2020,Current (non AEF) Grants to Local Authorities,Local Government Strategy and Analysis,BRADFORD MBC,,,,,3700081525,,Grant payable by the Exchequer,BD1 1HX,"61,250.00",Yes
"Housing, Communities & Local Government",MHCLG,15/12/2020,Current (non AEF) Grants to Local Authorities,Local Government Strategy and Analysis,BRAINTREE DC,,,,226941730,3700080884,,Grant payable by the Exchequer,CM7 9HB,"8,145.00",Yes
"Housing, Communities & Local Government",MHCLG,15/12/2020,Current (non AEF) Grants to Local Authorities,Local Government Strategy and Analysis,BRAINTREE DC,,,,226941730,3700081499,,Grant payable by the Exchequer,CM7 9HB,"12,218.00",Yes
"Housing, Communities & Local Government",MHCLG,15/12/2020,Current (non AEF) Grants to Local Authorities,Local Government Strategy and Analysis,BRAINTREE DC,,,,226941730,3700081504,,Grant payable by the Exchequer,CM7 9HB,"645,869.00",Yes
"Housing, Communities & Local Government",MHCLG,15/12/2020,Current (non AEF) Grants to Local Authorities,Local Government Strategy and Analysis,BRAINTREE DC,,,,226941730,3700081684,,Grant payable by the Exchequer,CM7 9HB,"968,843.00",Yes
"Housing, Communities & Local Government",MHCLG,15/12/2020,Current (non AEF) Grants to Local Authorities,Local Government Strategy and Analysis,BRECKLAND DC,,,,232611384,3700081061,,Grant payable by the Exchequer,NR19 1EE,"9,413.00",Yes
"Housing, Communities & Local Government",MHCLG,15/12/2020,Current (non AEF) Grants to Local Authorities,Local Government Strategy and Analysis,BRECKLAND DC,,,,232611384,3700081117,,Grant payable by the Exchequer,NR19 1EE,"6,275.00",Yes
"Housing, Communities & Local Government",MHCLG,15/12/2020,Current (non AEF) Grants to Local Authorities,Local Government Strategy and Analysis,BRECKLAND DC,,,,232611384,3700081421,,Grant payable by the Exchequer,NR19 1EE,"506,234.00",Yes
"Housing, Communities & Local Government",MHCLG,15/12/2020,Current (non AEF) Grants to Local Authorities,Local Government Strategy and Analysis,BRECKLAND DC,,,,232611384,3700081654,,Grant payable by the Exchequer,NR19 1EE,"759,382.00",Yes
"Housing, Communities & Local Government",MHCLG,15/12/2020,Current (non AEF) Grants to Local Authorities,Local Government Strategy and Analysis,BRENT LB,,,,,3700080539,,Grant payable by the Exchequer,HA9 9EZ,"1,933,541.00",Yes
"Housing, Communities & Local Government",MHCLG,15/12/2020,Current (non AEF) Grants to Local Authorities,Local Government Strategy and Analysis,BRENT LB,,,,,3700080786,,Grant payable by the Exchequer,HA9 9EZ,"2,617,011.00",Yes
"Housing, Communities & Local Government",MHCLG,15/12/2020,Current (non AEF) Grants to Local Authorities,Local Government Strategy and Analysis,BRENT LB,,,,,3700081092,,Grant payable by the Exchequer,HA9 9EZ,"19,212.00",Yes
"Housing, Communities & Local Government",MHCLG,15/12/2020,Current (non AEF) Grants to Local Authorities,Local Government Strategy and Analysis,BRENT LB,,,,,3700081284,,Grant payable by the Exchequer,HA9 9EZ,"14,194.00",Yes
"Housing, Communities & Local Government",MHCLG,15/12/2020,Current (non AEF) Grants to Local Authorities,Local Government Strategy and Analysis,BRENT LB (HSG),,,,,3700081780,,Grant payable by the Exchequer,HA9 0FJ,"670,896.00",Yes
"Housing, Communities & Local Government",MHCLG,15/12/2020,Current (non AEF) Grants to Local Authorities,Local Government Strategy and Analysis,BRENT LB (HSG),,,,,3700081908,,Grant payable by the Exchequer,HA9 0FJ,"1,079,318.00",Yes
"Housing, Communities & Local Government",MHCLG,15/12/2020,Current (non AEF) Grants to Local Authorities,Local Government Strategy and Analysis,BRENTWOOD BC,,,,227473188,3700080738,,Grant payable by the Exchequer,CM15 8AY,"436,784.00",Yes
"Housing, Communities & Local Government",MHCLG,15/12/2020,Current (non AEF) Grants to Local Authorities,Local Government Strategy and Analysis,BRENTWOOD BC,,,,227473188,3700081308,,Grant payable by the Exchequer,CM15 8AY,"8,491.00",Yes
"Housing, Communities & Local Government",MHCLG,15/12/2020,Current (non AEF) Grants to Local Authorities,Local Government Strategy and Analysis,BRENTWOOD BC,,,,227473188,3700081540,,Grant payable by the Exchequer,CM15 8AY,"5,660.00",Yes
"Housing, Communities & Local Government",MHCLG,15/12/2020,Current (non AEF) Grants to Local Authorities,Local Government Strategy and Analysis,BRENTWOOD BC,,,,227473188,3700081652,,Grant payable by the Exchequer,CM15 8AY,"655,202.00",Yes
"Housing, Communities & Local Government",MHCLG,15/12/2020,Current (non AEF) Grants to Local Authorities,Local Government Strategy and Analysis,BRIGHTON & HOVE CITY COUNCIL,,Large,,228455218,3700081798,,Grant payable by the Exchequer,BN1 3JE,"765,053.00",Yes
"Housing, Communities & Local Government",MHCLG,15/12/2020,Current (non AEF) Grants to Local Authorities,Local Government Strategy and Analysis,BRIGHTON & HOVE CITY COUNCIL,,Large,,228455218,3700081852,,Grant payable by the Exchequer,BN1 3JE,"567,883.00",Yes
"Housing, Communities & Local Government",MHCLG,15/12/2020,Current (non AEF) Grants to Local Authorities,Local Government Strategy and Analysis,BRIGHTON & HOVE CITY COUNCIL,,Large,,228455218,3700080551,,Grant payable by the Exchequer,BN1 3JE,"2,659,960.00",Yes
"Housing, Communities & Local Government",MHCLG,15/12/2020,Current (non AEF) Grants to Local Authorities,Local Government Strategy and Analysis,BRIGHTON & HOVE CITY COUNCIL,,Large,,228455218,3700081271,,Grant payable by the Exchequer,BN1 3JE,"3,990,100.00",Yes
"Housing, Communities & Local Government",MHCLG,15/12/2020,Current (non AEF) Grants to Local Authorities,Local Government Strategy and Analysis,BRIGHTON & HOVE CITY COUNCIL,,Large,,228455218,3700081447,,Grant payable by the Exchequer,BN1 3JE,"50,298.00",Yes
"Housing, Communities & Local Government",MHCLG,15/12/2020,Current (non AEF) Grants to Local Authorities,Local Government Strategy and Analysis,BRIGHTON & HOVE CITY COUNCIL,,Large,,228455218,3700081497,,Grant payable by the Exchequer,BN1 3JE,"33,531.00",Yes
"Housing, Communities & Local Government",MHCLG,15/12/2020,Current (non AEF) Grants to Local Authorities,Local Government Strategy and Analysis,BRISTOL CITY CNCL,,,,211103882,3700080459,,Grant payable by the Exchequer,BS99 7BL,"5,889,373.00",Yes
"Housing, Communities & Local Government",MHCLG,15/12/2020,Current (non AEF) Grants to Local Authorities,Local Government Strategy and Analysis,BRISTOL CITY CNCL,,,,211103882,3700081331,,Grant payable by the Exchequer,BS99 7BL,"72,838.00",Yes
"Housing, Communities & Local Government",MHCLG,15/12/2020,Current (non AEF) Grants to Local Authorities,Local Government Strategy and Analysis,BRISTOL CITY COUNCIL (HSG),,,,211103882,3700081727,,Grant payable by the Exchequer,BS3 9FS,"972,887.00",Yes
"Housing, Communities & Local Government",MHCLG,15/12/2020,Current (non AEF) Grants to Local Authorities,Local Government Strategy and Analysis,BRISTOL CITY COUNCIL (HSG),,,,211103882,3700081888,,Grant payable by the Exchequer,BS3 9FS,"1,376,231.00",Yes
"Housing, Communities & Local Government",MHCLG,15/12/2020,Current (non AEF) Grants to Local Authorities,Local Government Strategy and Analysis,BROADLAND DC,,,,219737785,3700080649,,Grant payable by the Exchequer,NR7 0DU,"5,456.00",Yes
"Housing, Communities & Local Government",MHCLG,15/12/2020,Current (non AEF) Grants to Local Authorities,Local Government Strategy and Analysis,BROADLAND DC,,,,219737785,3700080942,,Grant payable by the Exchequer,NR7 0DU,"529,994.00",Yes
"Housing, Communities & Local Government",MHCLG,15/12/2020,Current (non AEF) Grants to Local Authorities,Local Government Strategy and Analysis,BROADLAND DC,,,,219737785,3700081131,,Grant payable by the Exchequer,NR7 0DU,"795,023.00",Yes
"Housing, Communities & Local Government",MHCLG,15/12/2020,Current (non AEF) Grants to Local Authorities,Local Government Strategy and Analysis,BROADLAND DC,,,,219737785,3700081183,,Grant payable by the Exchequer,NR7 0DU,"8,184.00",Yes
"Housing, Communities & Local Government",MHCLG,15/12/2020,Current (non AEF) Grants to Local Authorities,Local Government Strategy and Analysis,BROMLEY LB,,,,211331954,3700081897,,Grant payable by the Exchequer,BR1 3UH,"520,804.00",Yes
"Housing, Communities & Local Government",MHCLG,15/12/2020,Current (non AEF) Grants to Local Authorities,Local Government Strategy and Analysis,BROMLEY LB,,,,211331954,3700081900,,Grant payable by the Exchequer,BR1 3UH,"625,245.00",Yes
"Housing, Communities & Local Government",MHCLG,15/12/2020,Current (non AEF) Grants to Local Authorities,Local Government Strategy and Analysis,BROMLEY LB,,,,211331954,3700080373,,Grant payable by the Exchequer,BR1 3UH,"33,964.00",Yes
"Housing, Communities & Local Government",MHCLG,15/12/2020,Current (non AEF) Grants to Local Authorities,Local Government Strategy and Analysis,BROMLEY LB,,,,211331954,3700080508,,Grant payable by the Exchequer,BR1 3UH,"2,075,467.00",Yes
"Housing, Communities & Local Government",MHCLG,15/12/2020,Current (non AEF) Grants to Local Authorities,Local Government Strategy and Analysis,BROMLEY LB,,,,211331954,3700080849,,Grant payable by the Exchequer,BR1 3UH,"2,809,105.00",Yes
"Housing, Communities & Local Government",MHCLG,15/12/2020,Current (non AEF) Grants to Local Authorities,Local Government Strategy and Analysis,BROMLEY LB,,,,211331954,3700081417,,Grant payable by the Exchequer,BR1 3UH,"45,969.00",Yes
"Housing, Communities & Local Government",MHCLG,15/12/2020,Current (non AEF) Grants to Local Authorities,Local Government Strategy and Analysis,BROMSGROVE DC,,,,236654745,3700080527,,Grant payable by the Exchequer,B60 1AA,"390,517.00",Yes
"Housing, Communities & Local Government",MHCLG,15/12/2020,Current (non AEF) Grants to Local Authorities,Local Government Strategy and Analysis,BROMSGROVE DC,,,,236654745,3700080938,,Grant payable by the Exchequer,B60 1AA,"9,256.00",Yes
"Housing, Communities & Local Government",MHCLG,15/12/2020,Current (non AEF) Grants to Local Authorities,Local Government Strategy and Analysis,BROMSGROVE DC,,,,236654745,3700081348,,Grant payable by the Exchequer,B60 1AA,"585,799.00",Yes
"Housing, Communities & Local Government",MHCLG,15/12/2020,Current (non AEF) Grants to Local Authorities,Local Government Strategy and Analysis,BROMSGROVE DC,,,,236654745,3700081358,,Grant payable by the Exchequer,B60 1AA,"13,883.00",Yes
"Housing, Communities & Local Government",MHCLG,15/12/2020,Current (non AEF) Grants to Local Authorities,Local Government Strategy and Analysis,BROXBOURNE BOROUGH COUNCIL,,,,239931918,3700080353,,Grant payable by the Exchequer,EN8 9XQ,"6,439.00",Yes
"Housing, Communities & Local Government",MHCLG,15/12/2020,Current (non AEF) Grants to Local Authorities,Local Government Strategy and Analysis,BROXBOURNE BOROUGH COUNCIL,,,,239931918,3700080604,,Grant payable by the Exchequer,EN8 9XQ,"511,896.00",Yes
"Housing, Communities & Local Government",MHCLG,15/12/2020,Current (non AEF) Grants to Local Authorities,Local Government Strategy and Analysis,BROXBOURNE BOROUGH COUNCIL,,,,239931918,3700080781,,Grant payable by the Exchequer,EN8 9XQ,"767,875.00",Yes
"Housing, Communities & Local Government",MHCLG,15/12/2020,Current (non AEF) Grants to Local Authorities,Local Government Strategy and Analysis,BROXBOURNE BOROUGH COUNCIL,,,,239931918,3700081617,,Grant payable by the Exchequer,EN8 9XQ,"9,659.00",Yes
"Housing, Communities & Local Government",MHCLG,15/12/2020,Current (non AEF) Grants to Local Authorities,Local Government Strategy and Analysis,BROXTOWE BC,,,,239877640,3700080616,,Grant payable by the Exchequer,NG9 1AB,"12,749.00",Yes
"Housing, Communities & Local Government",MHCLG,15/12/2020,Current (non AEF) Grants to Local Authorities,Local Government Strategy and Analysis,BROXTOWE BC,,,,239877640,3700080840,,Grant payable by the Exchequer,NG9 1AB,"8,499.00",Yes
"Housing, Communities & Local Government",MHCLG,15/12/2020,Current (non AEF) Grants to Local Authorities,Local Government Strategy and Analysis,BROXTOWE BC,,,,239877640,3700081038,,Grant payable by the Exchequer,NG9 1AB,"993,447.00",Yes
"Housing, Communities & Local Government",MHCLG,15/12/2020,Current (non AEF) Grants to Local Authorities,Local Government Strategy and Analysis,BROXTOWE BC,,,,239877640,3700081058,,Grant payable by the Exchequer,NG9 1AB,"662,272.00",Yes
"Housing, Communities & Local Government",MHCLG,15/12/2020,Current (non AEF) Grants to Local Authorities,Local Government Strategy and Analysis,Buckinghamshire Council,,,,,3700080347,,Grant payable by the Exchequer,HP19 8FF,"91,729.00",Yes
"Housing, Communities & Local Government",MHCLG,15/12/2020,Current (non AEF) Grants to Local Authorities,Local Government Strategy and Analysis,Buckinghamshire Council,,,,,3700080425,,Grant payable by the Exchequer,HP19 8FF,"4,557,150.00",Yes
"Housing, Communities & Local Government",MHCLG,15/12/2020,Current (non AEF) Grants to Local Authorities,Local Government Strategy and Analysis,Buckinghamshire Council,,,,,3700080898,,Grant payable by the Exchequer,HP19 8FF,"3,037,979.00",Yes
"Housing, Communities & Local Government",MHCLG,15/12/2020,Current (non AEF) Grants to Local Authorities,Local Government Strategy and Analysis,Buckinghamshire Council,,,,,3700081312,,Grant payable by the Exchequer,HP19 8FF,"61,150.00",Yes
"Housing, Communities & Local Government",MHCLG,15/12/2020,Current (non AEF) Grants to Local Authorities,Local Government Strategy and Analysis,BUCKINGHAMSHIRE UA,,,,,3700081708,,Grant payable by the Exchequer,HP19 8FF,"407,707.00",Yes
"Housing, Communities & Local Government",MHCLG,15/12/2020,Current (non AEF) Grants to Local Authorities,Local Government Strategy and Analysis,BUCKINGHAMSHIRE UA,,,,,3700081756,,Grant payable by the Exchequer,HP19 8FF,"731,173.00",Yes
"Housing, Communities & Local Government",MHCLG,15/12/2020,Current (non AEF) Grants to Local Authorities,Local Government Strategy and Analysis,BURNLEY BC,,,,229413281,3700080337,,Grant payable by the Exchequer,BB11 1JA,"6,187.00",Yes
"Housing, Communities & Local Government",MHCLG,15/12/2020,Current (non AEF) Grants to Local Authorities,Local Government Strategy and Analysis,BURNLEY BC,,,,229413281,3700080941,,Grant payable by the Exchequer,BB11 1JA,"458,289.00",Yes
"Housing, Communities & Local Government",MHCLG,15/12/2020,Current (non AEF) Grants to Local Authorities,Local Government Strategy and Analysis,BURNLEY BC,,,,229413281,3700081118,,Grant payable by the Exchequer,BB11 1JA,"4,125.00",Yes
"Housing, Communities & Local Government",MHCLG,15/12/2020,Current (non AEF) Grants to Local Authorities,Local Government Strategy and Analysis,BURNLEY BC,,,,229413281,3700081226,,Grant payable by the Exchequer,BB11 1JA,"687,460.00",Yes
"Housing, Communities & Local Government",MHCLG,15/12/2020,Current (non AEF) Grants to Local Authorities,Local Government Strategy and Analysis,BURY MBC,,,,,3700081714,,Grant payable by the Exchequer,BL9 0SW,"397,442.00",Yes
"Housing, Communities & Local Government",MHCLG,15/12/2020,Current (non AEF) Grants to Local Authorities,Local Government Strategy and Analysis,BURY MBC,,,,,3700081830,,Grant payable by the Exchequer,BL9 0SW,"616,988.00",Yes
"Housing, Communities & Local Government",MHCLG,15/12/2020,Current (non AEF) Grants to Local Authorities,Local Government Strategy and Analysis,BURY MBC,,,,236491114,3700080760,,Grant payable by the Exchequer,BL9 0SP,"28,868.00",Yes
"Housing, Communities & Local Government",MHCLG,15/12/2020,Current (non AEF) Grants to Local Authorities,Local Government Strategy and Analysis,BURY MBC,,,,236491114,3700081564,,Grant payable by the Exchequer,BL9 0SP,"1,856,061.00",Yes
"Housing, Communities & Local Government",MHCLG,15/12/2020,Current (non AEF) Grants to Local Authorities,Local Government Strategy and Analysis,CALDERDALE MBC,,,,,3700081803,,Grant payable by the Exchequer,HX1 1YP,"682,335.00",Yes
"Housing, Communities & Local Government",MHCLG,15/12/2020,Current (non AEF) Grants to Local Authorities,Local Government Strategy and Analysis,CALDERDALE MBC,,,,,3700081969,,Grant payable by the Exchequer,HX1 1YP,"449,592.00",Yes
"Housing, Communities & Local Government",MHCLG,15/12/2020,Current (non AEF) Grants to Local Authorities,Local Government Strategy and Analysis,CALDERDALE MBC,,Public Bodies,,,3700080919,,Grant payable by the Exchequer,HX1 1YP,"333,780.00",Yes
"Housing, Communities & Local Government",MHCLG,15/12/2020,Current (non AEF) Grants to Local Authorities,Local Government Strategy and Analysis,CALDERDALE MBC,,Public Bodies,,,3700081001,,Grant payable by the Exchequer,HX1 1YP,"12,730.00",Yes
"Housing, Communities & Local Government",MHCLG,15/12/2020,Current (non AEF) Grants to Local Authorities,Local Government Strategy and Analysis,CALDERDALE MBC,,Public Bodies,,,3700081248,,Grant payable by the Exchequer,HX1 1YP,"8,486.00",Yes
"Housing, Communities & Local Government",MHCLG,15/12/2020,Current (non AEF) Grants to Local Authorities,Local Government Strategy and Analysis,CALDERDALE MBC,,Public Bodies,,,3700081547,,Grant payable by the Exchequer,HX1 1YP,"222,512.00",Yes
"Housing, Communities & Local Government",MHCLG,15/12/2020,Current (non AEF) Grants to Local Authorities,Local Government Strategy and Analysis,CAMBRIDGE CITY COUNCIL,,,,210357534,3700080900,,Grant payable by the Exchequer,CB1 0JH,"3,100,180.00",Yes
"Housing, Communities & Local Government",MHCLG,15/12/2020,Current (non AEF) Grants to Local Authorities,Local Government Strategy and Analysis,CAMBRIDGE CITY COUNCIL,,,,210357534,3700081321,,Grant payable by the Exchequer,CB1 0JH,"2,066,703.00",Yes
"Housing, Communities & Local Government",MHCLG,15/12/2020,Current (non AEF) Grants to Local Authorities,Local Government Strategy and Analysis,CAMBRIDGE CITY COUNCIL,,,,210357534,3700081381,,Grant payable by the Exchequer,CB1 0JH,"23,999.00",Yes
"Housing, Communities & Local Government",MHCLG,15/12/2020,Current (non AEF) Grants to Local Authorities,Local Government Strategy and Analysis,CAMBRIDGE CITY COUNCIL,,,,210357534,3700081651,,Grant payable by the Exchequer,CB1 0JH,"36,000.00",Yes
"Housing, Communities & Local Government",MHCLG,15/12/2020,Current (non AEF) Grants to Local Authorities,Local Government Strategy and Analysis,CAMBRIDGESHIRE COUNTY CNCL,,,,219047347,3700081740,,Grant payable by the Exchequer,CB3 0AP,"1,035,209.00",Yes
"Housing, Communities & Local Government",MHCLG,15/12/2020,Current (non AEF) Grants to Local Authorities,Local Government Strategy and Analysis,CAMBRIDGESHIRE COUNTY CNCL,,,,219047347,3700081936,,Grant payable by the Exchequer,CB3 0AP,"1,227,057.00",Yes
"Housing, Communities & Local Government",MHCLG,15/12/2020,Current (non AEF) Grants to Local Authorities,Local Government Strategy and Analysis,CAMDEN LB,,,,211651836,3700081824,,Grant payable by the Exchequer,N1C 4AG,"1,041,252.00",Yes
"Housing, Communities & Local Government",MHCLG,15/12/2020,Current (non AEF) Grants to Local Authorities,Local Government Strategy and Analysis,CAMDEN LB,,,,211651836,3700081996,,Grant payable by the Exchequer,N1C 4AG,"653,257.00",Yes
"Housing, Communities & Local Government",MHCLG,15/12/2020,Current (non AEF) Grants to Local Authorities,Local Government Strategy and Analysis,CAMDEN LONDON BOROUGH,,,,,3700080417,,Grant payable by the Exchequer,N1C 4AG,"26,243.00",Yes
"Housing, Communities & Local Government",MHCLG,15/12/2020,Current (non AEF) Grants to Local Authorities,Local Government Strategy and Analysis,CAMDEN LONDON BOROUGH,,,,,3700080987,,Grant payable by the Exchequer,N1C 4AG,"10,386,264.00",Yes
"Housing, Communities & Local Government",MHCLG,15/12/2020,Current (non AEF) Grants to Local Authorities,Local Government Strategy and Analysis,CAMDEN LONDON BOROUGH,,,,,3700081402,,Grant payable by the Exchequer,N1C 4AG,"7,673,741.00",Yes
"Housing, Communities & Local Government",MHCLG,15/12/2020,Current (non AEF) Grants to Local Authorities,Local Government Strategy and Analysis,CAMDEN LONDON BOROUGH,,,,,3700081677,,Grant payable by the Exchequer,N1C 4AG,"19,390.00",Yes
"Housing, Communities & Local Government",MHCLG,15/12/2020,Current (non AEF) Grants to Local Authorities,Local Government Strategy and Analysis,CANNOCK CHASE DC,,,,215064770,3700080331,,Grant payable by the Exchequer,WS11 1BG,"853,853.00",Yes
"Housing, Communities & Local Government",MHCLG,15/12/2020,Current (non AEF) Grants to Local Authorities,Local Government Strategy and Analysis,CANNOCK CHASE DC,,,,215064770,3700081316,,Grant payable by the Exchequer,WS11 1BG,"1,654.00",Yes
"Housing, Communities & Local Government",MHCLG,15/12/2020,Current (non AEF) Grants to Local Authorities,Local Government Strategy and Analysis,CANNOCK CHASE DC,,,,215064770,3700081521,,Grant payable by the Exchequer,WS11 1BG,"569,213.00",Yes
"Housing, Communities & Local Government",MHCLG,15/12/2020,Current (non AEF) Grants to Local Authorities,Local Government Strategy and Analysis,CANNOCK CHASE DC,,,,215064770,3700081605,,Grant payable by the Exchequer,WS11 1BG,"2,480.00",Yes
"Housing, Communities & Local Government",MHCLG,15/12/2020,Current (non AEF) Grants to Local Authorities,Local Government Strategy and Analysis,CANTERBURY CITY CNCL,,,,,3700080702,,Grant payable by the Exchequer,CT1 1YW,"1,338,925.00",Yes
"Housing, Communities & Local Government",MHCLG,15/12/2020,Current (non AEF) Grants to Local Authorities,Local Government Strategy and Analysis,CANTERBURY CITY CNCL,,,,,3700080863,,Grant payable by the Exchequer,CT1 1YW,"4,421.00",Yes
"Housing, Communities & Local Government",MHCLG,15/12/2020,Current (non AEF) Grants to Local Authorities,Local Government Strategy and Analysis,CANTERBURY CITY CNCL,,,,,3700080883,,Grant payable by the Exchequer,CT1 1YW,"6,633.00",Yes
"Housing, Communities & Local Government",MHCLG,15/12/2020,Current (non AEF) Grants to Local Authorities,Local Government Strategy and Analysis,CANTERBURY CITY CNCL,,,,,3700081044,,Grant payable by the Exchequer,CT1 1YW,"2,008,468.00",Yes
"Housing, Communities & Local Government",MHCLG,15/12/2020,Current (non AEF) Grants to Local Authorities,Local Government Strategy and Analysis,CARLISLE CITY CNCL,,,,227471059,3700080391,,Grant payable by the Exchequer,CA3 8QG,"4,032.00",Yes
"Housing, Communities & Local Government",MHCLG,15/12/2020,Current (non AEF) Grants to Local Authorities,Local Government Strategy and Analysis,CARLISLE CITY CNCL,,,,227471059,3700080443,,Grant payable by the Exchequer,CA3 8QG,"6,047.00",Yes
"Housing, Communities & Local Government",MHCLG,15/12/2020,Current (non AEF) Grants to Local Authorities,Local Government Strategy and Analysis,CARLISLE CITY CNCL,,,,227471059,3700080565,,Grant payable by the Exchequer,CA3 8QG,"898,863.00",Yes
"Housing, Communities & Local Government",MHCLG,15/12/2020,Current (non AEF) Grants to Local Authorities,Local Government Strategy and Analysis,CARLISLE CITY CNCL,,,,227471059,3700080729,,Grant payable by the Exchequer,CA3 8QG,"1,320,828.00",Yes
"Housing, Communities & Local Government",MHCLG,15/12/2020,Current (non AEF) Grants to Local Authorities,Local Government Strategy and Analysis,CASTLE POINT BC,,Public Bodies,,228217931,3700080923,,Grant payable by the Exchequer,SS7 1TF,"4,797.00",Yes
"Housing, Communities & Local Government",MHCLG,15/12/2020,Current (non AEF) Grants to Local Authorities,Local Government Strategy and Analysis,CASTLE POINT BC,,Public Bodies,,228217931,3700081391,,Grant payable by the Exchequer,SS7 1TF,"486,100.00",Yes
"Housing, Communities & Local Government",MHCLG,15/12/2020,Current (non AEF) Grants to Local Authorities,Local Government Strategy and Analysis,CASTLE POINT BC,,Public Bodies,,228217931,3700081423,,Grant payable by the Exchequer,SS7 1TF,"324,054.00",Yes
"Housing, Communities & Local Government",MHCLG,15/12/2020,Current (non AEF) Grants to Local Authorities,Local Government Strategy and Analysis,CASTLE POINT BC,,Public Bodies,,228217931,3700081687,,Grant payable by the Exchequer,SS7 1TF,"3,198.00",Yes
"Housing, Communities & Local Government",MHCLG,15/12/2020,Current (non AEF) Grants to Local Authorities,Local Government Strategy and Analysis,CENTRAL BEDFORDSHIRE COUNCIL,,,,232624882,3700080594,,Grant payable by the Exchequer,SG17 5TQ,"24,151.00",Yes
"Housing, Communities & Local Government",MHCLG,15/12/2020,Current (non AEF) Grants to Local Authorities,Local Government Strategy and Analysis,CENTRAL BEDFORDSHIRE COUNCIL,,,,232624882,3700080698,,Grant payable by the Exchequer,SG17 5TQ,"1,003,424.00",Yes
"Housing, Communities & Local Government",MHCLG,15/12/2020,Current (non AEF) Grants to Local Authorities,Local Government Strategy and Analysis,CENTRAL BEDFORDSHIRE COUNCIL,,,,232624882,3700080943,,Grant payable by the Exchequer,SG17 5TQ,"1,505,196.00",Yes
"Housing, Communities & Local Government",MHCLG,15/12/2020,Current (non AEF) Grants to Local Authorities,Local Government Strategy and Analysis,CENTRAL BEDFORDSHIRE COUNCIL,,,,232624882,3700081534,,Grant payable by the Exchequer,SG17 5TQ,"16,100.00",Yes
"Housing, Communities & Local Government",MHCLG,15/12/2020,Current (non AEF) Grants to Local Authorities,Local Government Strategy and Analysis,CENTRAL BEDFORDSHIRE COUNCIL,,,,232624882,3700081738,,Grant payable by the Exchequer,SG17 5TQ,"378,848.00",Yes
"Housing, Communities & Local Government",MHCLG,15/12/2020,Current (non AEF) Grants to Local Authorities,Local Government Strategy and Analysis,CENTRAL BEDFORDSHIRE COUNCIL,,,,232624882,3700081845,,Grant payable by the Exchequer,SG17 5TQ,"225,033.00",Yes
"Housing, Communities & Local Government",MHCLG,15/12/2020,Current (non AEF) Grants to Local Authorities,Local Government Strategy and Analysis,CHARNWOOD BC,,,,,3700080470,,Grant payable by the Exchequer,LE11 2TU,"8,105.00",Yes
"Housing, Communities & Local Government",MHCLG,15/12/2020,Current (non AEF) Grants to Local Authorities,Local Government Strategy and Analysis,CHARNWOOD BC,,,,,3700080601,,Grant payable by the Exchequer,LE11 2TU,"12,158.00",Yes
"Housing, Communities & Local Government",MHCLG,15/12/2020,Current (non AEF) Grants to Local Authorities,Local Government Strategy and Analysis,CHARNWOOD BC,,,,,3700080611,,Grant payable by the Exchequer,LE11 2TU,"720,536.00",Yes
"Housing, Communities & Local Government",MHCLG,15/12/2020,Current (non AEF) Grants to Local Authorities,Local Government Strategy and Analysis,CHARNWOOD BC,,,,,3700081148,,Grant payable by the Exchequer,LE11 2TU,"1,080,846.00",Yes
"Housing, Communities & Local Government",MHCLG,15/12/2020,Current (non AEF) Grants to Local Authorities,Local Government Strategy and Analysis,CHELMSFORD BC,,,,,3700080709,,Grant payable by the Exchequer,CM1 1JE,"2,794.00",Yes
